Local authority department which incurred the expenditure,Service Division,Cost Centre,Summary of the Purpose of Expenditure,Expense Type,Expense Code,Detailed Expense Type,Date of Transaction,Transaction Number,Beneficiary,Merchant Category Number,Merchant Category,Gross Amount,VAT,Net Amount
Regeneration and Local Services,Culture Sport and Tourism,030708,VCD - Marketing & Information,Supplies and Services,384199,Miscellaneous Expenses,01-Aug-2019,000006572973904,FACEBK FWPRBMNUC2,7311,Other hired and contracted services,138.86,0.00,138.86
Children and Young Peoples Services,Head of Early Help Inclusion & Vulnerable Children.,085965,Barnard,Supplies and Services,304649,Equipment and Materials,01-Aug-2019,000006572974132,Amazon.co.uk MH2HO3ME4,5969,Toys,31.13,5.19,25.94
Children and Young Peoples Services,Head of Education and Skills,071801,Selby Cottage Childcare Centre,Supplies and Services,304259,Equipment and Materials,01-Aug-2019,000006578075456,WILKO RETAIL LIMIT,5722,Equipment-purchase and rental,6.00,0.00,6.00
Children and Young Peoples Services,Head of Education and Skills,054640,Durham Learning Resources 054640,Supplies and Services,304245,Equipment and Materials,01-Aug-2019,000006578075458,AMZNMktplace,5999,Materials,9.63,1.62,8.01
Children and Young Peoples Services,Head of Education and Skills,054640,Durham Learning Resources 054640,Supplies and Services,304245,Equipment and Materials,01-Aug-2019,000006578075460,AMZNMktplace,5999,Materials,8.99,1.50,7.49
Regeneration and Local Services,Development and Housing,031576,B& B - Temp Accom,Supplies and Services,352001,Conference Expenses,01-Aug-2019,000006578075462,HAYAT HOTEL,7011,Conferencesseminars fees etc,89.00,0.00,89.00
Regeneration and Local Services,Development and Housing,030771,Durham Advance Flexible Fund,Supplies and Services,304403,Equipment and Materials,01-Aug-2019,000006578075464,PARTICIPANT UK LIMITED,5734,Other consumables,110.00,18.33,91.67
Children and Young Peoples Services,Head of Childrens Social Care,085357,LAC Bespoke Placements,Transport,235057,Public Transport,01-Aug-2019,000006578075466,HOLIDAY PAYMENT VRUK,4722,Staff travelling,545.00,0.00,545.00
Children and Young Peoples Services,Head of Education and Skills,078411,16-19 Education & Training,Supplies and Services,304259,Equipment and Materials,01-Aug-2019,000006578075490,WWW.READING.GOV.UK,9399,Equipment-purchase and rental,11.00,0.00,11.00
Adult and Health Services,Head of Adults,055302,Durham Pathways,Supplies and Services,324117,Provisions E324,01-Aug-2019,000006578075494,ALDI 59 774,5411,Catering costs - provisions,1.49,0.00,1.49
Regeneration and Local Services,Environmental Services,010383,C&G - South Street Cleansing,Supplies and Services,304221,Equipment and Materials,01-Aug-2019,000006578075496,R DEFTY,5200,Direct materials,5.00,0.83,4.17
Children and Young Peoples Services,Head of Childrens Social Care,085621,Families First Aycliffe,Supplies and Services,304221,Equipment and Materials,01-Aug-2019,000006578075498,BISHOP AUCKLAND GLAZIN,1799,Direct materials,121.00,20.17,100.83
Children and Young Peoples Services,Head of Childrens Social Care,085333,Coxhoe Satelite Home,Supplies and Services,328041,Clothing uniforms and laundry E328,01-Aug-2019,000006578075510,B & M RETAIL,5310,Clothing uniforms and laundry,2.59,0.00,2.59
Children and Young Peoples Services,Head of Childrens Social Care,085333,Coxhoe Satelite Home,Supplies and Services,328041,Clothing uniforms and laundry E328,01-Aug-2019,000006578075512,CLEARANCE BARGAINS,5310,Clothing uniforms and laundry,99.99,0.00,99.99
Regeneration and Local Services,Corporate Property and Land,021242,Catering - County Hall,Premises,145009,Cleaning and Domestic Supplies,01-Aug-2019,000006578075544,ALLIANCE DISPOSABLES L,2842,Other cleaning and domestic costs,291.30,48.55,242.75
Regeneration and Local Services,Corporate Property and Land,021242,Catering - County Hall,Premises,145009,Cleaning and Domestic Supplies,01-Aug-2019,000006578075544 - 1,ALLIANCE DISPOSABLES L,2842,Other cleaning and domestic costs,0.04,,0.04
Regeneration and Local Services,Culture Sport and Tourism,054235,Bishop Auckland Town Hall Cafe,Supplies and Services,324117,Provisions E324,01-Aug-2019,000006578075550,HERON FOODS LTD,5499,Catering costs - provisions,13.53,0.00,13.53
Regeneration and Local Services,Environmental Services,010367,C&G - South Grounds Maintenance,Supplies and Services,304221,Equipment and Materials,01-Aug-2019,000006578075566,HARELAW SAWMILL,5211,Direct materials,35.02,5.84,29.18
Regeneration and Local Services,Development and Housing,030773,CLLD North,Supplies and Services,340001,Postages E340,01-Aug-2019,000006578075628,POST OFFICE COUNTER,9402,Postages,94.75,0.00,94.75
Regeneration and Local Services,Development and Housing,030773,CLLD North,Supplies and Services,304259,Equipment and Materials,01-Aug-2019,000006578075632,DARLINGTON BC INTERNET,9399,Equipment-purchase and rental,11.00,0.00,11.00
Children and Young Peoples Services,Head of Childrens Social Care,085361,LAC & Permanence Team 1,Supplies and Services,384999,Miscellaneous Expenses,01-Aug-2019,000006578075638,Durham County CNCL,9399,Other expenses,-11.00,0.00,-11.00
Children and Young Peoples Services,Head of Childrens Social Care,085333,Coxhoe Satelite Home,Supplies and Services,328041,Clothing uniforms and laundry E328,01-Aug-2019,000006578075648,B & M RETAIL,5310,Clothing uniforms and laundry,16.96,0.00,16.96
Children and Young Peoples Services,Head of Childrens Social Care,085334,West Rainton Satelite Home,Supplies and Services,328041,Clothing uniforms and laundry E328,01-Aug-2019,000006578075704,B & M RETAIL,5310,Clothing uniforms and laundry,19.96,0.00,19.96
Children and Young Peoples Services,Head of Childrens Social Care,085334,West Rainton Satelite Home,Supplies and Services,328041,Clothing uniforms and laundry E328,01-Aug-2019,000006578075708,B & M RETAIL,5310,Clothing uniforms and laundry,14.55,0.00,14.55
Children and Young Peoples Services,Head of Childrens Social Care,085334,West Rainton Satelite Home,Supplies and Services,324117,Provisions E324,01-Aug-2019,000006578075714,ALDI 12 774,5411,Catering costs - provisions,56.58,0.00,56.58
Children and Young Peoples Services,Head of Childrens Social Care,085352,Tow Law CU,Supplies and Services,384302,Miscellaneous Expenses,01-Aug-2019,000006578075722,www.groupon.co.uk,7278,Activity expenses,15.00,0.00,15.00
Children and Young Peoples Services,Head of Childrens Social Care,085352,Tow Law CU,Supplies and Services,304403,Equipment and Materials,01-Aug-2019,000006578075728,AMZNMktplace,5999,Other consumables,16.74,2.79,13.95
Children and Young Peoples Services,Head of Childrens Social Care,085352,Tow Law CU,Supplies and Services,304403,Equipment and Materials,01-Aug-2019,000006578075728 - 1,AMZNMktplace,5999,Other consumables,0.03,,0.03
Children and Young Peoples Services,Head of Childrens Social Care,085352,Tow Law CU,Supplies and Services,304403,Equipment and Materials,01-Aug-2019,000006578075732,AMZNMktplace,5999,Other consumables,3.97,0.66,3.31
Children and Young Peoples Services,Head of Childrens Social Care,085352,Tow Law CU,Supplies and Services,304403,Equipment and Materials,01-Aug-2019,000006578075738,AMZNMktplace,5999,Other consumables,5.77,0.96,4.81
Children and Young Peoples Services,Head of Childrens Social Care,085352,Tow Law CU,Supplies and Services,332047,Printing Stationery and Gen Off Exps,01-Aug-2019,000006578075742,Vue Cinemas,7832,Stationery,6.00,0.00,6.00
Children and Young Peoples Services,Head of Childrens Social Care,085352,Tow Law CU,Supplies and Services,332047,Printing Stationery and Gen Off Exps,01-Aug-2019,000006578075746,Vue Cinemas,7832,Stationery,6.00,0.00,6.00
Children and Young Peoples Services,Head of Childrens Social Care,085352,Tow Law CU,Supplies and Services,332047,Printing Stationery and Gen Off Exps,01-Aug-2019,000006578075752,VUE CINEMAS WWW,7832,Stationery,17.22,0.00,17.22
Children and Young Peoples Services,Head of Early Help Inclusion & Vulnerable Children.,088109,Spennymoor & Shildon 0-19 Community Family Hub,Supplies and Services,324117,Provisions E324,01-Aug-2019,000006578075786,ASDA STORES,5411,Catering costs - provisions,5.50,0.00,5.50
Children and Young Peoples Services,Head of Early Help Inclusion & Vulnerable Children.,088109,Spennymoor & Shildon 0-19 Community Family Hub,Supplies and Services,324117,Provisions E324,01-Aug-2019,000006578075792,ASDA SUPERSTORE 4987,5411,Catering costs - provisions,61.65,0.00,61.65
Children and Young Peoples Services,Head of Education and Skills,071732,Dean Bank Childcare,Supplies and Services,312011,Newspapers books and periodicals E312,01-Aug-2019,000006578075824,AMZN MKTP UK MH5IM6MX4,5942,Books-school library,187.50,31.25,156.25
Children and Young Peoples Services,Head of Education and Skills,071903,EYDCP-Sustainability EDS,Supplies and Services,304259,Equipment and Materials,01-Aug-2019,000006578075886,OFSTED INTERNET,9399,Equipment-purchase and rental,7.00,0.00,7.00
Children and Young Peoples Services,Head of Education and Skills,071903,EYDCP-Sustainability EDS,Supplies and Services,352001,Conference Expenses,01-Aug-2019,000006578075888,FOOD & NUT,7392,Conferencesseminars fees etc,276.00,46.00,230.00
Children and Young Peoples Services,Head of Early Help Inclusion & Vulnerable Children.,085955,Auckland,Supplies and Services,312011,Newspapers books and periodicals E312,01-Aug-2019,000006578075934,Amazon.co.uk MH5KJ4MB4,5969,Books-school library,12.19,2.03,10.16
Children and Young Peoples Services,Head of Early Help Inclusion & Vulnerable Children.,085957,Secure Management,Supplies and Services,332047,Printing Stationery and Gen Off Exps,01-Aug-2019,000006578075936,AMZNMktplace,5999,Stationery,57.50,9.60,47.90
Children and Young Peoples Services,Head of Early Help Inclusion & Vulnerable Children.,085956,Lumley,Supplies and Services,304403,Equipment and Materials,01-Aug-2019,000006578075940,AMZNMktplace,5999,Other consumables,9.99,0.00,9.99
Children and Young Peoples Services,Head of Early Help Inclusion & Vulnerable Children.,085955,Auckland,Supplies and Services,324117,Provisions E324,01-Aug-2019,000006578075944,TESCO STORES 6329,5411,Catering costs - provisions,82.19,0.00,82.19
Regeneration and Local Services,Environmental Services,010367,C&G - South Grounds Maintenance,Supplies and Services,304221,Equipment and Materials,01-Aug-2019,000006578075984,MKM PETERLEE,5211,Direct materials,134.35,22.39,111.96
Regeneration and Local Services,Environmental Services,011060,C&G - Hardwick Park Catering,Premises,145009,Cleaning and Domestic Supplies,01-Aug-2019,000006578076004,ALLIANCE DISPOSABLES L,2842,Other cleaning and domestic costs,29.17,4.86,24.31
Regeneration and Local Services,Culture Sport and Tourism,054815,Gala Theatre Stage School,Supplies and Services,304403,Equipment and Materials,01-Aug-2019,000006578076026,AMZNMktplace,5999,Other consumables,23.98,0.00,23.98
Regeneration and Local Services,Culture Sport and Tourism,054815,Gala Theatre Stage School,Supplies and Services,324117,Provisions E324,01-Aug-2019,000006578076028,WAITROSE DIRECT,5411,Catering costs - provisions,-4.95,0.00,-4.95
Regeneration and Local Services,Environmental Services,010919,C&G - Countryside Site Management,Supplies and Services,304221,Equipment and Materials,01-Aug-2019,000006578076048,JEWSON,5211,Direct materials,54.67,9.11,45.56
Regeneration and Local Services,Environmental Services,010919,C&G - Countryside Site Management,Supplies and Services,304221,Equipment and Materials,01-Aug-2019,000006578076050,SCREWFIX DIRECT,5200,Direct materials,19.99,0.00,19.99
Regeneration and Local Services,Environmental Services,010919,C&G - Countryside Site Management,Supplies and Services,304259,Equipment and Materials,01-Aug-2019,000006578076054,WILKO DURHAM 426,5722,Equipment-purchase and rental,1.00,0.00,1.00
Children and Young Peoples Services,Head of Childrens Social Care,085352,Tow Law CU,Supplies and Services,304259,Equipment and Materials,01-Aug-2019,000006578076102,OFSTED INTERNET,9399,Equipment-purchase and rental,910.00,151.67,758.33
Children and Young Peoples Services,Head of Childrens Social Care,085352,Tow Law CU,Supplies and Services,332047,Printing Stationery and Gen Off Exps,01-Aug-2019,000006578076104,VUE CINEMAS WWW,7832,Stationery,22.96,3.83,19.13
Children and Young Peoples Services,Head of Early Help Inclusion & Vulnerable Children.,071443,Stanley One Point Hub,Supplies and Services,324117,Provisions E324,01-Aug-2019,000006578076162,TESCO STORES 5184,5411,Catering costs - provisions,146.00,0.00,146.00
Children and Young Peoples Services,Head of Childrens Social Care,085331,New Lea Childrens Home,Supplies and Services,308011,Furniture,01-Aug-2019,000006578076168,SURPLUS STOCK & FACTOR,5719,Furniture repair and replacement,495.00,82.50,412.50
Children and Young Peoples Services,Head of Childrens Social Care,085331,New Lea Childrens Home,Supplies and Services,324117,Provisions E324,01-Aug-2019,000006578076170,ASDA SUPERSTORE,5411,Catering costs - provisions,59.00,0.00,59.00
Resources BK0010,Finance & Transactional Services,065176,Quality/Subsidy/Appeals/Training/Support,Supplies and Services,338048,Services,01-Aug-2019,000006578076220,HMCOURTS-SERVICE.G,9222,Court costs 338048,980.00,0.00,980.00
Children and Young Peoples Services,Head of Childrens Social Care,085342,9 Cedar Drive Aycliffe,Supplies and Services,312011,Newspapers books and periodicals E312,01-Aug-2019,000006578076264,HOME BARGAINS,5251,Books-school library,30.73,0.00,30.73
Children and Young Peoples Services,Head of Childrens Social Care,085342,9 Cedar Drive Aycliffe,Supplies and Services,304403,Equipment and Materials,01-Aug-2019,000006578076266,CARD FACTORY,5947,Other consumables,12.12,0.00,12.12
Children and Young Peoples Services,Head of Childrens Social Care,085342,9 Cedar Drive Aycliffe,Supplies and Services,304259,Equipment and Materials,01-Aug-2019,000006578076270,JD SPORTS PLC,5941,Equipment-purchase and rental,9.00,0.00,9.00
Adult and Health Services,Head of Adults,055301,Stanley Pathways,Supplies and Services,324117,Provisions E324,01-Aug-2019,000006578076284,TESCO STORES 5457,5411,Catering costs - provisions,5.00,0.00,5.00
Children and Young Peoples Services,Head of Early Help Inclusion & Vulnerable Children.,088100,Durham West & CLS 0-19 Targeted Family Support,Supplies and Services,304403,Equipment and Materials,01-Aug-2019,000006578076500,AMZNMktplace,5999,Other consumables,7.99,0.00,7.99
Children and Young Peoples Services,Head of Early Help Inclusion & Vulnerable Children.,088100,Durham West & CLS 0-19 Targeted Family Support,Supplies and Services,312011,Newspapers books and periodicals E312,01-Aug-2019,000006578076514,Amazon.co.uk MH1N70554,5969,Books-school library,21.98,0.00,21.98
Children and Young Peoples Services,Head of Early Help Inclusion & Vulnerable Children.,085957,Secure Management,Supplies and Services,304403,Equipment and Materials,01-Aug-2019,000006578076536,AMZNMktplace,5999,Other consumables,31.98,5.34,26.64
Children and Young Peoples Services,Head of Early Help Inclusion & Vulnerable Children.,085956,Lumley,Premises,115125,Repairs to Grounds,01-Aug-2019,000006578076544,B&Q DIRECT,5200,General maintenance,80.00,0.00,80.00
Children and Young Peoples Services,Head of Early Help Inclusion & Vulnerable Children.,085962,Aycliffe Secure - Durham,Supplies and Services,384999,Miscellaneous Expenses,01-Aug-2019,000006578076546,WWW.ARGOS.CO.UK,5310,Other expenses,-50.00,0.00,-50.00
Children and Young Peoples Services,Head of Early Help Inclusion & Vulnerable Children.,085962,Aycliffe Secure - Durham,Supplies and Services,384999,Miscellaneous Expenses,01-Aug-2019,000006578076550,WWW.ARGOS.CO.UK,5310,Other expenses,-3.95,0.00,-3.95
Children and Young Peoples Services,Head of Early Help Inclusion & Vulnerable Children.,079027,Behaviour Intervention Team,Supplies and Services,304403,Equipment and Materials,01-Aug-2019,000006578076554,AMZNMktplace,5999,Other consumables,24.97,4.16,20.81
Transformation and Partnerships,Business Support,052986,CYPS - Locality and Operational Support,Supplies and Services,384999,Miscellaneous Expenses,01-Aug-2019,000006578076556,PETERLEE LEISURE C,7997,Other expenses,15.00,0.00,15.00
Children and Young Peoples Services,Head of Childrens Social Care,085333,Coxhoe Satelite Home,Supplies and Services,324117,Provisions E324,01-Aug-2019,000006578076574,TESCO STORES 2916,5411,Catering costs - provisions,123.26,0.00,123.26
Children and Young Peoples Services,Head of Childrens Social Care,085333,Coxhoe Satelite Home,Supplies and Services,324117,Provisions E324,01-Aug-2019,000006578076578,STARBUCKS THINFORD,5499,Catering costs - provisions,11.90,0.00,11.90
Children and Young Peoples Services,Head of Childrens Social Care,085333,Coxhoe Satelite Home,Supplies and Services,304259,Equipment and Materials,01-Aug-2019,000006578076580,WILKO RETAIL LIMIT,5722,Equipment-purchase and rental,25.49,0.00,25.49
Children and Young Peoples Services,Head of Education and Skills,071802,Louisa Cent Nursery,Supplies and Services,324117,Provisions E324,01-Aug-2019,000006578076582,ASDA SUPERSTORE,5411,Catering costs - provisions,18.42,0.00,18.42
Children and Young Peoples Services,Head of Education and Skills,071802,Louisa Cent Nursery,Supplies and Services,324117,Provisions E324,01-Aug-2019,000006578076584,ALDI STORES,5411,Catering costs - provisions,32.76,5.46,27.30
Children and Young Peoples Services,Head of Education and Skills,071802,Louisa Cent Nursery,Supplies and Services,324117,Provisions E324,01-Aug-2019,000006578076584 - 1,ALDI STORES,5411,Catering costs - provisions,27.51,,27.51
Children and Young Peoples Services,Head of Early Help Inclusion & Vulnerable Children.,088107,Ferryhill & Newton Aycliffe 0-19 Community Family Hub,Supplies and Services,324117,Provisions E324,01-Aug-2019,000006578076622,TESCO STORES 2916,5411,Catering costs - provisions,8.00,0.00,8.00
Children and Young Peoples Services,Head of Early Help Inclusion & Vulnerable Children.,088107,Ferryhill & Newton Aycliffe 0-19 Community Family Hub,Supplies and Services,324117,Provisions E324,01-Aug-2019,000006578076624,TESCO STORES 2916,5411,Catering costs - provisions,8.00,0.00,8.00
Children and Young Peoples Services,Head of Early Help Inclusion & Vulnerable Children.,088107,Ferryhill & Newton Aycliffe 0-19 Community Family Hub,Supplies and Services,324117,Provisions E324,01-Aug-2019,000006578076626,TESCO STORES 2916,5411,Catering costs - provisions,8.00,0.00,8.00
Children and Young Peoples Services,Head of Early Help Inclusion & Vulnerable Children.,088107,Ferryhill & Newton Aycliffe 0-19 Community Family Hub,Supplies and Services,328041,Clothing uniforms and laundry E328,01-Aug-2019,000006578076628,ARGOS LTD,5310,Clothing uniforms and laundry,15.00,0.00,15.00
Children and Young Peoples Services,Head of Early Help Inclusion & Vulnerable Children.,088107,Ferryhill & Newton Aycliffe 0-19 Community Family Hub,Supplies and Services,328041,Clothing uniforms and laundry E328,01-Aug-2019,000006578076630,ARGOS LTD,5310,Clothing uniforms and laundry,25.00,0.00,25.00
Regeneration and Local Services,Environmental Services,031200,North Pennines Core,Supplies and Services,304221,Equipment and Materials,01-Aug-2019,000006578076632,B & Q 1237,5200,Direct materials,9.00,0.00,9.00
Transformation and Partnerships,Business Support,069010,Administration 069010,Supplies and Services,332047,Printing Stationery and Gen Off Exps,01-Aug-2019,000006578076648,WWW.NEOPOST.CO.UK,5111,Stationery,500.00,0.00,500.00
Regeneration and Local Services,Development and Housing,030771,Durham Advance Flexible Fund,Supplies and Services,328041,Clothing uniforms and laundry E328,01-Aug-2019,000006578076658,MATALAN,5691,Clothing uniforms and laundry,45.00,7.50,37.50
Regeneration and Local Services,Development and Housing,030771,Durham Advance Flexible Fund,Transport,235057,Public Transport,01-Aug-2019,000006578076660,GO NORTH EAST LIMITED,4131,Staff travelling,7.00,0.00,7.00
Adult and Health Services,Head of Adults,055309,Peterlee Pathways,Supplies and Services,304403,Equipment and Materials,01-Aug-2019,000006578076664,AMZNMKTPLACE AMAZON.CO,5999,Other consumables,20.65,3.45,17.20
Children and Young Peoples Services,Head of Childrens Social Care,085352,Tow Law CU,Supplies and Services,384999,Miscellaneous Expenses,01-Aug-2019,000008652714465,SUNDERLAND AFC LTD,7997,Other expenses,31.50,0.00,31.50
Regeneration and Local Services,Corporate Property and Land,021242,Catering - County Hall,Supplies and Services,324117,Provisions E324,01-Aug-2019,000008652714473,BATLEYS PERTH,5300,Catering costs - provisions,953.82,158.97,794.85
Regeneration and Local Services,Corporate Property and Land,021242,Catering - County Hall,Supplies and Services,324117,Provisions E324,01-Aug-2019,000008652714473 - 1,BATLEYS PERTH,5300,Catering costs - provisions,56.68,,56.68
Regeneration and Local Services,Environmental Services,011060,C&G - Hardwick Park Catering,Supplies and Services,324117,Provisions E324,01-Aug-2019,000008652714603,BATLEYS PERTH,5300,Catering costs - provisions,227.34,37.89,189.45
Regeneration and Local Services,Environmental Services,011060,C&G - Hardwick Park Catering,Supplies and Services,324117,Provisions E324,01-Aug-2019,000008652714603 - 1,BATLEYS PERTH,5300,Catering costs - provisions,71.64,,71.64
Regeneration and Local Services,Environmental Services,011060,C&G - Hardwick Park Catering,Supplies and Services,324117,Provisions E324,01-Aug-2019,000008652714605,BATLEYS PERTH,5300,Catering costs - provisions,42.12,7.02,35.10
Regeneration and Local Services,Environmental Services,011060,C&G - Hardwick Park Catering,Supplies and Services,324117,Provisions E324,01-Aug-2019,000008652714605 - 1,BATLEYS PERTH,5300,Catering costs - provisions,55.68,,55.68
Regeneration and Local Services,Culture Sport and Tourism,054815,Gala Theatre Stage School,Supplies and Services,304403,Equipment and Materials,01-Aug-2019,000008652714613,PAYPAL SHARONBOWYE,5999,Other consumables,7.89,0.00,7.89
Regeneration and Local Services,Development and Housing,031500,Housing Solutions - Core Team,Employees,040149,Recruitment Instruction and Training,01-Aug-2019,000008652714709,PREMIER INN,3811,Training-all costs,83.50,13.92,69.58
Regeneration and Local Services,Development and Housing,031576,B& B - Temp Accom,Supplies and Services,364320,Grants to Voluntary Organisations,01-Aug-2019,000008652714729,PREMIER INN,3811,Accommodation assistance,83.50,0.00,83.50
Regeneration and Local Services,Corporate Property and Land,021324,Catering - Meadowfield,Supplies and Services,324117,Provisions E324,01-Aug-2019,000008652714761,BATLEYS PERTH,5300,Catering costs - provisions,-36.91,-6.15,-30.76
Children and Young Peoples Services,Head of Childrens Social Care,085341,High Etherley Satelite Home,Supplies and Services,324117,Provisions E324,02-Aug-2019,000008652714337,TESCO STORES 6329,5411,Catering costs - provisions,28.35,0.00,28.35
Regeneration and Local Services,Development and Housing,031576,B& B - Temp Accom,Supplies and Services,352001,Conference Expenses,02-Aug-2019,000008652714347,HAYAT HOTEL,7011,Conferencesseminars fees etc,267.00,0.00,267.00
Regeneration and Local Services,Development and Housing,031500,Housing Solutions - Core Team,Supplies and Services,364320,Grants to Voluntary Organisations,02-Aug-2019,000008652714379,HAYAT HOTEL,7011,Accommodation assistance,500.00,0.00,500.00
Regeneration and Local Services,Development and Housing,031500,Housing Solutions - Core Team,Supplies and Services,364320,Grants to Voluntary Organisations,02-Aug-2019,000008652714381,HAYAT HOTEL,7011,Accommodation assistance,200.00,0.00,200.00
Regeneration and Local Services,Development and Housing,031500,Housing Solutions - Core Team,Supplies and Services,364320,Grants to Voluntary Organisations,02-Aug-2019,000008652714383,HAYAT HOTEL,7011,Accommodation assistance,123.00,0.00,123.00
Regeneration and Local Services,Development and Housing,031500,Housing Solutions - Core Team,Supplies and Services,364320,Grants to Voluntary Organisations,02-Aug-2019,000008652714385,HAYAT HOTEL,7011,Accommodation assistance,500.00,0.00,500.00
Children and Young Peoples Services,Head of Education and Skills,078411,16-19 Education & Training,Supplies and Services,304259,Equipment and Materials,02-Aug-2019,000008652714389,HARTLEPOOL BC CNP,9399,Equipment-purchase and rental,11.00,0.00,11.00
Children and Young Peoples Services,Head of Education and Skills,078411,16-19 Education & Training,Supplies and Services,304259,Equipment and Materials,02-Aug-2019,000008652714395,PETERBOROUGH DIRECT,9399,Equipment-purchase and rental,11.00,0.00,11.00
Children and Young Peoples Services,Head of Education and Skills,078411,16-19 Education & Training,Employees,040149,Recruitment Instruction and Training,02-Aug-2019,000008652714401,VIRTUAL COLLEGE LIMITE,8299,Training-all costs,24.00,4.00,20.00
Regeneration and Local Services,Environmental Services,031201,Earthworks,Supplies and Services,342053,Computers and Communications,02-Aug-2019,000008652714407,WOOBOX,5045,Computer software,30.60,0.00,30.60
Regeneration and Local Services,Culture Sport and Tourism,030708,VCD - Marketing & Information,Supplies and Services,384199,Miscellaneous Expenses,02-Aug-2019,000008652714413,MAILCHIMP MONTHLY,5968,Other hired and contracted services,250.26,41.71,208.55
Children and Young Peoples Services,Head of Childrens Social Care,085621,Families First Aycliffe,Supplies and Services,324117,Provisions E324,02-Aug-2019,000008652714417,REPLACEMENT KEYS LTD,5399,Catering costs - provisions,5.90,0.98,4.92
Regeneration and Local Services,Business Durham CL0850,030699,Business Growth and Innovation General,Supplies and Services,304403,Equipment and Materials,02-Aug-2019,000008652714419,ADOBE CREATIVE CLOUD,5734,Other consumables,49.94,0.00,49.94
Regeneration and Local Services,Business Durham CL0850,030699,Business Growth and Innovation General,Supplies and Services,312011,Newspapers books and periodicals E312,02-Aug-2019,000008652714427,FASTHOSTS INTERNET,4816,Books-school library,72.66,0.00,72.66
Regeneration and Local Services,Business Durham CL0850,030699,Business Growth and Innovation General,Supplies and Services,312011,Newspapers books and periodicals E312,02-Aug-2019,000008652714429,FASTHOSTS INTERNET,4816,Books-school library,66.30,0.00,66.30
Children and Young Peoples Services,Head of Childrens Social Care,085333,Coxhoe Satelite Home,Supplies and Services,304221,Equipment and Materials,02-Aug-2019,000008652714451,B & Q 1343,5200,Direct materials,3.57,0.00,3.57
Children and Young Peoples Services,Head of Childrens Social Care,085333,Coxhoe Satelite Home,Supplies and Services,328041,Clothing uniforms and laundry E328,02-Aug-2019,000008652714453,B & M RETAIL,5310,Clothing uniforms and laundry,57.58,0.00,57.58
Children and Young Peoples Services,Head of Childrens Social Care,085333,Coxhoe Satelite Home,Supplies and Services,328041,Clothing uniforms and laundry E328,02-Aug-2019,000008652714455,B & M RETAIL,5310,Clothing uniforms and laundry,-39.99,0.00,-39.99
Resources BK0010,Digital and Customer Services,065481,Technical Services 065481,Supplies and Services,372009,Subscriptions E372,02-Aug-2019,000008652714477,NOMINET UK,7392,Subscriptions 372009,120.00,0.00,120.00
Regeneration and Local Services,Environmental Services,010367,C&G - South Grounds Maintenance,Supplies and Services,304221,Equipment and Materials,02-Aug-2019,000008652714481,JT ATKINSON & SONS LTD,5211,Direct materials,5.32,0.89,4.43
Children and Young Peoples Services,Head of Childrens Social Care,085362,LAC & Permanence Team 2,Supplies and Services,384871,Miscellaneous Expenses,02-Aug-2019,000008652714489,WWW.INFINITEAIR.CO.UK,7991,Training-other activities,23.90,0.00,23.90
Children and Young Peoples Services,Head of Childrens Social Care,085362,LAC & Permanence Team 2,Supplies and Services,328041,Clothing uniforms and laundry E328,02-Aug-2019,000008652714493,WWW.ELIZABETHSEMBRIODE,5949,Clothing uniforms and laundry,52.00,0.00,52.00
Children and Young Peoples Services,Head of Childrens Social Care,085333,Coxhoe Satelite Home,Supplies and Services,304259,Equipment and Materials,02-Aug-2019,000008652714497,PAYPAL HK JOIN,5732,Equipment-purchase and rental,56.67,0.00,56.67
Children and Young Peoples Services,Head of Childrens Social Care,085333,Coxhoe Satelite Home,Supplies and Services,312011,Newspapers books and periodicals E312,02-Aug-2019,000008652714499,Amazon.co.uk MH64N9HL4,5969,Books-school library,17.00,0.00,17.00
Regeneration and Local Services,Development and Housing,031500,Housing Solutions - Core Team,Supplies and Services,304259,Equipment and Materials,02-Aug-2019,000008652714537,WWW.DALEANDVALLEYHOMES,9399,Equipment-purchase and rental,203.76,0.00,203.76
Adult and Health Services,Head of Adults,055202,Support and Recovery,Supplies and Services,328041,Clothing uniforms and laundry E328,02-Aug-2019,000008652714543,ARGOS RETAIL GROUP,5310,Clothing uniforms and laundry,13.99,0.00,13.99
Regeneration and Local Services,Culture Sport and Tourism,010991,County-wide FISCH,Supplies and Services,324117,Provisions E324,02-Aug-2019,000008652714545,WM MORRISONS STORE,5411,Catering costs - provisions,3.20,0.00,3.20
Regeneration and Local Services,Development and Housing,031500,Housing Solutions - Core Team,Supplies and Services,352001,Conference Expenses,02-Aug-2019,000008652714553,HAYAT HOTEL,7011,Conferencesseminars fees etc,89.00,14.83,74.17
Regeneration and Local Services,Business Durham CL0850,030674,Business Services General,Supplies and Services,352001,Conference Expenses,02-Aug-2019,000008652714559,Hotel on Booking.com 3,7011,Conferencesseminars fees etc,"1,318.10",0.00,1318.10
Children and Young Peoples Services,Head of Early Help Inclusion & Vulnerable Children.,085965,Barnard,Supplies and Services,324117,Provisions E324,02-Aug-2019,000008652714563,TESCO STORES 6329,5411,Catering costs - provisions,93.59,0.00,93.59
Regeneration and Local Services,Culture Sport and Tourism,054813,Gala Theatre - Technical,Supplies and Services,304403,Equipment and Materials,02-Aug-2019,000008652714573,AMZNMktplace,5999,Other consumables,118.94,0.00,118.94
Regeneration and Local Services,Culture Sport and Tourism,054813,Gala Theatre - Technical,Supplies and Services,312011,Newspapers books and periodicals E312,02-Aug-2019,000008652714575,Amazon.co.uk MH4KE75R4,5969,Books-school library,50.30,0.00,50.30
Regeneration and Local Services,Culture Sport and Tourism,054813,Gala Theatre - Technical,Supplies and Services,304403,Equipment and Materials,02-Aug-2019,000008652714579,AMZNMktplace,5999,Other consumables,36.44,0.00,36.44
Regeneration and Local Services,Culture Sport and Tourism,054813,Gala Theatre - Technical,Supplies and Services,304403,Equipment and Materials,02-Aug-2019,000008652714581,AMZNMktplace,5999,Other consumables,17.97,0.00,17.97
Regeneration and Local Services,Culture Sport and Tourism,054813,Gala Theatre - Technical,Supplies and Services,304259,Equipment and Materials,02-Aug-2019,000008652714583,Prime Video MH3E505C4,5735,Equipment-purchase and rental,5.99,0.00,5.99
Regeneration and Local Services,Culture Sport and Tourism,054813,Gala Theatre - Technical,Supplies and Services,328041,Clothing uniforms and laundry E328,02-Aug-2019,000008652714591,WWW.ARGOS.CO.UK,5310,Clothing uniforms and laundry,98.94,0.00,98.94
Regeneration and Local Services,Environmental Services,010367,C&G - South Grounds Maintenance,Supplies and Services,304221,Equipment and Materials,02-Aug-2019,000008652714601,SCREWFIX PETERLEE,5211,Direct materials,15.98,2.66,13.32
Regeneration and Local Services,Culture Sport and Tourism,054815,Gala Theatre Stage School,Supplies and Services,384999,Miscellaneous Expenses,02-Aug-2019,000008652714615,DETAILS,5970,Other expenses,4.40,0.00,4.40
Regeneration and Local Services,Culture Sport and Tourism,054815,Gala Theatre Stage School,Supplies and Services,304259,Equipment and Materials,02-Aug-2019,000008652714619,WILKO RETAIL LIMIT,5722,Equipment-purchase and rental,9.00,0.00,9.00
Regeneration and Local Services,Culture Sport and Tourism,054815,Gala Theatre Stage School,Supplies and Services,304259,Equipment and Materials,02-Aug-2019,000008652714623,WILKO RETAIL LIMIT,5722,Equipment-purchase and rental,22.00,0.00,22.00
Transformation and Partnerships,Transformation,060131,County Records,Supplies and Services,304259,Equipment and Materials,02-Aug-2019,000008652714645,CARDIFF COUNCIL EPAY,9399,Equipment-purchase and rental,21.50,0.00,21.50
Regeneration and Local Services,Development and Housing,030771,Durham Advance Flexible Fund,Transport,235057,Public Transport,02-Aug-2019,000008652714651,AUCKLAND CASTLE,7523,Staff travelling,0.60,0.00,0.60
Children and Young Peoples Services,Head of Early Help Inclusion & Vulnerable Children.,088108,Spennymoor & Shildon 0-19 Targeted Family Support,Supplies and Services,384999,Miscellaneous Expenses,02-Aug-2019,000008652714663,TESCO STORES 6329,5411,Other expenses,27.50,0.00,27.50
Children and Young Peoples Services,Head of Early Help Inclusion & Vulnerable Children.,088108,Spennymoor & Shildon 0-19 Targeted Family Support,Premises,145023,Cleaning and Domestic Supplies,02-Aug-2019,000008652714665,HOME BARGAINS,5251,Cleaning and domestic materials,31.33,0.00,31.33
Children and Young Peoples Services,Head of Childrens Social Care,085333,Coxhoe Satelite Home,Supplies and Services,324117,Provisions E324,02-Aug-2019,000008652714691,SAINSBURYS (2303),5411,Catering costs - provisions,8.00,0.00,8.00
Children and Young Peoples Services,Head of Childrens Social Care,085333,Coxhoe Satelite Home,Supplies and Services,324117,Provisions E324,02-Aug-2019,000008652714693,SAINSBURYS (2303),5411,Catering costs - provisions,4.40,0.00,4.40
Regeneration and Local Services,Development and Housing,031500,Housing Solutions - Core Team,Employees,040149,Recruitment Instruction and Training,02-Aug-2019,000008652714711,PREMIER INN,3811,Training-all costs,262.00,43.67,218.33
Children and Young Peoples Services,Head of Childrens Social Care,085352,Tow Law CU,Supplies and Services,304999,Equipment and Materials,02-Aug-2019,000008652714723,GREENHAM TRADING LTD,5072,Misc equipment tools and materials,205.91,34.32,171.59
Children and Young Peoples Services,Head of Childrens Social Care,085352,Tow Law CU,Supplies and Services,324117,Provisions E324,02-Aug-2019,000008652714725,TESCO STORES 2371,5411,Catering costs - provisions,73.94,0.00,73.94
Regeneration and Local Services,Culture Sport and Tourism,054399,Local Delivery-Libraries,Supplies and Services,312011,Newspapers books and periodicals E312,02-Aug-2019,000008652714733,Amazon.co.uk MH7OK55R4,5969,Books-school library,12.99,0.00,12.99
Regeneration and Local Services,Environmental Services,010301,C&G - North Grounds Maintenance,Supplies and Services,312011,Newspapers books and periodicals E312,02-Aug-2019,000008652714739,GRALANDS WOODWORK SUPP,5251,Books-school library,5.00,0.00,5.00
Regeneration and Local Services,Environmental Services,010301,C&G - North Grounds Maintenance,Supplies and Services,304403,Equipment and Materials,02-Aug-2019,000008652714741,BESCOL,5231,Other consumables,95.66,15.94,79.72
Children and Young Peoples Services,Head of Early Help Inclusion & Vulnerable Children.,088100,Durham West & CLS 0-19 Targeted Family Support,Supplies and Services,384999,Miscellaneous Expenses,02-Aug-2019,000008652714743,HOLMSIDE PARK,7997,Other expenses,36.00,0.00,36.00
Children and Young Peoples Services,Head of Early Help Inclusion & Vulnerable Children.,085957,Secure Management,Supplies and Services,304403,Equipment and Materials,02-Aug-2019,000008652714745,AMZNMKTPLACE AMAZON.CO,5999,Other consumables,35.39,0.00,35.39
Children and Young Peoples Services,Head of Early Help Inclusion & Vulnerable Children.,085957,Secure Management,Supplies and Services,304649,Equipment and Materials,02-Aug-2019,000008652714747,SMYTHSTOYS.COM,5945,Toys,20.98,0.00,20.98
Transformation and Partnerships,Business Support,052986,CYPS - Locality and Operational Support,Supplies and Services,328041,Clothing uniforms and laundry E328,02-Aug-2019,000008652714755,WWW.ARGOS.CO.UK,5310,Clothing uniforms and laundry,173.95,0.00,173.95
Regeneration and Local Services,Business Durham CL0850,030690,Durham Dales Centre - Tourist Information Centre,Supplies and Services,304403,Equipment and Materials,02-Aug-2019,000008652714757,LITTLE SPRING LTD,5947,Other consumables,868.08,144.68,723.40
Regeneration and Local Services,Business Durham CL0850,030690,Durham Dales Centre - Tourist Information Centre,Supplies and Services,384999,Miscellaneous Expenses,02-Aug-2019,000008652714759,WWW.HINGES.CO.UK,5046,Other expenses,323.36,53.89,269.47
Regeneration and Local Services,Development and Housing,031576,B& B - Temp Accom,Supplies and Services,364320,Grants to Voluntary Organisations,02-Aug-2019,000008652714767,PREMIER INN,3811,Accommodation assistance,205.00,0.00,205.00
Children and Young Peoples Services,Head of Education and Skills,071802,Louisa Cent Nursery,Supplies and Services,324117,Provisions E324,02-Aug-2019,000008652714773,ASDA SUPERSTORE,5411,Catering costs - provisions,24.76,0.00,24.76
Children and Young Peoples Services,Head of Childrens Social Care,085332,Middlestone Moor CU,Supplies and Services,324117,Provisions E324,02-Aug-2019,000008652714799,ASDA SUPERSTORE 4987,5411,Catering costs - provisions,174.30,0.00,174.30
Children and Young Peoples Services,Head of Childrens Social Care,085332,Middlestone Moor CU,Supplies and Services,324117,Provisions E324,02-Aug-2019,000008652714801,ALDI 59 774,5411,Catering costs - provisions,1.70,0.00,1.70
Transformation and Partnerships,Business Support,069010,Administration 069010,Supplies and Services,384999,Miscellaneous Expenses,02-Aug-2019,000008652714823,PRACTICALLY PERFECT PA,7922,Other expenses,60.00,10.00,50.00
Transformation and Partnerships,Business Support,069010,Administration 069010,Supplies and Services,384999,Miscellaneous Expenses,02-Aug-2019,000008652714825,PRACTICALLY PERFECT PA,7922,Other expenses,96.00,16.00,80.00
Adult and Health Services,Head of Adults,055309,Peterlee Pathways,Supplies and Services,304403,Equipment and Materials,02-Aug-2019,000008652714827,AMZNMKTPLACE AMAZON.CO,5999,Other consumables,1.59,0.27,1.32
Adult and Health Services,Head of Adults,055309,Peterlee Pathways,Supplies and Services,304403,Equipment and Materials,02-Aug-2019,000008652714829,AMZNMKTPLACE AMAZON.CO,5999,Other consumables,1.20,0.20,1.00
Adult and Health Services,Head of Adults,055309,Peterlee Pathways,Supplies and Services,304403,Equipment and Materials,02-Aug-2019,000008652714833,AMZNMKTPLACE AMAZON.CO,5999,Other consumables,25.99,4.33,21.66
Children and Young Peoples Services,Head of Childrens Social Care,085334,West Rainton Satelite Home,Supplies and Services,304259,Equipment and Materials,02-Aug-2019,000008652714835,CURRYS,5732,Equipment-purchase and rental,4.99,0.00,4.99
Regeneration and Local Services,Environmental Services,011060,C&G - Hardwick Park Catering,Supplies and Services,324117,Provisions E324,02-Aug-2019,000008660199991,BATLEYS PERTH,5300,Catering costs - provisions,126.06,21.01,105.05
Regeneration and Local Services,Environmental Services,011060,C&G - Hardwick Park Catering,Supplies and Services,324117,Provisions E324,02-Aug-2019,000008660199991 - 1,BATLEYS PERTH,5300,Catering costs - provisions,161.92,,161.92
Regeneration and Local Services,Corporate Property and Land,021234,Catering - Locomotion,Supplies and Services,324117,Provisions E324,02-Aug-2019,000008660200067,BATLEYS PERTH,5300,Catering costs - provisions,218.28,36.38,181.90
Regeneration and Local Services,Corporate Property and Land,021234,Catering - Locomotion,Supplies and Services,324117,Provisions E324,02-Aug-2019,000008660200067 - 1,BATLEYS PERTH,5300,Catering costs - provisions,14.46,,14.46
Regeneration and Local Services,Corporate Property and Land,010525,Catering - Green Lane,Supplies and Services,324117,Provisions E324,02-Aug-2019,000008660200143,BATLEYS PERTH,5300,Catering costs - provisions,83.40,13.90,69.50
Regeneration and Local Services,Corporate Property and Land,010525,Catering - Green Lane,Supplies and Services,324117,Provisions E324,02-Aug-2019,000008660200143 - 1,BATLEYS PERTH,5300,Catering costs - provisions,71.25,,71.25
Adult and Health Services,Head of Adults,055643,Hawthorn House LD Respite Unit,Supplies and Services,324117,Provisions E324,02-Aug-2019,000008660200325,BATLEYS PERTH,5300,Catering costs - provisions,5.58,0.93,4.65
Adult and Health Services,Head of Adults,055643,Hawthorn House LD Respite Unit,Supplies and Services,324117,Provisions E324,02-Aug-2019,000008660200325 - 1,BATLEYS PERTH,5300,Catering costs - provisions,130.99,,130.99
Children and Young Peoples Services,Head of Early Help Inclusion & Vulnerable Children.,085956,Lumley,Supplies and Services,324117,Provisions E324,03-Aug-2019,000008652714565,TESCO STORES 6329,5411,Catering costs - provisions,80.17,0.00,80.17
Regeneration and Local Services,Culture Sport and Tourism,054813,Gala Theatre - Technical,Supplies and Services,304403,Equipment and Materials,03-Aug-2019,000008652714587,AMZNMktplace,5999,Other consumables,48.49,0.00,48.49
Regeneration and Local Services,Culture Sport and Tourism,054813,Gala Theatre - Technical,Supplies and Services,328041,Clothing uniforms and laundry E328,03-Aug-2019,000008652714589,ARGOS RETAIL GROUP,5310,Clothing uniforms and laundry,94.99,0.00,94.99
Regeneration and Local Services,Culture Sport and Tourism,054815,Gala Theatre Stage School,Supplies and Services,304403,Equipment and Materials,03-Aug-2019,000008652714627,COLLECTABLES DURHAM,5947,Other consumables,37.49,0.00,37.49
Regeneration and Local Services,Culture Sport and Tourism,054815,Gala Theatre Stage School,Supplies and Services,324117,Provisions E324,03-Aug-2019,000008652714631,THORNTONS LTD,5441,Catering costs - provisions,24.15,0.00,24.15
Regeneration and Local Services,Culture Sport and Tourism,054815,Gala Theatre Stage School,Supplies and Services,304999,Equipment and Materials,03-Aug-2019,000008652714633,BOOTS/0561,5912,Misc equipment tools and materials,44.10,0.00,44.10
Children and Young Peoples Services,Head of Childrens Social Care,085333,Coxhoe Satelite Home,Supplies and Services,328041,Clothing uniforms and laundry E328,03-Aug-2019,000008652714695,POUNDLAND LTD 1554,5310,Clothing uniforms and laundry,21.00,0.00,21.00
Children and Young Peoples Services,Head of Childrens Social Care,085333,Coxhoe Satelite Home,Supplies and Services,328041,Clothing uniforms and laundry E328,03-Aug-2019,000008652714697,TK MAXX,5331,Clothing uniforms and laundry,12.99,0.00,12.99
Children and Young Peoples Services,Head of Childrens Social Care,085333,Coxhoe Satelite Home,Supplies and Services,324117,Provisions E324,03-Aug-2019,000008652714699,MARKS&SPENCER PLC SF,5411,Catering costs - provisions,30.65,0.00,30.65
Children and Young Peoples Services,Head of Childrens Social Care,085333,Coxhoe Satelite Home,Supplies and Services,324117,Provisions E324,03-Aug-2019,000008652714701,TESCO STORES 6329,5411,Catering costs - provisions,134.86,0.00,134.86
Children and Young Peoples Services,Head of Childrens Social Care,085333,Coxhoe Satelite Home,Supplies and Services,324117,Provisions E324,03-Aug-2019,000008652714703,STARBUCKS THINFORD,5499,Catering costs - provisions,26.05,0.00,26.05
Children and Young Peoples Services,Head of Childrens Social Care,085333,Coxhoe Satelite Home,Supplies and Services,328041,Clothing uniforms and laundry E328,03-Aug-2019,000008652714705,TK MAXX,5331,Clothing uniforms and laundry,10.98,0.00,10.98
Children and Young Peoples Services,Head of Childrens Social Care,085333,Coxhoe Satelite Home,Supplies and Services,324117,Provisions E324,03-Aug-2019,000008652714707,TESCO STORES 6329,5411,Catering costs - provisions,96.48,0.00,96.48
Regeneration and Local Services,Development and Housing,031576,B& B - Temp Accom,Supplies and Services,364320,Grants to Voluntary Organisations,03-Aug-2019,000008652714731,PREMIER INN,3811,Accommodation assistance,180.50,0.00,180.50
Children and Young Peoples Services,Head of Early Help Inclusion & Vulnerable Children.,085962,Aycliffe Secure - Durham,Supplies and Services,304649,Equipment and Materials,03-Aug-2019,000008652714749,Amazon.co.uk MH8NI3HR4,5969,Toys,12.02,2.00,10.02
Children and Young Peoples Services,Head of Early Help Inclusion & Vulnerable Children.,085962,Aycliffe Secure - Durham,Supplies and Services,304649,Equipment and Materials,03-Aug-2019,000008652714753,AMZNMKTPLACE AMAZON.CO,5999,Toys,10.39,1.73,8.66
Children and Young Peoples Services,Head of Childrens Social Care,085341,High Etherley Satelite Home,Supplies and Services,324117,Provisions E324,04-Aug-2019,000008652714341,SAINSBURYS 0776,5411,Catering costs - provisions,26.25,0.00,26.25
Children and Young Peoples Services,Head of Childrens Social Care,085341,High Etherley Satelite Home,Supplies and Services,348037,Subsistence E348,04-Aug-2019,000008652714343,IZ A Powell & Daughte,5812,Subsistence,7.00,0.00,7.00
Transformation and Partnerships,Business Support,065461,Business Support 065461,Supplies and Services,342053,Computers and Communications,04-Aug-2019,000008652714349,BITEABLE PTY LTD,7392,Computer software,23.98,0.00,23.98
Regeneration and Local Services,Business Durham CL0850,030699,Business Growth and Innovation General,Supplies and Services,304403,Equipment and Materials,04-Aug-2019,000008652714423,MEETEDGAR MONTHLY,5734,Other consumables,40.52,0.00,40.52
Regeneration and Local Services,Business Durham CL0850,030699,Business Growth and Innovation General,Supplies and Services,312011,Newspapers books and periodicals E312,04-Aug-2019,000008652714425,FASTHOSTS INTERNET,4816,Books-school library,6.34,0.00,6.34
Regeneration and Local Services,Business Durham CL0850,030699,Business Growth and Innovation General,Supplies and Services,342033,Computers and Communications,04-Aug-2019,000008652714431,STK Shutterstock,7333,Computer hardware,19.00,0.00,19.00
Children and Young Peoples Services,Head of Childrens Social Care,085333,Coxhoe Satelite Home,Supplies and Services,324117,Provisions E324,04-Aug-2019,000008652714459,CO-OP GROUP 310016,5411,Catering costs - provisions,18.97,0.00,18.97
Children and Young Peoples Services,Head of Childrens Social Care,085333,Coxhoe Satelite Home,Supplies and Services,324117,Provisions E324,04-Aug-2019,000008652714461,CO-OP GROUP 310016,5411,Catering costs - provisions,5.70,0.00,5.70
Children and Young Peoples Services,Head of Childrens Social Care,085333,Coxhoe Satelite Home,Supplies and Services,324117,Provisions E324,04-Aug-2019,000008652714463,CO-OP GROUP 310016,5411,Catering costs - provisions,4.75,0.00,4.75
Children and Young Peoples Services,Head of Early Help Inclusion & Vulnerable Children.,085954,Walworth,Supplies and Services,324117,Provisions E324,04-Aug-2019,000008652714569,TESCO STORES 6329,5411,Catering costs - provisions,92.83,0.00,92.83
Regeneration and Local Services,Culture Sport and Tourism,054813,Gala Theatre - Technical,Supplies and Services,324117,Provisions E324,04-Aug-2019,000008652714593,SAINSBURYS LOC4663,5411,Catering costs - provisions,33.70,0.00,33.70
Regeneration and Local Services,Culture Sport and Tourism,054813,Gala Theatre - Technical,Supplies and Services,304999,Equipment and Materials,04-Aug-2019,000008652714597,Prime Video,5968,Misc equipment tools and materials,7.99,0.00,7.99
Regeneration and Local Services,Culture Sport and Tourism,054813,Gala Theatre - Technical,Supplies and Services,304403,Equipment and Materials,04-Aug-2019,000008652714599,AMZNMktplace,5999,Other consumables,54.80,0.00,54.80
Regeneration and Local Services,Culture Sport and Tourism,054815,Gala Theatre Stage School,Supplies and Services,324117,Provisions E324,04-Aug-2019,000008652714635,SAINSBURYS SACAT 0776,5411,Catering costs - provisions,33.09,0.00,33.09
Regeneration and Local Services,Environmental Services,010919,C&G - Countryside Site Management,Supplies and Services,312011,Newspapers books and periodicals E312,04-Aug-2019,000008652714637,Amazon.co.uk MH0PT5BL4,5969,Books-school library,33.99,5.67,28.32
Regeneration and Local Services,Environmental Services,010919,C&G - Countryside Site Management,Supplies and Services,312011,Newspapers books and periodicals E312,04-Aug-2019,000008652714639,Amazon.co.uk MH4J71B34,5969,Books-school library,33.99,5.67,28.32
Children and Young Peoples Services,Head of Childrens Social Care,085342,9 Cedar Drive Aycliffe,Supplies and Services,324117,Provisions E324,04-Aug-2019,000008652714719,TESCO STORES 2916,5411,Catering costs - provisions,2.00,0.00,2.00
Children and Young Peoples Services,Head of Childrens Social Care,085342,9 Cedar Drive Aycliffe,Supplies and Services,304259,Equipment and Materials,04-Aug-2019,000008652714721,WILKO RETAIL LIMIT,5722,Equipment-purchase and rental,8.20,0.00,8.20
Children and Young Peoples Services,Head of Childrens Social Care,085332,Middlestone Moor CU,Supplies and Services,384871,Miscellaneous Expenses,04-Aug-2019,000008652714803,VUE CINEMAS WWW,7832,Training-other activities,22.96,0.00,22.96
Children and Young Peoples Services,Head of Childrens Social Care,085334,West Rainton Satelite Home,Supplies and Services,384999,Miscellaneous Expenses,04-Aug-2019,000008652714837,WWW.TEESACTIVE.CO.UK,7997,Other expenses,17.00,0.00,17.00
Transformation and Partnerships,Business Support,065461,Business Support 065461,Supplies and Services,342053,Computers and Communications,05-Aug-2019,000008652714351,BITEABLE PTY LTD,7392,Computer software,0.66,0.00,0.66
Regeneration and Local Services,Environmental Services,031201,Earthworks,Supplies and Services,342053,Computers and Communications,05-Aug-2019,000008652714411,WOOBOX,5045,Computer software,0.84,0.00,0.84
Regeneration and Local Services,Business Durham CL0850,030699,Business Growth and Innovation General,Supplies and Services,304403,Equipment and Materials,05-Aug-2019,000008652714433,MEETEDGAR MONTHLY,5734,Other consumables,1.11,0.00,1.11
Regeneration and Local Services,Business Durham CL0850,030674,Business Services General,Supplies and Services,352001,Conference Expenses,05-Aug-2019,000008652714561,Hotel on Booking.com 3,7011,Conferencesseminars fees etc,36.25,0.00,36.25
Children and Young Peoples Services,Head of Childrens Social Care,085341,High Etherley Satelite Home,Transport,215995,Running Costs of Vehicles,05-Aug-2019,000008660199621,CHILTON FILLING STN,5541,Vehicle running expenses,42.94,0.00,42.94
Resources BK0010,Digital and Customer Services,065329,Operations - Primary Support,Supplies and Services,384199,Miscellaneous Expenses,05-Aug-2019,000008660199677,DISCLOSURE AND BARRING,9399,Other hired and contracted services,25.00,0.00,25.00
Resources BK0010,Digital and Customer Services,011103,Service Improvement 011103,Supplies and Services,312009,Newspapers books and periodicals E312,05-Aug-2019,000008660199679,Amazon.co.uk MH6EN3844,5969,Newspapers books and periodicals,30.58,0.00,30.58
Adult and Health Services,Commissioning inc Supporting People,052100,Supporting the Provider Market,Supplies and Services,338057,Services,05-Aug-2019,000008660199685,WWW.WESSEX-MEDICAL.COM,5047,Medical fees 338057,451.20,75.20,376.00
Children and Young Peoples Services,Head of Education and Skills,078411,16-19 Education & Training,Supplies and Services,304259,Equipment and Materials,05-Aug-2019,000008660199711,WWW.DURHAM.GOV.UK,9399,Equipment-purchase and rental,11.00,0.00,11.00
Adult and Health Services,Head of Adults,055302,Durham Pathways,Supplies and Services,324117,Provisions E324,05-Aug-2019,000008660199717,WM MORRISONS STORE,5411,Catering costs - provisions,9.20,0.00,9.20
Children and Young Peoples Services,Head of Childrens Social Care,085342,9 Cedar Drive Aycliffe,Supplies and Services,324117,Provisions E324,05-Aug-2019,000008660199733,TESCO STORES 6329,5411,Catering costs - provisions,24.55,0.00,24.55
Children and Young Peoples Services,Head of Childrens Social Care,085342,9 Cedar Drive Aycliffe,Supplies and Services,348037,Subsistence E348,05-Aug-2019,000008660199737,COSTA COFFEE 43039235,5814,Subsistence,7.80,0.00,7.80
Children and Young Peoples Services,Head of Childrens Social Care,085342,9 Cedar Drive Aycliffe,Supplies and Services,324117,Provisions E324,05-Aug-2019,000008660199741,TESCO STORES 2916,5411,Catering costs - provisions,24.00,0.00,24.00
Children and Young Peoples Services,Head of Childrens Social Care,085342,9 Cedar Drive Aycliffe,Supplies and Services,328041,Clothing uniforms and laundry E328,05-Aug-2019,000008660199745,ARGOS LTD,5310,Clothing uniforms and laundry,89.99,0.00,89.99
Regeneration and Local Services,Corporate Property and Land,021242,Catering - County Hall,Supplies and Services,324117,Provisions E324,05-Aug-2019,000008660199771,FREEMAN CATERING BUTCH,5422,Catering costs - provisions,175.24,0.00,175.24
Regeneration and Local Services,Corporate Property and Land,021242,Catering - County Hall,Supplies and Services,324117,Provisions E324,05-Aug-2019,000008660199777,WWW.ADELIEFOODS.CO.UK,5499,Catering costs - provisions,52.94,0.00,52.94
Regeneration and Local Services,Corporate Property and Land,021242,Catering - County Hall,Supplies and Services,324117,Provisions E324,05-Aug-2019,000008660199781,WWW.ADELIEFOODS.CO.UK,5499,Catering costs - provisions,48.44,0.00,48.44
Regeneration and Local Services,Corporate Property and Land,021242,Catering - County Hall,Supplies and Services,324117,Provisions E324,05-Aug-2019,000008660199785,WWW.ADELIEFOODS.CO.UK,5499,Catering costs - provisions,94.41,0.00,94.41
Children and Young Peoples Services,Head of Childrens Social Care,085622,Families First Ferryhill,Supplies and Services,384871,Miscellaneous Expenses,05-Aug-2019,000008660199791,NATIONAL RAILCARD,4112,Training-other activities,30.00,0.00,30.00
Resources BK0010,Digital and Customer Services,065481,Technical Services 065481,Supplies and Services,372009,Subscriptions E372,05-Aug-2019,000008660199803,WEB NETWORKSOLUTIONS,5968,Subscriptions 372009,366.74,0.00,366.74
Regeneration and Local Services,Development and Housing,030770,Durham Advance,Supplies and Services,324117,Provisions E324,05-Aug-2019,000008660199813,TESCO STORES 2916,5411,Catering costs - provisions,3.80,0.00,3.80
Regeneration and Local Services,Development and Housing,030770,Durham Advance,Supplies and Services,328041,Clothing uniforms and laundry E328,05-Aug-2019,000008660199817,SSELECT,5691,Clothing uniforms and laundry,31.98,0.00,31.98
Regeneration and Local Services,Development and Housing,030770,Durham Advance,Supplies and Services,328041,Clothing uniforms and laundry E328,05-Aug-2019,000008660199819,SHOE ZONE 1746,5661,Clothing uniforms and laundry,12.99,0.00,12.99
Regeneration and Local Services,Development and Housing,030773,CLLD North,Supplies and Services,304259,Equipment and Materials,05-Aug-2019,000008660199825,GEN REGISTER OFFICE,9399,Equipment-purchase and rental,42.00,0.00,42.00
Regeneration and Local Services,Development and Housing,030773,CLLD North,Transport,215995,Running Costs of Vehicles,05-Aug-2019,000008660199831,ASDA PETROL 5115,5542,Vehicle running expenses,37.50,6.25,31.25
Children and Young Peoples Services,Head of Childrens Social Care,085334,West Rainton Satelite Home,Supplies and Services,328041,Clothing uniforms and laundry E328,05-Aug-2019,000008660199851,Nike Store 00802,5655,Clothing uniforms and laundry,24.00,0.00,24.00
Children and Young Peoples Services,Head of Childrens Social Care,085334,West Rainton Satelite Home,Supplies and Services,324117,Provisions E324,05-Aug-2019,000008660199859,TESCO STORES 2371,5411,Catering costs - provisions,61.39,0.00,61.39
Children and Young Peoples Services,Head of Childrens Social Care,085334,West Rainton Satelite Home,Supplies and Services,324117,Provisions E324,05-Aug-2019,000008660199869,PITY ME NURSERY,5499,Catering costs - provisions,10.00,0.00,10.00
Children and Young Peoples Services,Head of Childrens Social Care,085334,West Rainton Satelite Home,Supplies and Services,312011,Newspapers books and periodicals E312,05-Aug-2019,000008660199873,HOME BARGAINS,5251,Books-school library,44.85,0.00,44.85
Children and Young Peoples Services,Head of Childrens Social Care,085334,West Rainton Satelite Home,Supplies and Services,312011,Newspapers books and periodicals E312,05-Aug-2019,000008660199877,HOME BARGAINS,5251,Books-school library,5.98,1.00,4.98
Children and Young Peoples Services,Head of Childrens Social Care,085334,West Rainton Satelite Home,Supplies and Services,328041,Clothing uniforms and laundry E328,05-Aug-2019,000008660199881,THE WORKS,5310,Clothing uniforms and laundry,4.00,0.00,4.00
Children and Young Peoples Services,Head of Childrens Social Care,085334,West Rainton Satelite Home,Supplies and Services,304259,Equipment and Materials,05-Aug-2019,000008660199887,J D SPORTS,5941,Equipment-purchase and rental,10.00,0.00,10.00
Children and Young Peoples Services,Head of Childrens Social Care,085352,Tow Law CU,Supplies and Services,324117,Provisions E324,05-Aug-2019,000008660199895,TESCO STORES 6329,5411,Catering costs - provisions,10.70,0.00,10.70
Children and Young Peoples Services,Head of Childrens Social Care,085352,Tow Law CU,Supplies and Services,312011,Newspapers books and periodicals E312,05-Aug-2019,000008660199897,HOME BARGAINS,5251,Books-school library,6.36,1.06,5.30
Children and Young Peoples Services,Head of Childrens Social Care,085352,Tow Law CU,Supplies and Services,312011,Newspapers books and periodicals E312,05-Aug-2019,000008660199897 - 1,HOME BARGAINS,5251,Books-school library,1.99,,1.99
Children and Young Peoples Services,Head of Early Help Inclusion & Vulnerable Children.,088109,Spennymoor & Shildon 0-19 Community Family Hub,Supplies and Services,324117,Provisions E324,05-Aug-2019,000008660199901,TESCO STORES 6329,5411,Catering costs - provisions,17.21,0.00,17.21
Children and Young Peoples Services,Head of Education and Skills,071732,Dean Bank Childcare,Supplies and Services,324117,Provisions E324,05-Aug-2019,000008660199905,ASDA GROCERIES ONLINE,5411,Catering costs - provisions,56.55,0.00,56.55
Regeneration and Local Services,Culture Sport and Tourism,010991,County-wide FISCH,Supplies and Services,324117,Provisions E324,05-Aug-2019,000008660199937,WM MORRISONS STORE,5411,Catering costs - provisions,4.47,0.00,4.47
Regeneration and Local Services,Culture Sport and Tourism,054813,Gala Theatre - Technical,Supplies and Services,304403,Equipment and Materials,05-Aug-2019,000008660199943,AMZNMktplace,5999,Other consumables,45.32,0.00,45.32
Regeneration and Local Services,Culture Sport and Tourism,054813,Gala Theatre - Technical,Supplies and Services,308011,Furniture,05-Aug-2019,000008660199949,Tiles Direct,5713,Furniture repair and replacement,186.84,0.00,186.84
Regeneration and Local Services,Environmental Services,010367,C&G - South Grounds Maintenance,Supplies and Services,384999,Miscellaneous Expenses,05-Aug-2019,000008660199979,GUSTHARTS.COM,5046,Other expenses,328.92,54.82,274.10
Regeneration and Local Services,Environmental Services,011060,C&G - Hardwick Park Catering,Supplies and Services,324117,Provisions E324,05-Aug-2019,000008660200005,FREEMAN CATERING BUTCH,5422,Catering costs - provisions,35.57,0.00,35.57
Regeneration and Local Services,Environmental Services,011060,C&G - Hardwick Park Catering,Supplies and Services,324117,Provisions E324,05-Aug-2019,000008660200013,FREEMAN CATERING BUTCH,5422,Catering costs - provisions,35.06,0.00,35.06
Regeneration and Local Services,Culture Sport and Tourism,054815,Gala Theatre Stage School,Supplies and Services,332047,Printing Stationery and Gen Off Exps,05-Aug-2019,000008660200057,RYMAN,5943,Stationery,14.99,0.00,14.99
Regeneration and Local Services,Corporate Property and Land,021234,Catering - Locomotion,Supplies and Services,324117,Provisions E324,05-Aug-2019,000008660200081,FREEMAN CATERING BUTCH,5422,Catering costs - provisions,131.06,0.00,131.06
Regeneration and Local Services,Corporate Property and Land,021234,Catering - Locomotion,Supplies and Services,324117,Provisions E324,05-Aug-2019,000008660200089,FREEMAN CATERING BUTCH,5422,Catering costs - provisions,55.20,0.00,55.20
Regeneration and Local Services,Corporate Property and Land,021234,Catering - Locomotion,Supplies and Services,324117,Provisions E324,05-Aug-2019,000008660200095,WWW.ADELIEFOODS.CO.UK,5499,Catering costs - provisions,132.54,0.00,132.54
Regeneration and Local Services,Corporate Property and Land,021234,Catering - Locomotion,Supplies and Services,324117,Provisions E324,05-Aug-2019,000008660200101,WWW.ADELIEFOODS.CO.UK,5499,Catering costs - provisions,82.61,0.00,82.61
Regeneration and Local Services,Corporate Property and Land,021234,Catering - Locomotion,Supplies and Services,324117,Provisions E324,05-Aug-2019,000008660200107,WWW.ADELIEFOODS.CO.UK,5499,Catering costs - provisions,132.82,0.00,132.82
Regeneration and Local Services,Corporate Property and Land,021234,Catering - Locomotion,Supplies and Services,324117,Provisions E324,05-Aug-2019,000008660200115,WWW.ADELIEFOODS.CO.UK,5499,Catering costs - provisions,132.75,0.00,132.75
Regeneration and Local Services,Corporate Property and Land,021234,Catering - Locomotion,Supplies and Services,324117,Provisions E324,05-Aug-2019,000008660200123,WWW.ADELIEFOODS.CO.UK,5499,Catering costs - provisions,229.02,0.00,229.02
Regeneration and Local Services,Corporate Property and Land,010525,Catering - Green Lane,Supplies and Services,324117,Provisions E324,05-Aug-2019,000008660200173,FREEMAN CATERING BUTCH,5422,Catering costs - provisions,43.35,0.00,43.35
Regeneration and Local Services,Corporate Property and Land,010525,Catering - Green Lane,Supplies and Services,324117,Provisions E324,05-Aug-2019,000008660200181,FREEMAN CATERING BUTCH,5422,Catering costs - provisions,3.70,0.00,3.70
Regeneration and Local Services,Corporate Property and Land,010525,Catering - Green Lane,Supplies and Services,324117,Provisions E324,05-Aug-2019,000008660200187,WWW.ADELIEFOODS.CO.UK,5499,Catering costs - provisions,42.90,0.00,42.90
Regeneration and Local Services,Corporate Property and Land,010525,Catering - Green Lane,Supplies and Services,324117,Provisions E324,05-Aug-2019,000008660200195,WWW.ADELIEFOODS.CO.UK,5499,Catering costs - provisions,48.44,0.00,48.44
Regeneration and Local Services,Development and Housing,030554,International Relations 030554,Transport,235057,Public Transport,05-Aug-2019,000008660200231,Trainline.com,4112,Staff travelling,235.20,0.00,235.20
Children and Young Peoples Services,Head of Early Help Inclusion & Vulnerable Children.,071441,Bishop Auckland One Point Hub,Supplies and Services,304405,Equipment and Materials,05-Aug-2019,000008660200243,FIRSTAID4LESS.CO.UK,5999,Medical supplies,66.96,11.16,55.80
Resources BK0010,Finance & Transactional Services,065176,Quality/Subsidy/Appeals/Training/Support,Supplies and Services,338048,Services,05-Aug-2019,000008660200263,HMCOURT-SERVICES.G,9222,Court costs 338048,110.00,0.00,110.00
Children and Young Peoples Services,Head of Childrens Social Care,085333,Coxhoe Satelite Home,Supplies and Services,324117,Provisions E324,05-Aug-2019,000008660200271,CO-OP GROUP 310016,5411,Catering costs - provisions,21.63,0.00,21.63
Children and Young Peoples Services,Head of Childrens Social Care,085333,Coxhoe Satelite Home,Supplies and Services,304403,Equipment and Materials,05-Aug-2019,000008660200279,BEAMISH MUSEUM LTD,5947,Other consumables,12.50,0.00,12.50
Resources BK0010,Resources Management CK0450,069000,Resources Management 069000,Supplies and Services,324117,Provisions E324,05-Aug-2019,000008660200289,SAINSBURYS LOC4937,5411,Catering costs - provisions,8.20,0.00,8.20
Regeneration and Local Services,Environmental Services,010367,C&G - South Grounds Maintenance,Supplies and Services,384999,Miscellaneous Expenses,05-Aug-2019,000008660200297,GUSTHARTS.COM,5046,Other expenses,149.72,24.95,124.77
Regeneration and Local Services,Corporate Property and Land,030691,Catering - Durham Dales Centre,Supplies and Services,324117,Provisions E324,05-Aug-2019,000008660200309,FREEMAN CATERING BUTCH,5422,Catering costs - provisions,74.75,0.00,74.75
Regeneration and Local Services,Corporate Property and Land,030691,Catering - Durham Dales Centre,Supplies and Services,324117,Provisions E324,05-Aug-2019,000008660200317,FREEMAN CATERING BUTCH,5422,Catering costs - provisions,100.61,0.00,100.61
Adult and Health Services,Head of Adults,055643,Hawthorn House LD Respite Unit,Supplies and Services,324117,Provisions E324,05-Aug-2019,000008660200339,FREEMAN CATERING BUTCH,5422,Catering costs - provisions,51.61,0.00,51.61
Regeneration and Local Services,Environmental Services,010301,C&G - North Grounds Maintenance,Supplies and Services,328041,Clothing uniforms and laundry E328,05-Aug-2019,000008660200351,THOMAS OWEN & SONS /N/,5611,Clothing uniforms and laundry,38.60,6.43,32.17
Regeneration and Local Services,Environmental Services,010301,C&G - North Grounds Maintenance,Supplies and Services,304221,Equipment and Materials,05-Aug-2019,000008660200359,SCREWFIX CONSETT,5211,Direct materials,11.97,2.00,9.97
Children and Young Peoples Services,Head of Early Help Inclusion & Vulnerable Children.,088101,CLS 0-19 Community Family Hub,Supplies and Services,384999,Miscellaneous Expenses,05-Aug-2019,000008660200367,ASDA GROCERIES ONLINE,5411,Other expenses,42.00,0.00,42.00
Children and Young Peoples Services,Head of Early Help Inclusion & Vulnerable Children.,088119,Durham 0-19 Community Family Hub,Supplies and Services,384999,Miscellaneous Expenses,05-Aug-2019,000008660200379,ASDA GROCERIES ONLINE,5411,Other expenses,-36.00,0.00,-36.00
Resources BK0010,Legal & Democratic Services,067953,Coroner County Durham & Darlington,Supplies and Services,384199,Miscellaneous Expenses,05-Aug-2019,000008660200391,TRFSA THOMSONREUTERS,8999,Other hired and contracted services,395.00,0.00,395.00
Children and Young Peoples Services,Head of Childrens Social Care,085501,Child Care Cases Legal Expenses,Supplies and Services,384199,Miscellaneous Expenses,05-Aug-2019,000008660200397,CITY OF NEWCASTLE INTE,9399,Other hired and contracted services,11.00,0.00,11.00
Regeneration and Local Services,Corporate Property and Land,021324,Catering - Meadowfield,Supplies and Services,324117,Provisions E324,05-Aug-2019,000008660200411,FREEMAN CATERING BUTCH,5422,Catering costs - provisions,10.37,0.00,10.37
Regeneration and Local Services,Corporate Property and Land,021324,Catering - Meadowfield,Supplies and Services,324117,Provisions E324,05-Aug-2019,000008660200421,FREEMAN CATERING BUTCH,5422,Catering costs - provisions,33.96,0.00,33.96
Regeneration and Local Services,Corporate Property and Land,021324,Catering - Meadowfield,Supplies and Services,324117,Provisions E324,05-Aug-2019,000008660200429,FREEMAN CATERING BUTCH,5422,Catering costs - provisions,33.96,0.00,33.96
Regeneration and Local Services,Corporate Property and Land,021324,Catering - Meadowfield,Supplies and Services,324117,Provisions E324,05-Aug-2019,000008660200431,WWW.ADELIEFOODS.CO.UK,5499,Catering costs - provisions,34.60,0.00,34.60
Regeneration and Local Services,Corporate Property and Land,021324,Catering - Meadowfield,Supplies and Services,324117,Provisions E324,05-Aug-2019,000008660200439,WWW.ADELIEFOODS.CO.UK,5499,Catering costs - provisions,41.67,0.00,41.67
Children and Young Peoples Services,Head of Childrens Social Care,085332,Middlestone Moor CU,Supplies and Services,304649,Equipment and Materials,05-Aug-2019,000008660200499,AMZNMKTPLACE AMAZON.CO,5999,Toys,18.99,0.00,18.99
Children and Young Peoples Services,Head of Childrens Social Care,085332,Middlestone Moor CU,Supplies and Services,304649,Equipment and Materials,05-Aug-2019,000008660200505,AMZNMKTPLACE AMAZON.CO,5999,Toys,3.42,0.00,3.42
Children and Young Peoples Services,Head of Childrens Social Care,085332,Middlestone Moor CU,Supplies and Services,304649,Equipment and Materials,05-Aug-2019,000008660200511,AMZNMKTPLACE AMAZON.CO,5999,Toys,11.97,0.00,11.97
Children and Young Peoples Services,Head of Childrens Social Care,085332,Middlestone Moor CU,Premises,115125,Repairs to Grounds,05-Aug-2019,000008660200517,AMZNMKTPLACE AMAZON.CO,5999,General maintenance,24.85,0.00,24.85
Children and Young Peoples Services,Head of Childrens Social Care,085332,Middlestone Moor CU,Supplies and Services,304649,Equipment and Materials,05-Aug-2019,000008660200523,AMZNMKTPLACE AMAZON.CO,5999,Toys,6.95,0.00,6.95
Children and Young Peoples Services,Head of Childrens Social Care,085332,Middlestone Moor CU,Supplies and Services,308013,Furniture,05-Aug-2019,000008660200529,AMZNMKTPLACE AMAZON.CO,5999,Curtains and carpets,17.49,0.00,17.49
Children and Young Peoples Services,Head of Early Help Inclusion & Vulnerable Children.,088107,Ferryhill & Newton Aycliffe 0-19 Community Family Hub,Supplies and Services,324117,Provisions E324,05-Aug-2019,000008660200567,ASDA STORES LTD 4313,5411,Catering costs - provisions,16.15,0.00,16.15
Regeneration and Local Services,Development and Housing,031500,Housing Solutions - Core Team,Supplies and Services,352001,Conference Expenses,05-Aug-2019,000008660200577,HAYAT HOTEL,7011,Conferencesseminars fees etc,200.00,0.00,200.00
Adult and Health Services,Head of Adults,055310,Positive Journeys (Tudhoe),Supplies and Services,324117,Provisions E324,05-Aug-2019,000008660200615,ASDA SUPERSTORE 4987,5411,Catering costs - provisions,2.09,0.00,2.09
Adult and Health Services,Head of Adults,055310,Positive Journeys (Tudhoe),Supplies and Services,324117,Provisions E324,05-Aug-2019,000008660200623,ASDA SUPERSTORE 4987,5411,Catering costs - provisions,2.00,0.00,2.00
Regeneration and Local Services,Corporate Property and Land,021235,Catering - Wharton Park,Supplies and Services,324117,Provisions E324,05-Aug-2019,000008660200633,WWW.ADELIEFOODS.CO.UK,5499,Catering costs - provisions,46.14,0.00,46.14
Regeneration and Local Services,Culture Sport and Tourism,054812,Gala Theatre - Catering etc,Supplies and Services,324117,Provisions E324,05-Aug-2019,000008668548127,BATLEYS PERTH,5300,Catering costs - provisions,94.20,15.70,78.50
Regeneration and Local Services,Culture Sport and Tourism,054812,Gala Theatre - Catering etc,Supplies and Services,324117,Provisions E324,05-Aug-2019,000008668548127 - 1,BATLEYS PERTH,5300,Catering costs - provisions,122.86,,122.86
Regeneration and Local Services,Development and Housing,031576,B& B - Temp Accom,Employees,040149,Recruitment Instruction and Training,05-Aug-2019,000008668548133,PREMIER INN,3811,Training-all costs,161.50,0.00,161.50
Regeneration and Local Services,Development and Housing,031576,B& B - Temp Accom,Employees,040149,Recruitment Instruction and Training,05-Aug-2019,000008668548135,PREMIER INN,3811,Training-all costs,19.00,0.00,19.00
Regeneration and Local Services,Development and Housing,031500,Housing Solutions - Core Team,Supplies and Services,364320,Grants to Voluntary Organisations,05-Aug-2019,000008668548151,PREMIER INN,3811,Accommodation assistance,77.50,12.92,64.58
Regeneration and Local Services,Corporate Property and Land,030691,Catering - Durham Dales Centre,Supplies and Services,324117,Provisions E324,05-Aug-2019,000008668548189,BATLEYS PERTH,5300,Catering costs - provisions,161.76,26.96,134.80
Regeneration and Local Services,Corporate Property and Land,030691,Catering - Durham Dales Centre,Supplies and Services,324117,Provisions E324,05-Aug-2019,000008668548189 - 1,BATLEYS PERTH,5300,Catering costs - provisions,115.05,,115.05
Regeneration and Local Services,Development and Housing,031500,Housing Solutions - Core Team,Employees,040149,Recruitment Instruction and Training,05-Aug-2019,000008668548225,PREMIER INN,3811,Training-all costs,192.00,0.00,192.00
Regeneration and Local Services,Corporate Property and Land,021235,Catering - Wharton Park,Supplies and Services,324117,Provisions E324,05-Aug-2019,000008668548257,BATLEYS PERTH,5300,Catering costs - provisions,442.14,73.69,368.45
Regeneration and Local Services,Corporate Property and Land,021235,Catering - Wharton Park,Supplies and Services,324117,Provisions E324,05-Aug-2019,000008668548257 - 1,BATLEYS PERTH,5300,Catering costs - provisions,33.59,,33.59
Resources BK0010,Digital and Customer Services,065481,Technical Services 065481,Supplies and Services,372009,Subscriptions E372,06-Aug-2019,000008660199809,WEB NETWORKSOLUTIONS,5968,Subscriptions 372009,10.09,0.00,10.09
Children and Young Peoples Services,Head of Education and Skills,071801,Selby Cottage Childcare Centre,Supplies and Services,324117,Provisions E324,06-Aug-2019,000008668548095,TESCO STORES 2278,5411,Catering costs - provisions,43.47,0.00,43.47
Resources BK0010,Digital and Customer Services,065481,Technical Services 065481,Supplies and Services,304335,Equipment and Materials,06-Aug-2019,000008668548097,AMZNMktplace,5999,ICT supplies etc,252.00,42.00,210.00
Regeneration and Local Services,Development and Housing,030771,Durham Advance Flexible Fund,Supplies and Services,338064,Services,06-Aug-2019,000008668548099,WWW.THEMEDIAGROUP.TV,7399,Disclosure & Barring (DBS) Fees,10.00,0.00,10.00
Adult and Health Services,Head of Adults,055302,Durham Pathways,Supplies and Services,312011,Newspapers books and periodicals E312,06-Aug-2019,000008668548107,Amazon.co.uk MH3JS7QA4,5969,Books-school library,419.99,70.00,349.99
Adult and Health Services,Head of Adults,055302,Durham Pathways,Supplies and Services,304403,Equipment and Materials,06-Aug-2019,000008668548109,AMZNMktplace,5999,Other consumables,40.00,6.67,33.33
Children and Young Peoples Services,Head of Childrens Social Care,085342,9 Cedar Drive Aycliffe,Supplies and Services,324117,Provisions E324,06-Aug-2019,000008668548113,TESCO STORES 6329,5411,Catering costs - provisions,3.66,0.00,3.66
Dedicated Schools Grant BG0015,DSG High Needs Block,079050,SENSS-Sensory,Supplies and Services,304649,Equipment and Materials,06-Aug-2019,000008668548115,WWW.CROSSBOWEDUCATION.,5943,Toys,13.13,0.00,13.13
Children and Young Peoples Services,Head of Childrens Social Care,085333,Coxhoe Satelite Home,Supplies and Services,384999,Miscellaneous Expenses,06-Aug-2019,000008668548117,SLOL-Wet&Wild,7997,Other expenses,25.85,0.00,25.85
Children and Young Peoples Services,Head of Childrens Social Care,085333,Coxhoe Satelite Home,Supplies and Services,384999,Miscellaneous Expenses,06-Aug-2019,000008668548119,SLOL-Wet&Wild,7997,Other expenses,9.10,0.00,9.10
Children and Young Peoples Services,Head of Childrens Social Care,085352,Tow Law CU,Supplies and Services,324117,Provisions E324,06-Aug-2019,000008668548123,TESCO STORES 6329,5411,Catering costs - provisions,8.96,0.00,8.96
Regeneration and Local Services,Development and Housing,030770,Durham Advance,Supplies and Services,324117,Provisions E324,06-Aug-2019,000008668548125,IZ THE WELL,5812,Catering costs - provisions,2.50,0.00,2.50
Regeneration and Local Services,Development and Housing,030773,CLLD North,Transport,215995,Running Costs of Vehicles,06-Aug-2019,000008668548129,ASDA PETROL 5115,5542,Vehicle running expenses,17.99,3.00,14.99
Regeneration and Local Services,Culture Sport and Tourism,054813,Gala Theatre - Technical,Supplies and Services,304403,Equipment and Materials,06-Aug-2019,000008668548145,AMZNMktplace,5999,Other consumables,9.99,0.00,9.99
Regeneration and Local Services,Environmental Services,031221,North Pennines - Bowlees,Supplies and Services,304221,Equipment and Materials,06-Aug-2019,000008668548147,A AND K HOSIERY LTD,5099,Direct materials,246.36,41.06,205.30
Regeneration and Local Services,Culture Sport and Tourism,010991,County-wide FISCH,Supplies and Services,324117,Provisions E324,06-Aug-2019,000008668548149,TESCO STORES 6329,5411,Catering costs - provisions,4.00,0.00,4.00
Regeneration and Local Services,Development and Housing,031500,Housing Solutions - Core Team,Supplies and Services,352001,Conference Expenses,06-Aug-2019,000008668548153,HOTEL 52,7011,Conferencesseminars fees etc,69.99,11.67,58.32
Regeneration and Local Services,Development and Housing,030771,Durham Advance Flexible Fund,Supplies and Services,304221,Equipment and Materials,06-Aug-2019,000008668548155,SCREWFIX CHESTER L,5211,Direct materials,29.94,4.99,24.95
Regeneration and Local Services,Development and Housing,030771,Durham Advance Flexible Fund,Supplies and Services,304221,Equipment and Materials,06-Aug-2019,000008668548155 - 1,SCREWFIX CHESTER L,5211,Direct materials,4.03,,4.03
Children and Young Peoples Services,Head of Early Help Inclusion & Vulnerable Children.,085957,Secure Management,Supplies and Services,304999,Equipment and Materials,06-Aug-2019,000008668548157,TESCO DELIVERY SAVER2,5968,Misc equipment tools and materials,6.99,0.00,6.99
Children and Young Peoples Services,Head of Early Help Inclusion & Vulnerable Children.,085956,Lumley,Supplies and Services,328041,Clothing uniforms and laundry E328,06-Aug-2019,000008668548159,WWW.FOOTLOCKER.EU,5661,Clothing uniforms and laundry,-79.99,0.00,-79.99
Regeneration and Local Services,Culture Sport and Tourism,054813,Gala Theatre - Technical,Supplies and Services,304259,Equipment and Materials,06-Aug-2019,000008668548161,Prime Video MH4TR6QT4,5735,Equipment-purchase and rental,7.99,0.00,7.99
Regeneration and Local Services,Culture Sport and Tourism,054813,Gala Theatre - Technical,Supplies and Services,324117,Provisions E324,06-Aug-2019,000008668548163,WM MORRISONS STORE,5411,Catering costs - provisions,18.23,0.00,18.23
Regeneration and Local Services,Culture Sport and Tourism,054813,Gala Theatre - Technical,Supplies and Services,324117,Provisions E324,06-Aug-2019,000008668548165,WM MORRISONS STORE,5411,Catering costs - provisions,132.43,0.00,132.43
Regeneration and Local Services,Environmental Services,010301,C&G - North Grounds Maintenance,Supplies and Services,384199,Miscellaneous Expenses,06-Aug-2019,000008668548177,MO TECH,5571,Other hired and contracted services,260.00,0.00,260.00
Regeneration and Local Services,Environmental Services,010301,C&G - North Grounds Maintenance,Supplies and Services,384199,Miscellaneous Expenses,06-Aug-2019,000008668548179,TOM CONWAY MOTORCYCLES,5571,Other hired and contracted services,359.96,0.00,359.96
Children and Young Peoples Services,Head of Early Help Inclusion & Vulnerable Children.,071443,Stanley One Point Hub,Supplies and Services,308011,Furniture,06-Aug-2019,000008668548183,WHICKHAM SALEROOMS,5713,Furniture repair and replacement,102.99,0.00,102.99
Regeneration and Local Services,Corporate Property and Land,020098,Bldg Serv - R&M Div 98 - Pools Maintenance,Supplies and Services,312009,Newspapers books and periodicals E312,06-Aug-2019,000008668548185,SHOP.SWIMMING.ORG,5999,Newspapers books and periodicals,65.00,0.00,65.00
Children and Young Peoples Services,Head of Childrens Social Care,085352,Tow Law CU,Supplies and Services,324117,Provisions E324,06-Aug-2019,000008668548187,ASDA SUPERSTORE 4987,5411,Catering costs - provisions,100.96,0.00,100.96
Regeneration and Local Services,Environmental Services,010301,C&G - North Grounds Maintenance,Supplies and Services,304403,Equipment and Materials,06-Aug-2019,000008668548191,BESCOL,5231,Other consumables,18.72,3.12,15.60
Children and Young Peoples Services,Head of Early Help Inclusion & Vulnerable Children.,088100,Durham West & CLS 0-19 Targeted Family Support,Third Party Payments 4THIRD,430100,Rendered by Private Contractors,06-Aug-2019,000008668548193,ULTIMATE BOUNCE ZONE,7399,Payments to sub-contractors,129.50,0.00,129.50
Regeneration and Local Services,Development and Housing,030771,Durham Advance Flexible Fund,Supplies and Services,304259,Equipment and Materials,06-Aug-2019,000008668548195,GEN REGISTER OFFICE,9399,Equipment-purchase and rental,14.00,0.00,14.00
Regeneration and Local Services,Development and Housing,030771,Durham Advance Flexible Fund,Transport,235057,Public Transport,06-Aug-2019,000008668548197,GO NORTH EAST LIMITED,4131,Staff travelling,7.00,0.00,7.00
Regeneration and Local Services,Environmental Services,031072,Archaeology 031072,Supplies and Services,312009,Newspapers books and periodicals E312,06-Aug-2019,000008668548201,WWW.INFORMA.COM,2741,Newspapers books and periodicals,110.00,0.00,110.00
Children and Young Peoples Services,Head of Education and Skills,071802,Louisa Cent Nursery,Supplies and Services,324117,Provisions E324,06-Aug-2019,000008668548205,ASDA SUPERSTORE,5411,Catering costs - provisions,7.26,0.00,7.26
Children and Young Peoples Services,Head of Education and Skills,071802,Louisa Cent Nursery,Supplies and Services,324117,Provisions E324,06-Aug-2019,000008668548207,ALDI STORES,5411,Catering costs - provisions,60.48,10.08,50.40
Children and Young Peoples Services,Head of Education and Skills,071802,Louisa Cent Nursery,Supplies and Services,324117,Provisions E324,06-Aug-2019,000008668548207 - 1,ALDI STORES,5411,Catering costs - provisions,16.07,,16.07
Children and Young Peoples Services,Head of Childrens Social Care,085332,Middlestone Moor CU,Supplies and Services,304649,Equipment and Materials,06-Aug-2019,000008668548221,AMZNMKTPLACE AMAZON.CO,5999,Toys,9.36,0.00,9.36
Regeneration and Local Services,Culture Sport and Tourism,054233,Bishop Auckland Town Hall Library,Employees,040149,Recruitment Instruction and Training,06-Aug-2019,000008668548227,WWW.FILMBANK.CO.UK,7829,Training-all costs,99.60,0.00,99.60
Regeneration and Local Services,Culture Sport and Tourism,054233,Bishop Auckland Town Hall Library,Employees,040149,Recruitment Instruction and Training,06-Aug-2019,000008668548229,WWW.FILMBANK.CO.UK,7829,Training-all costs,99.60,0.00,99.60
Regeneration and Local Services,Culture Sport and Tourism,054820,Gala Theatre - Overheads,Supplies and Services,324117,Provisions E324,06-Aug-2019,000008668548241,TESCO STORES 6029,5411,Catering costs - provisions,7.00,0.00,7.00
Adult and Health Services,Head of Adults,055807,Newton Aycliffe Pathways,Supplies and Services,304259,Equipment and Materials,06-Aug-2019,000008668548247,WILKO RETAIL LIMIT,5722,Equipment-purchase and rental,4.50,0.00,4.50
Adult and Health Services,Head of Adults,055310,Positive Journeys (Tudhoe),Supplies and Services,324117,Provisions E324,06-Aug-2019,000008668548255,ASDA SUPERSTORE 4987,5411,Catering costs - provisions,1.48,0.00,1.48
Children and Young Peoples Services,Head of Childrens Social Care,085613,Families First Durham Central,Supplies and Services,304259,Equipment and Materials,06-Aug-2019,000008668548259,Durham County CNCL,9399,Equipment-purchase and rental,35.00,0.00,35.00
Children and Young Peoples Services,Head of Childrens Social Care,085632,Families First Seaham,Supplies and Services,304259,Equipment and Materials,06-Aug-2019,000008668548261,Durham County CNCL,9399,Equipment-purchase and rental,11.00,0.00,11.00
Transformation and Partnerships,Partnerships & Community Engagement Div.,060472,Syrian Vulnerable Persons Scheme,Supplies and Services,384999,Miscellaneous Expenses,06-Aug-2019,000008668548273,B&Q DIRECT,5200,Other expenses,65.00,10.83,54.17
Adult and Health Services,Head of Adults,055309,Peterlee Pathways,Supplies and Services,324117,Provisions E324,06-Aug-2019,000008668548275,ASDA STORES LTD,5411,Catering costs - provisions,23.41,0.00,23.41
Adult and Health Services,Head of Adults,055309,Peterlee Pathways,Supplies and Services,324117,Provisions E324,06-Aug-2019,000008668548277,ASDA STORES LTD,5411,Catering costs - provisions,14.00,0.00,14.00
Regeneration and Local Services,Corporate Property and Land,030691,Catering - Durham Dales Centre,Supplies and Services,324117,Provisions E324,06-Aug-2019,000008668548279,COTTAGE DELIGHT LTD,5499,Catering costs - provisions,277.06,46.18,230.88
Children and Young Peoples Services,Head of Early Help Inclusion & Vulnerable Children.,085810,CDYJS - Interventions Team,Supplies and Services,324117,Provisions E324,06-Aug-2019,000008668548281,ASDA SUPERSTORE,5411,Catering costs - provisions,66.00,0.00,66.00
Regeneration and Local Services,Corporate Property and Land,021242,Catering - County Hall,Supplies and Services,324117,Provisions E324,06-Aug-2019,000008669093199,BATLEYS PERTH,5300,Catering costs - provisions,327.90,54.65,273.25
Regeneration and Local Services,Corporate Property and Land,021242,Catering - County Hall,Supplies and Services,324117,Provisions E324,06-Aug-2019,000008669093199 - 1,BATLEYS PERTH,5300,Catering costs - provisions,210.41,,210.41
Children and Young Peoples Services,Head of Childrens Social Care,085352,Tow Law CU,Supplies and Services,304403,Equipment and Materials,06-Aug-2019,000008669093269,AMZNMKTPLACE AMAZON.CO,5999,Other consumables,33.97,5.67,28.30
Regeneration and Local Services,Development and Housing,031500,Housing Solutions - Core Team,Supplies and Services,364320,Grants to Voluntary Organisations,06-Aug-2019,000008669093305,PREMIER INN,3811,Accommodation assistance,91.00,15.17,75.83
Regeneration and Local Services,Environmental Services,011060,C&G - Hardwick Park Catering,Supplies and Services,324117,Provisions E324,06-Aug-2019,000008669093353,BATLEYS PERTH,5300,Catering costs - provisions,254.70,42.45,212.25
Regeneration and Local Services,Environmental Services,011060,C&G - Hardwick Park Catering,Supplies and Services,324117,Provisions E324,06-Aug-2019,000008669093353 - 1,BATLEYS PERTH,5300,Catering costs - provisions,167.68,,167.68
Regeneration and Local Services,Corporate Property and Land,021234,Catering - Locomotion,Supplies and Services,324117,Provisions E324,06-Aug-2019,000008669093393,BATLEYS PERTH,5300,Catering costs - provisions,534.00,89.00,445.00
Regeneration and Local Services,Corporate Property and Land,021234,Catering - Locomotion,Supplies and Services,324117,Provisions E324,06-Aug-2019,000008669093393 - 1,BATLEYS PERTH,5300,Catering costs - provisions,38.36,,38.36
Regeneration and Local Services,Corporate Property and Land,021324,Catering - Meadowfield,Supplies and Services,324117,Provisions E324,06-Aug-2019,000008669093585,BATLEYS PERTH,5300,Catering costs - provisions,23.04,3.84,19.20
Regeneration and Local Services,Corporate Property and Land,021324,Catering - Meadowfield,Supplies and Services,324117,Provisions E324,06-Aug-2019,000008669093585 - 1,BATLEYS PERTH,5300,Catering costs - provisions,32.27,,32.27
Children and Young Peoples Services,Head of Education and Skills,071801,Selby Cottage Childcare Centre,Supplies and Services,324117,Provisions E324,07-Aug-2019,000008669092967,TESCO STORES 2278,5411,Catering costs - provisions,70.15,0.00,70.15
Children and Young Peoples Services,Head of Education and Skills,071801,Selby Cottage Childcare Centre,Supplies and Services,328041,Clothing uniforms and laundry E328,07-Aug-2019,000008669092971,ARGOS LTD,5310,Clothing uniforms and laundry,6.99,0.00,6.99
Adult and Health Services,Head of Adults,053811,Harbour Lodge Extra Care,Supplies and Services,304403,Equipment and Materials,07-Aug-2019,000008669092985,AMZNMktplace,5999,Other consumables,17.47,2.91,14.56
Resources BK0010,Digital and Customer Services,065432,Web Development Group,Supplies and Services,342053,Computers and Communications,07-Aug-2019,000008669092993,WORDFENCE,5045,Computer software,"1,470.01",0.00,1470.01
Resources BK0010,Digital and Customer Services,065432,Web Development Group,Supplies and Services,342053,Computers and Communications,07-Aug-2019,000008669092999,WORDFENCE,5045,Computer software,61.25,0.00,61.25
Resources BK0010,Digital and Customer Services,065482,Data Centres,Supplies and Services,304335,Equipment and Materials,07-Aug-2019,000008669093003,CLC,5732,ICT supplies etc,68.40,0.00,68.40
Resources BK0010,Digital and Customer Services,065481,Technical Services 065481,Employees,040149,Recruitment Instruction and Training,07-Aug-2019,000008669093017,VUE MINDHUB,8299,Training-all costs,75.48,0.00,75.48
Children and Young Peoples Services,Head of Childrens Social Care,085100,SGO and CAO costs,Supplies and Services,384199,Miscellaneous Expenses,07-Aug-2019,000008669093021,LANCASHIRE CC WEBSITE,8299,Other hired and contracted services,11.00,0.00,11.00
Regeneration and Local Services,Environmental Services,031233,North Pennines - Pennine Peatlife,Supplies and Services,352001,Conference Expenses,07-Aug-2019,000008669093049,THE EUROPA HOTEL,7011,Conferencesseminars fees etc,220.00,0.00,220.00
Regeneration and Local Services,Environmental Services,031233,North Pennines - Pennine Peatlife,Supplies and Services,352001,Conference Expenses,07-Aug-2019,000008669093057,THE EUROPA HOTEL,7011,Conferencesseminars fees etc,220.00,0.00,220.00
Regeneration and Local Services,Environmental Services,031233,North Pennines - Pennine Peatlife,Supplies and Services,352001,Conference Expenses,07-Aug-2019,000008669093065,THE EUROPA HOTEL,7011,Conferencesseminars fees etc,220.00,0.00,220.00
Regeneration and Local Services,Environmental Services,031202,North Pennines - Peatscapes,Supplies and Services,304259,Equipment and Materials,07-Aug-2019,000008669093071,YORKSURVEY.CO.UK,8911,Equipment-purchase and rental,313.20,52.20,261.00
Regeneration and Local Services,Culture Sport and Tourism,011215,Museums Heritage & Collections 011215,Supplies and Services,304403,Equipment and Materials,07-Aug-2019,000008669093079,BUYABATTERY CO UK,5065,Other consumables,29.19,0.00,29.19
Children and Young Peoples Services,Head of Childrens Social Care,085342,9 Cedar Drive Aycliffe,Supplies and Services,348037,Subsistence E348,07-Aug-2019,000008669093097,THE OLIVE GARDEN,5812,Subsistence,8.90,0.00,8.90
Children and Young Peoples Services,Head of Childrens Social Care,085342,9 Cedar Drive Aycliffe,Supplies and Services,332047,Printing Stationery and Gen Off Exps,07-Aug-2019,000008669093105,Vue Cinemas,7832,Stationery,15.27,0.00,15.27
Children and Young Peoples Services,Head of Childrens Social Care,085342,9 Cedar Drive Aycliffe,Supplies and Services,348037,Subsistence E348,07-Aug-2019,000008669093111,MCDONALDS,5812,Subsistence,9.88,0.00,9.88
Dedicated Schools Grant BG0015,DSG High Needs Block,079050,SENSS-Sensory,Supplies and Services,304403,Equipment and Materials,07-Aug-2019,000008669093121,AMZNMKTPLACE AMAZON.CO,5999,Other consumables,37.96,0.00,37.96
Children and Young Peoples Services,Head of Early Help Inclusion & Vulnerable Children.,088111,Easington & Peterlee 0-19 Community Family Hub,Supplies and Services,324117,Provisions E324,07-Aug-2019,000008669093141,ASDA STORES LTD,5411,Catering costs - provisions,6.57,0.00,6.57
Regeneration and Local Services,Corporate Property and Land,021242,Catering - County Hall,Premises,145009,Cleaning and Domestic Supplies,07-Aug-2019,000008669093207,ALLIANCE DISPOSABLES L,2842,Other cleaning and domestic costs,133.70,22.28,111.42
Regeneration and Local Services,Development and Housing,030773,CLLD North,Supplies and Services,304259,Equipment and Materials,07-Aug-2019,000008669093219,Durham County CNCL,9399,Equipment-purchase and rental,11.00,0.00,11.00
Regeneration and Local Services,Culture Sport and Tourism,011217,Commercial Management 011217,Supplies and Services,336005,Advertising E336,07-Aug-2019,000008669093229,highstreetvouchers,8641,Advertising other than for staff,33.50,0.00,33.50
Children and Young Peoples Services,Head of Childrens Social Care,085334,West Rainton Satelite Home,Supplies and Services,324117,Provisions E324,07-Aug-2019,000008669093239,TESCO STORES 2371,5411,Catering costs - provisions,22.17,0.00,22.17
Children and Young Peoples Services,Head of Childrens Social Care,085334,West Rainton Satelite Home,Supplies and Services,324117,Provisions E324,07-Aug-2019,000008669093245,TESCO STORES 2371,5411,Catering costs - provisions,10.00,0.00,10.00
Children and Young Peoples Services,Head of Childrens Social Care,085334,West Rainton Satelite Home,Supplies and Services,324117,Provisions E324,07-Aug-2019,000008669093249,SAINSBURYS 0776,5411,Catering costs - provisions,7.75,0.00,7.75
Children and Young Peoples Services,Head of Childrens Social Care,085334,West Rainton Satelite Home,Supplies and Services,304403,Equipment and Materials,07-Aug-2019,000008669093253,AMZNMktplace,5999,Other consumables,30.49,5.08,25.41
Children and Young Peoples Services,Head of Childrens Social Care,085334,West Rainton Satelite Home,Supplies and Services,324117,Provisions E324,07-Aug-2019,000008669093257,ASDA STORES LTD 4313,5411,Catering costs - provisions,12.75,0.00,12.75
Children and Young Peoples Services,Head of Childrens Social Care,085334,West Rainton Satelite Home,Supplies and Services,308011,Furniture,07-Aug-2019,000008669093263,LAURA ASHLEY DURHAM DU,5719,Furniture repair and replacement,41.00,0.00,41.00
Children and Young Peoples Services,Head of Childrens Social Care,085334,West Rainton Satelite Home,Supplies and Services,328041,Clothing uniforms and laundry E328,07-Aug-2019,000008669093265,B & M RETAIL,5310,Clothing uniforms and laundry,9.00,0.00,9.00
Regeneration and Local Services,Environmental Services,010314,Nei.Prot - Bereavement Services,Supplies and Services,304259,Equipment and Materials,07-Aug-2019,000008669093285,Durham County CNCL,9399,Equipment-purchase and rental,11.00,0.00,11.00
Children and Young Peoples Services,Head of Early Help Inclusion & Vulnerable Children.,085956,Lumley,Supplies and Services,304649,Equipment and Materials,07-Aug-2019,000008669093319,Amazon.co.uk MH73L56B4,5969,Toys,54.97,9.17,45.80
Children and Young Peoples Services,Head of Early Help Inclusion & Vulnerable Children.,085962,Aycliffe Secure - Durham,Supplies and Services,324117,Provisions E324,07-Aug-2019,000008669093325,TESCO STORES 6329,5411,Catering costs - provisions,55.39,0.00,55.39
Children and Young Peoples Services,Head of Early Help Inclusion & Vulnerable Children.,085965,Barnard,Supplies and Services,328041,Clothing uniforms and laundry E328,07-Aug-2019,000008669093329,FOOTASYLUM PLC,5691,Clothing uniforms and laundry,49.98,0.00,49.98
Regeneration and Local Services,Culture Sport and Tourism,054813,Gala Theatre - Technical,Supplies and Services,304403,Equipment and Materials,07-Aug-2019,000008669093335,AMZNMktplace,5999,Other consumables,10.99,0.00,10.99
Transformation and Partnerships,Business Support,052986,CYPS - Locality and Operational Support,Supplies and Services,338057,Services,07-Aug-2019,000008669093343,BACKCARE SOLUTIONS LTD,5047,Medical fees 338057,495.36,82.56,412.80
Regeneration and Local Services,Environmental Services,011060,C&G - Hardwick Park Catering,Premises,145009,Cleaning and Domestic Supplies,07-Aug-2019,000008669093367,ALLIANCE DISPOSABLES L,2842,Other cleaning and domestic costs,146.72,24.45,122.27
Regeneration and Local Services,Environmental Services,011060,C&G - Hardwick Park Catering,Premises,145009,Cleaning and Domestic Supplies,07-Aug-2019,000008669093371,ALLIANCE DISPOSABLES L,2842,Other cleaning and domestic costs,47.70,7.95,39.75
Regeneration and Local Services,Environmental Services,011060,C&G - Hardwick Park Catering,Premises,145009,Cleaning and Domestic Supplies,07-Aug-2019,000008669093377,ALLIANCE DISPOSABLES L,2842,Other cleaning and domestic costs,21.62,3.60,18.02
Regeneration and Local Services,Development and Housing,030755,Durham Employment & Skills - Other Training,Employees,040149,Recruitment Instruction and Training,07-Aug-2019,000008669093383,NCS VUE CITB HS&E REV,8299,Training-all costs,483.00,0.00,483.00
Regeneration and Local Services,Corporate Property and Land,021234,Catering - Locomotion,Premises,145009,Cleaning and Domestic Supplies,07-Aug-2019,000008669093399,ALLIANCE DISPOSABLES L,2842,Other cleaning and domestic costs,42.36,7.06,35.30
Regeneration and Local Services,Corporate Property and Land,021234,Catering - Locomotion,Premises,145009,Cleaning and Domestic Supplies,07-Aug-2019,000008669093399 - 1,ALLIANCE DISPOSABLES L,2842,Other cleaning and domestic costs,0.03,,0.03
Regeneration and Local Services,Corporate Property and Land,021234,Catering - Locomotion,Supplies and Services,324117,Provisions E324,07-Aug-2019,000008669093403,WWW.ADELIEFOODS.CO.UK,5499,Catering costs - provisions,48.19,0.00,48.19
Regeneration and Local Services,Corporate Property and Land,010525,Catering - Green Lane,Premises,145009,Cleaning and Domestic Supplies,07-Aug-2019,000008669093421,ALLIANCE DISPOSABLES L,2842,Other cleaning and domestic costs,57.49,9.58,47.91
Regeneration and Local Services,Corporate Property and Land,010525,Catering - Green Lane,Premises,145009,Cleaning and Domestic Supplies,07-Aug-2019,000008669093427,ALLIANCE DISPOSABLES L,2842,Other cleaning and domestic costs,203.12,33.85,169.27
Regeneration and Local Services,Development and Housing,030554,International Relations 030554,Supplies and Services,332047,Printing Stationery and Gen Off Exps,07-Aug-2019,000008669093439,RYMAN,5943,Stationery,77.90,0.00,77.90
Children and Young Peoples Services,Head of Early Help Inclusion & Vulnerable Children.,071441,Bishop Auckland One Point Hub,Supplies and Services,312009,Newspapers books and periodicals E312,07-Aug-2019,000008669093441,VALUE PRODUCTS LTD,5999,Newspapers books and periodicals,11.88,0.00,11.88
Children and Young Peoples Services,Head of Early Help Inclusion & Vulnerable Children.,071443,Stanley One Point Hub,Supplies and Services,304403,Equipment and Materials,07-Aug-2019,000008669093445,TROPHY STORE,5947,Other consumables,69.29,11.55,57.74
Children and Young Peoples Services,Head of Childrens Social Care,085331,New Lea Childrens Home,Supplies and Services,312011,Newspapers books and periodicals E312,07-Aug-2019,000008669093447,HOME BARGAINS,5251,Books-school library,48.98,8.16,40.82
Children and Young Peoples Services,Head of Childrens Social Care,085331,New Lea Childrens Home,Supplies and Services,328041,Clothing uniforms and laundry E328,07-Aug-2019,000008669093451,ORIGINAL FACTORY S,5311,Clothing uniforms and laundry,165.00,0.00,165.00
Children and Young Peoples Services,Head of Childrens Social Care,085331,New Lea Childrens Home,Supplies and Services,328041,Clothing uniforms and laundry E328,07-Aug-2019,000008669093453,THE RANGE,5311,Clothing uniforms and laundry,55.53,0.00,55.53
Children and Young Peoples Services,Head of Childrens Social Care,085331,New Lea Childrens Home,Supplies and Services,338048,Services,07-Aug-2019,000008669093459,HMCOURTS-SERVICE.G,9222,Court costs 338048,40.00,0.00,40.00
Regeneration and Local Services,Development and Housing,030544,Rural Employability - Client Engagement,Employees,040149,Recruitment Instruction and Training,07-Aug-2019,000008669093479,WWW.MOBILETESTING.UK.C,8220,Training-all costs,175.00,0.00,175.00
Children and Young Peoples Services,Head of Childrens Social Care,085333,Coxhoe Satelite Home,Supplies and Services,324117,Provisions E324,07-Aug-2019,000008669093485,SAINSBURYS 0776,5411,Catering costs - provisions,35.95,0.00,35.95
Children and Young Peoples Services,Head of Childrens Social Care,085333,Coxhoe Satelite Home,Supplies and Services,348037,Subsistence E348,07-Aug-2019,000008669093487,KFC-CONSETT DT,5814,Subsistence,26.36,4.39,21.97
Children and Young Peoples Services,Head of Childrens Social Care,085333,Coxhoe Satelite Home,Supplies and Services,348037,Subsistence E348,07-Aug-2019,000008669093493,MCDONALDS,5812,Subsistence,5.33,0.89,4.44
Children and Young Peoples Services,Head of Childrens Social Care,085333,Coxhoe Satelite Home,Transport,235057,Public Transport,07-Aug-2019,000008669093495,TRAINGENIUS.COM,4112,Staff travelling,52.00,0.00,52.00
Regeneration and Local Services,Development and Housing,031500,Housing Solutions - Core Team,Employees,040149,Recruitment Instruction and Training,07-Aug-2019,000008669093503,PREMIER INN,3811,Training-all costs,192.00,32.00,160.00
Regeneration and Local Services,Corporate Property and Land,030691,Catering - Durham Dales Centre,Premises,145009,Cleaning and Domestic Supplies,07-Aug-2019,000008669093533,ALLIANCE DISPOSABLES L,2842,Other cleaning and domestic costs,23.88,3.98,19.90
Regeneration and Local Services,Corporate Property and Land,030691,Catering - Durham Dales Centre,Premises,145009,Cleaning and Domestic Supplies,07-Aug-2019,000008669093533 - 1,ALLIANCE DISPOSABLES L,2842,Other cleaning and domestic costs,25.40,,25.40
Children and Young Peoples Services,Head of Early Help Inclusion & Vulnerable Children.,074000,TTF-Attachment and Results,Supplies and Services,324117,Provisions E324,07-Aug-2019,000008669093543,ASDA GEORGE COM LEEDS,5411,Catering costs - provisions,147.95,24.66,123.29
Children and Young Peoples Services,Head of Early Help Inclusion & Vulnerable Children.,074000,TTF-Attachment and Results,Supplies and Services,324117,Provisions E324,07-Aug-2019,000008669093549,ASDA GEORGE COM LEEDS,5411,Catering costs - provisions,-69.96,0.00,-69.96
Children and Young Peoples Services,Head of Early Help Inclusion & Vulnerable Children.,088100,Durham West & CLS 0-19 Targeted Family Support,Supplies and Services,324117,Provisions E324,07-Aug-2019,000008669093557,ASDA GROCERIES ONLINE,5411,Catering costs - provisions,16.91,0.00,16.91
Children and Young Peoples Services,Head of Childrens Social Care,085342,9 Cedar Drive Aycliffe,Supplies and Services,324117,Provisions E324,07-Aug-2019,000008669093569,TESCO STORES 2916,5411,Catering costs - provisions,1.49,0.00,1.49
Regeneration and Local Services,Development and Housing,030771,Durham Advance Flexible Fund,Supplies and Services,348037,Subsistence E348,07-Aug-2019,000008669093575,COSTA COFFEE,5814,Subsistence,5.40,0.90,4.50
Children and Young Peoples Services,Head of Early Help Inclusion & Vulnerable Children.,085957,Secure Management,Supplies and Services,384999,Miscellaneous Expenses,07-Aug-2019,000008669093577,FRUUGO,7278,Other expenses,-53.31,0.00,-53.31
Children and Young Peoples Services,Head of Childrens Social Care,085501,Child Care Cases Legal Expenses,Supplies and Services,384199,Miscellaneous Expenses,07-Aug-2019,000008669093579,SUNDERLAND CC,7523,Other hired and contracted services,55.00,0.00,55.00
Children and Young Peoples Services,Head of Childrens Social Care,085501,Child Care Cases Legal Expenses,Supplies and Services,384199,Miscellaneous Expenses,07-Aug-2019,000008669093581,SUNDERLAND CC,7523,Other hired and contracted services,55.00,0.00,55.00
Transformation and Partnerships,Business Support,052986,CYPS - Locality and Operational Support,Supplies and Services,304259,Equipment and Materials,07-Aug-2019,000008669093583,2MAA011097090 TD E-PMT,9399,Equipment-purchase and rental,75.00,0.00,75.00
Regeneration and Local Services,Corporate Property and Land,021324,Catering - Meadowfield,Premises,145009,Cleaning and Domestic Supplies,07-Aug-2019,000008669093587,ALLIANCE DISPOSABLES L,2842,Other cleaning and domestic costs,25.78,4.30,21.48
Adult and Health Services,Head of Adults,055301,Stanley Pathways,Supplies and Services,328041,Clothing uniforms and laundry E328,07-Aug-2019,000008669093589,W BOYES & CO LTD CHEST,5310,Clothing uniforms and laundry,8.00,0.00,8.00
Children and Young Peoples Services,Head of Childrens Social Care,085333,Coxhoe Satelite Home,Supplies and Services,324117,Provisions E324,07-Aug-2019,000008669093597,TESCO STORES 2916,5411,Catering costs - provisions,50.35,0.00,50.35
Children and Young Peoples Services,Head of Education and Skills,071802,Louisa Cent Nursery,Supplies and Services,324117,Provisions E324,07-Aug-2019,000008669093599,ASDA SUPERSTORE,5411,Catering costs - provisions,22.29,0.00,22.29
Resources BK0010,Corporate Finance & Commercial Services,069800,Corporate Procurement 069800,Employees,040149,Recruitment Instruction and Training,07-Aug-2019,000008669093605,WWW.CIPS.ORG,8699,Training-all costs,187.00,0.00,187.00
Regeneration and Local Services,Technical Services CM0300,010984,Training and Development,Supplies and Services,304259,Equipment and Materials,07-Aug-2019,000008669093607,WWW.CHAS.CO.UK,9399,Equipment-purchase and rental,870.00,145.00,725.00
Children and Young Peoples Services,Head of Childrens Social Care,085332,Middlestone Moor CU,Premises,115125,Repairs to Grounds,07-Aug-2019,000008669093611,AMZNMKTPLACE AMAZON.CO,5999,General maintenance,32.94,0.00,32.94
Children and Young Peoples Services,Head of Childrens Social Care,085332,Middlestone Moor CU,Supplies and Services,348037,Subsistence E348,07-Aug-2019,000008669093613,KFC THINFORD DURHAM PR,5814,Subsistence,26.74,0.00,26.74
Children and Young Peoples Services,Head of Childrens Social Care,085380,Operations Manager LAC Resources,Supplies and Services,324117,Provisions E324,07-Aug-2019,000008669093615,ASDA STORES,5411,Catering costs - provisions,19.08,0.00,19.08
Regeneration and Local Services,Environmental Services,031200,North Pennines Core,Third Party Payments 4THIRD,430100,Rendered by Private Contractors,07-Aug-2019,000008669093617,WWW.SHOPEQUIPANDDESIGN,7399,Payments to sub-contractors,117.00,0.00,117.00
Children and Young Peoples Services,Head of Childrens Social Care,085396,Fostering Placement Team,Supplies and Services,338099,Services,07-Aug-2019,000008669093641,HOLIDAY COTTAGES,7033,Other services,"1,226.00",0.00,1226.00
Regeneration and Local Services,Corporate Property and Land,021235,Catering - Wharton Park,Supplies and Services,324117,Provisions E324,07-Aug-2019,000008669093655,WWW.ADELIEFOODS.CO.UK,5499,Catering costs - provisions,46.14,0.00,46.14
Adult and Health Services,Head of Adults,055309,Peterlee Pathways,Supplies and Services,328041,Clothing uniforms and laundry E328,07-Aug-2019,000008669093657,POUNDSTRETCHER 396,5331,Clothing uniforms and laundry,7.56,0.00,7.56
Adult and Health Services,Head of Adults,055309,Peterlee Pathways,Supplies and Services,324117,Provisions E324,07-Aug-2019,000008669093661,ASDA STORES LTD,5411,Catering costs - provisions,17.19,0.00,17.19
Regeneration and Local Services,Corporate Property and Land,030691,Catering - Durham Dales Centre,Supplies and Services,384999,Miscellaneous Expenses,07-Aug-2019,000008669093691,WWW.CAFFEVINCI.COM,5046,Other expenses,380.10,0.00,380.10
Children and Young Peoples Services,Head of Early Help Inclusion & Vulnerable Children.,085810,CDYJS - Interventions Team,Supplies and Services,340001,Postages E340,07-Aug-2019,000008669093701,POST OFFICE COUNTER,9402,Postages,20.00,0.00,20.00
Regeneration and Local Services,Development and Housing,031576,B& B - Temp Accom,Supplies and Services,364320,Grants to Voluntary Organisations,07-Aug-2019,000008674475593,PREMIER INN,3811,Accommodation assistance,85.50,14.25,71.25
Children and Young Peoples Services,Head of Early Help Inclusion & Vulnerable Children.,085957,Secure Management,Supplies and Services,304649,Equipment and Materials,07-Aug-2019,000008674475633,SPORTSDIRECT.COM,5941,Toys,124.99,0.00,124.99
Children and Young Peoples Services,Head of Early Help Inclusion & Vulnerable Children.,085955,Auckland,Supplies and Services,328041,Clothing uniforms and laundry E328,07-Aug-2019,000008674475635,SPORTSDIRECT.COM,5941,Clothing uniforms and laundry,32.95,5.49,27.46
Regeneration and Local Services,Environmental Services,011060,C&G - Hardwick Park Catering,Supplies and Services,324117,Provisions E324,07-Aug-2019,000008674475647,BATLEYS PERTH,5300,Catering costs - provisions,-5.45,0.00,-5.45
Children and Young Peoples Services,Head of Childrens Social Care,085332,Middlestone Moor CU,Premises,115125,Repairs to Grounds,07-Aug-2019,000008674475813,AMZNMKTPLACE AMAZON.CO,5999,General maintenance,24.31,0.00,24.31
Regeneration and Local Services,Development and Housing,031500,Housing Solutions - Core Team,Employees,040149,Recruitment Instruction and Training,07-Aug-2019,000008674475815,PREMIER INN,3811,Training-all costs,95.00,0.00,95.00
Resources BK0010,Digital and Customer Services,011103,Service Improvement 011103,Supplies and Services,304335,Equipment and Materials,08-Aug-2019,000008669093011,AMZNMktplace,5999,ICT supplies etc,31.38,5.24,26.14
Resources BK0010,Digital and Customer Services,065432,Web Development Group,Supplies and Services,342053,Computers and Communications,08-Aug-2019,000008669093029,WORDFENCE,5045,Computer software,40.43,0.00,40.43
Resources BK0010,Digital and Customer Services,065432,Web Development Group,Supplies and Services,342053,Computers and Communications,08-Aug-2019,000008669093033,WORDFENCE,5045,Computer software,1.68,0.00,1.68
Children and Young Peoples Services,Head of Childrens Social Care,085341,High Etherley Satelite Home,Supplies and Services,304259,Equipment and Materials,08-Aug-2019,000008674475537,SPORTSDIRECT 368,5941,Equipment-purchase and rental,11.99,0.00,11.99
Children and Young Peoples Services,Head of Education and Skills,071801,Selby Cottage Childcare Centre,Supplies and Services,324117,Provisions E324,08-Aug-2019,000008674475541,JR HOLLAND FOODSERVICE,5499,Catering costs - provisions,422.54,0.00,422.54
Children and Young Peoples Services,Head of Education and Skills,071801,Selby Cottage Childcare Centre,Supplies and Services,324117,Provisions E324,08-Aug-2019,000008674475543,ALDI 32 774,5411,Catering costs - provisions,29.35,0.00,29.35
Children and Young Peoples Services,Head of Education and Skills,071801,Selby Cottage Childcare Centre,Supplies and Services,304999,Equipment and Materials,08-Aug-2019,000008674475545,Amazon Prime MH20I0DH4,5968,Misc equipment tools and materials,7.99,0.00,7.99
Regeneration and Local Services,Development and Housing,031617,Project Beta Sustainability Fund,Supplies and Services,304259,Equipment and Materials,08-Aug-2019,000008674475547,CITIZENCARD,9399,Equipment-purchase and rental,10.00,0.00,10.00
Children and Young Peoples Services,Head of Childrens Social Care,085333,Coxhoe Satelite Home,Supplies and Services,324117,Provisions E324,08-Aug-2019,000008674475575,TESCO STORES 4358,5411,Catering costs - provisions,22.24,0.00,22.24
Regeneration and Local Services,Environmental Services,010367,C&G - South Grounds Maintenance,Supplies and Services,304403,Equipment and Materials,08-Aug-2019,000008674475577,MAXWELLS DIY,5231,Other consumables,21.00,3.50,17.50
Regeneration and Local Services,Corporate Property and Land,021242,Catering - County Hall,Premises,145009,Cleaning and Domestic Supplies,08-Aug-2019,000008674475581,ALLIANCE DISPOSABLES L,2842,Other cleaning and domestic costs,427.26,71.21,356.05
Regeneration and Local Services,Corporate Property and Land,021242,Catering - County Hall,Premises,145009,Cleaning and Domestic Supplies,08-Aug-2019,000008674475581 - 1,ALLIANCE DISPOSABLES L,2842,Other cleaning and domestic costs,0.15,,0.15
Regeneration and Local Services,Culture Sport and Tourism,054235,Bishop Auckland Town Hall Cafe,Supplies and Services,324117,Provisions E324,08-Aug-2019,000008674475583,HERON FOODS LTD,5499,Catering costs - provisions,9.38,0.00,9.38
Resources BK0010,Digital and Customer Services,065481,Technical Services 065481,Supplies and Services,372009,Subscriptions E372,08-Aug-2019,000008674475585,WEB NETWORKSOLUTIONS,5968,Subscriptions 372009,7.93,0.00,7.93
Resources BK0010,Digital and Customer Services,065481,Technical Services 065481,Supplies and Services,372009,Subscriptions E372,08-Aug-2019,000008674475587,WEB NETWORKSOLUTIONS,5968,Subscriptions 372009,-1.98,0.00,-1.98
Children and Young Peoples Services,Head of Childrens Social Care,085334,West Rainton Satelite Home,Supplies and Services,304403,Equipment and Materials,08-Aug-2019,000008674475601,AMZNMktplace,5999,Other consumables,44.99,7.50,37.49
Regeneration and Local Services,Culture Sport and Tourism,054813,Gala Theatre - Technical,Supplies and Services,304403,Equipment and Materials,08-Aug-2019,000008674475609,AMZNMktplace,5999,Other consumables,44.00,0.00,44.00
Regeneration and Local Services,Culture Sport and Tourism,054813,Gala Theatre - Technical,Supplies and Services,304403,Equipment and Materials,08-Aug-2019,000008674475611,AMZNMktplace,5999,Other consumables,22.00,0.00,22.00
Regeneration and Local Services,Culture Sport and Tourism,054813,Gala Theatre - Technical,Supplies and Services,304403,Equipment and Materials,08-Aug-2019,000008674475613,AMZNMktplace,5999,Other consumables,44.00,0.00,44.00
Regeneration and Local Services,Culture Sport and Tourism,054813,Gala Theatre - Technical,Supplies and Services,304259,Equipment and Materials,08-Aug-2019,000008674475615,WWW.WHYBUYNEW.CO.UK,5732,Equipment-purchase and rental,84.60,0.00,84.60
Regeneration and Local Services,Environmental Services,031221,North Pennines - Bowlees,Supplies and Services,328041,Clothing uniforms and laundry E328,08-Aug-2019,000008674475619,WWW.MUDDYFACES.CO.UK,5641,Clothing uniforms and laundry,85.78,14.30,71.48
Regeneration and Local Services,Environmental Services,010314,Nei.Prot - Bereavement Services,Supplies and Services,304259,Equipment and Materials,08-Aug-2019,000008674475621,Durham County CNCL,9399,Equipment-purchase and rental,11.00,0.00,11.00
Regeneration and Local Services,Development and Housing,030771,Durham Advance Flexible Fund,Supplies and Services,324117,Provisions E324,08-Aug-2019,000008674475625,TESCO STORES 2371,5411,Catering costs - provisions,4.90,0.82,4.08
Regeneration and Local Services,Development and Housing,030771,Durham Advance Flexible Fund,Supplies and Services,348037,Subsistence E348,08-Aug-2019,000008674475627,COSTA COFFEE 43038640,5814,Subsistence,4.50,0.75,3.75
Children and Young Peoples Services,Head of Early Help Inclusion & Vulnerable Children.,085955,Auckland,Supplies and Services,324117,Provisions E324,08-Aug-2019,000008674475631,TESCO STORES 6329,5411,Catering costs - provisions,86.23,0.00,86.23
Regeneration and Local Services,Culture Sport and Tourism,054813,Gala Theatre - Technical,Supplies and Services,304259,Equipment and Materials,08-Aug-2019,000008674475637,Prime Video MH2963D64,5735,Equipment-purchase and rental,7.99,0.00,7.99
Regeneration and Local Services,Culture Sport and Tourism,054813,Gala Theatre - Technical,Supplies and Services,304403,Equipment and Materials,08-Aug-2019,000008674475639,AMZNMKTPLACE AMAZON.CO,5999,Other consumables,29.90,0.00,29.90
Regeneration and Local Services,Culture Sport and Tourism,054813,Gala Theatre - Technical,Supplies and Services,312009,Newspapers books and periodicals E312,08-Aug-2019,000008674475641,THE POST OFFICE,5994,Newspapers books and periodicals,17.39,0.00,17.39
Regeneration and Local Services,Culture Sport and Tourism,054813,Gala Theatre - Technical,Supplies and Services,304403,Equipment and Materials,08-Aug-2019,000008674475643,AMZNMKTPLACE AMAZON.CO,5999,Other consumables,11.90,0.00,11.90
Regeneration and Local Services,Environmental Services,011060,C&G - Hardwick Park Catering,Premises,145009,Cleaning and Domestic Supplies,08-Aug-2019,000008674475645,ALLIANCE DISPOSABLES L,2842,Other cleaning and domestic costs,97.25,16.21,81.04
Children and Young Peoples Services,Head of Childrens Social Care,085611,Families First Stanley,Supplies and Services,338045,Services,08-Aug-2019,000008674475665,GATESHEAD COUNCIL MOTO,9399,Legal expenses 338045,35.00,0.00,35.00
Children and Young Peoples Services,Head of Early Help Inclusion & Vulnerable Children.,088108,Spennymoor & Shildon 0-19 Targeted Family Support,Supplies and Services,304403,Equipment and Materials,08-Aug-2019,000008674475667,TESCO STORES 6329,5411,Other consumables,7.00,0.00,7.00
Children and Young Peoples Services,Head of Early Help Inclusion & Vulnerable Children.,088108,Spennymoor & Shildon 0-19 Targeted Family Support,Supplies and Services,324117,Provisions E324,08-Aug-2019,000008674475669,ASDA STORES,5411,Catering costs - provisions,14.91,0.00,14.91
Children and Young Peoples Services,Head of Childrens Social Care,085331,New Lea Childrens Home,Supplies and Services,348037,Subsistence E348,08-Aug-2019,000008674475677,THE STABLES,5812,Subsistence,30.95,0.00,30.95
Children and Young Peoples Services,Head of Childrens Social Care,085331,New Lea Childrens Home,Supplies and Services,328041,Clothing uniforms and laundry E328,08-Aug-2019,000008674475679,ORIGINAL FACTORY S,5311,Clothing uniforms and laundry,30.00,0.00,30.00
Children and Young Peoples Services,Head of Childrens Social Care,085334,West Rainton Satelite Home,Supplies and Services,328041,Clothing uniforms and laundry E328,08-Aug-2019,000008674475689,B AND M RETAIL,5310,Clothing uniforms and laundry,6.47,0.00,6.47
Children and Young Peoples Services,Head of Childrens Social Care,085334,West Rainton Satelite Home,Supplies and Services,348037,Subsistence E348,08-Aug-2019,000008674475693,MCDONALDS,5814,Subsistence,5.47,0.00,5.47
Regeneration and Local Services,Corporate Property and Land,020074,Bldg Serv - R&M Div 74 - Mechanical,Supplies and Services,304221,Equipment and Materials,08-Aug-2019,000008674475709,WWW.TOOLSTATION.COM,5251,Direct materials,76.00,0.00,76.00
Children and Young Peoples Services,Head of Childrens Social Care,085333,Coxhoe Satelite Home,Supplies and Services,324117,Provisions E324,08-Aug-2019,000008674475715,CO-OP GROUP 310016,5411,Catering costs - provisions,3.00,0.00,3.00
Regeneration and Local Services,Environmental Services,010367,C&G - South Grounds Maintenance,Supplies and Services,304221,Equipment and Materials,08-Aug-2019,000008674475727,SCREWFIX DIRECT,5200,Direct materials,79.99,13.33,66.66
Children and Young Peoples Services,Head of Childrens Social Care,085342,9 Cedar Drive Aycliffe,Supplies and Services,324117,Provisions E324,08-Aug-2019,000008674475733,A SUGGITT LTD,5499,Catering costs - provisions,4.75,0.00,4.75
Children and Young Peoples Services,Head of Childrens Social Care,085342,9 Cedar Drive Aycliffe,Supplies and Services,324117,Provisions E324,08-Aug-2019,000008674475739,CO-OP GROUP 010532,5411,Catering costs - provisions,6.05,0.00,6.05
Children and Young Peoples Services,Head of Childrens Social Care,085352,Tow Law CU,Supplies and Services,328041,Clothing uniforms and laundry E328,08-Aug-2019,000008674475747,CLEARANCE BARGAINS,5310,Clothing uniforms and laundry,334.91,0.00,334.91
Children and Young Peoples Services,Head of Early Help Inclusion & Vulnerable Children.,088101,CLS 0-19 Community Family Hub,Supplies and Services,328041,Clothing uniforms and laundry E328,08-Aug-2019,000008674475769,ASDA GEORGE COM LEEDS,5411,Clothing uniforms and laundry,53.00,0.00,53.00
Children and Young Peoples Services,Head of Early Help Inclusion & Vulnerable Children.,074000,TTF-Attachment and Results,Supplies and Services,308011,Furniture,08-Aug-2019,000008674475781,FRANKS THE FLOORING ST,5713,Furniture repair and replacement,150.00,0.00,150.00
Children and Young Peoples Services,Head of Early Help Inclusion & Vulnerable Children.,074000,TTF-Attachment and Results,Supplies and Services,324117,Provisions E324,08-Aug-2019,000008674475785,ASDA GEORGE COM LEEDS,5411,Catering costs - provisions,69.46,11.58,57.88
Regeneration and Local Services,Corporate Property and Land,021324,Catering - Meadowfield,Premises,145009,Cleaning and Domestic Supplies,08-Aug-2019,000008674475791,ALLIANCE DISPOSABLES L,2842,Other cleaning and domestic costs,89.14,14.86,74.28
Children and Young Peoples Services,Head of Childrens Social Care,085333,Coxhoe Satelite Home,Supplies and Services,324117,Provisions E324,08-Aug-2019,000008674475795,TESCO STORES 2916,5411,Catering costs - provisions,52.88,0.00,52.88
Children and Young Peoples Services,Head of Childrens Social Care,085333,Coxhoe Satelite Home,Supplies and Services,324117,Provisions E324,08-Aug-2019,000008674475797,TESCO STORES 2916,5411,Catering costs - provisions,33.50,0.00,33.50
Children and Young Peoples Services,Head of Childrens Social Care,085333,Coxhoe Satelite Home,Supplies and Services,324117,Provisions E324,08-Aug-2019,000008674475799,WALKERS BUTCHERS & BAK,5499,Catering costs - provisions,10.50,0.00,10.50
Children and Young Peoples Services,Head of Childrens Social Care,085332,Middlestone Moor CU,Supplies and Services,384871,Miscellaneous Expenses,08-Aug-2019,000008674475809,NUFC www.nufc.co.uk,7941,Training-other activities,46.00,0.00,46.00
Children and Young Peoples Services,Head of Childrens Social Care,085332,Middlestone Moor CU,Supplies and Services,324117,Provisions E324,08-Aug-2019,000008674475811,ASDA SUPERSTORE 4987,5411,Catering costs - provisions,49.99,0.00,49.99
Adult and Health Services,Head of Adults,055807,Newton Aycliffe Pathways,Supplies and Services,304403,Equipment and Materials,08-Aug-2019,000008674475823,AMZNMktplace,5999,Other consumables,17.98,0.00,17.98
Adult and Health Services,Head of Adults,055807,Newton Aycliffe Pathways,Supplies and Services,304403,Equipment and Materials,08-Aug-2019,000008674475827,AMZNMktplace,5999,Other consumables,23.98,0.00,23.98
Adult and Health Services,Head of Adults,055807,Newton Aycliffe Pathways,Supplies and Services,304403,Equipment and Materials,08-Aug-2019,000008674475829,AMZNMktplace,5999,Other consumables,41.98,0.00,41.98
Adult and Health Services,Head of Adults,055807,Newton Aycliffe Pathways,Supplies and Services,304403,Equipment and Materials,08-Aug-2019,000008674475831,AMZNMktplace,5999,Other consumables,8.99,0.00,8.99
Adult and Health Services,Head of Adults,055310,Positive Journeys (Tudhoe),Supplies and Services,324117,Provisions E324,08-Aug-2019,000008674475837,ASDA SUPERSTORE 4987,5411,Catering costs - provisions,1.65,0.00,1.65
Children and Young Peoples Services,Head of Childrens Social Care,085613,Families First Durham Central,Supplies and Services,304259,Equipment and Materials,08-Aug-2019,000008674475845,Durham County CNCL,9399,Equipment-purchase and rental,-35.00,0.00,-35.00
Children and Young Peoples Services,Head of Early Help Inclusion & Vulnerable Children.,085810,CDYJS - Interventions Team,Supplies and Services,304403,Equipment and Materials,08-Aug-2019,000008674475865,AMZNMktplace,5999,Other consumables,6.21,1.04,5.17
Regeneration and Local Services,Corporate Property and Land,021242,Catering - County Hall,Supplies and Services,324117,Provisions E324,08-Aug-2019,000008680909949,BATLEYS PERTH,5300,Catering costs - provisions,139.38,23.23,116.15
Regeneration and Local Services,Corporate Property and Land,021242,Catering - County Hall,Supplies and Services,324117,Provisions E324,08-Aug-2019,000008680909949 - 1,BATLEYS PERTH,5300,Catering costs - provisions,190.59,,190.59
Regeneration and Local Services,Environmental Services,011060,C&G - Hardwick Park Catering,Supplies and Services,324117,Provisions E324,08-Aug-2019,000008680910517,BATLEYS PERTH,5300,Catering costs - provisions,227.40,37.90,189.50
Regeneration and Local Services,Environmental Services,011060,C&G - Hardwick Park Catering,Supplies and Services,324117,Provisions E324,08-Aug-2019,000008680910517 - 1,BATLEYS PERTH,5300,Catering costs - provisions,19.67,,19.67
Regeneration and Local Services,Environmental Services,011060,C&G - Hardwick Park Catering,Supplies and Services,324117,Provisions E324,08-Aug-2019,000008680910531,BATLEYS PERTH,5300,Catering costs - provisions,316.68,52.78,263.90
Regeneration and Local Services,Environmental Services,011060,C&G - Hardwick Park Catering,Supplies and Services,324117,Provisions E324,08-Aug-2019,000008680910531 - 1,BATLEYS PERTH,5300,Catering costs - provisions,244.41,,244.41
Regeneration and Local Services,Environmental Services,011060,C&G - Hardwick Park Catering,Supplies and Services,324117,Provisions E324,08-Aug-2019,000008680910543,BATLEYS PERTH,5300,Catering costs - provisions,153.60,25.60,128.00
Regeneration and Local Services,Environmental Services,011060,C&G - Hardwick Park Catering,Supplies and Services,324117,Provisions E324,08-Aug-2019,000008680910543 - 1,BATLEYS PERTH,5300,Catering costs - provisions,65.06,,65.06
Regeneration and Local Services,Development and Housing,031500,Housing Solutions - Core Team,Employees,040149,Recruitment Instruction and Training,08-Aug-2019,000008680910929,PREMIER INN,3811,Training-all costs,80.00,13.33,66.67
Regeneration and Local Services,Development and Housing,031500,Housing Solutions - Core Team,Employees,040149,Recruitment Instruction and Training,08-Aug-2019,000008680911345,PREMIER INN,3811,Training-all costs,87.00,0.00,87.00
Regeneration and Local Services,Corporate Property and Land,021235,Catering - Wharton Park,Supplies and Services,324117,Provisions E324,08-Aug-2019,000008680911413,BATLEYS PERTH,5300,Catering costs - provisions,230.94,38.49,192.45
Regeneration and Local Services,Corporate Property and Land,021235,Catering - Wharton Park,Supplies and Services,324117,Provisions E324,08-Aug-2019,000008680911413 - 1,BATLEYS PERTH,5300,Catering costs - provisions,15.21,,15.21
Resources BK0010,Digital and Customer Services,065449,Internal Applications Group,Supplies and Services,342053,Computers and Communications,09-Aug-2019,000008674475551,DRI No Limit Software,5734,Computer software,468.66,0.00,468.66
Transformation and Partnerships,Business Support,065461,Business Support 065461,Supplies and Services,372009,Subscriptions E372,09-Aug-2019,000008674475589,WEB NETWORKSOLUTIONS,5968,Subscriptions 372009,0.22,0.00,0.22
Resources BK0010,Digital and Customer Services,065481,Technical Services 065481,Supplies and Services,372009,Subscriptions E372,09-Aug-2019,000008674475591,WEB NETWORKSOLUTIONS,5968,Subscriptions 372009,-0.05,0.00,-0.05
Children and Young Peoples Services,Head of Childrens Social Care,085341,High Etherley Satelite Home,Supplies and Services,304221,Equipment and Materials,09-Aug-2019,000008680909547,HOMEBASE LTD 822,5200,Direct materials,2.49,0.00,2.49
Children and Young Peoples Services,Head of Education and Skills,071801,Selby Cottage Childcare Centre,Supplies and Services,324117,Provisions E324,09-Aug-2019,000008680909595,JR HOLLAND FOODSERVICE,5499,Catering costs - provisions,440.86,0.00,440.86
Regeneration and Local Services,Development and Housing,030773,CLLD North,Supplies and Services,348037,Subsistence E348,09-Aug-2019,000008680909687,COSTA COFFEE,5814,Subsistence,6.10,1.02,5.08
Children and Young Peoples Services,Head of Education and Skills,078411,16-19 Education & Training,Supplies and Services,304221,Equipment and Materials,09-Aug-2019,000008680909705,SCREWFIX DIRECT LT,5211,Direct materials,-46.97,0.00,-46.97
Adult and Health Services,Head of Adults,055302,Durham Pathways,Supplies and Services,308011,Furniture,09-Aug-2019,000008680909725,PAYPAL PLATINUMENT,5712,Furniture repair and replacement,52.99,0.00,52.99
Adult and Health Services,Head of Adults,055302,Durham Pathways,Supplies and Services,308011,Furniture,09-Aug-2019,000008680909731,WWW.JADEBAY.COM,5712,Furniture repair and replacement,98.99,0.00,98.99
Regeneration and Local Services,Business Durham CL0850,030699,Business Growth and Innovation General,Supplies and Services,304999,Equipment and Materials,09-Aug-2019,000008680909841,MAILCHIMP MONTHLY,5968,Misc equipment tools and materials,66.34,0.00,66.34
Regeneration and Local Services,Business Durham CL0850,030699,Business Growth and Innovation General,Supplies and Services,342033,Computers and Communications,09-Aug-2019,000008680909849,SLICKPLAN.COM,7372,Computer hardware,8.28,0.00,8.28
Children and Young Peoples Services,Head of Childrens Social Care,085333,Coxhoe Satelite Home,Supplies and Services,324117,Provisions E324,09-Aug-2019,000008680909901,TESCO STORES 4358,5411,Catering costs - provisions,13.00,0.00,13.00
Regeneration and Local Services,Environmental Services,010367,C&G - South Grounds Maintenance,Supplies and Services,304221,Equipment and Materials,09-Aug-2019,000008680909911,MKM PETERLEE,5211,Direct materials,84.50,14.08,70.42
Regeneration and Local Services,Corporate Property and Land,021242,Catering - County Hall,Supplies and Services,324117,Provisions E324,09-Aug-2019,000008680909959,HOPWELLS LTD,5811,Catering costs - provisions,157.26,0.00,157.26
Regeneration and Local Services,Corporate Property and Land,021242,Catering - County Hall,Supplies and Services,324117,Provisions E324,09-Aug-2019,000008680909965,HOPWELLS LTD,5811,Catering costs - provisions,350.83,0.00,350.83
Regeneration and Local Services,Corporate Property and Land,021242,Catering - County Hall,Supplies and Services,324117,Provisions E324,09-Aug-2019,000008680909969,HOPWELLS LTD,5811,Catering costs - provisions,180.50,0.00,180.50
Regeneration and Local Services,Corporate Property and Land,021242,Catering - County Hall,Supplies and Services,324117,Provisions E324,09-Aug-2019,000008680909977,HOPWELLS LTD,5811,Catering costs - provisions,136.06,0.00,136.06
Regeneration and Local Services,Corporate Property and Land,021242,Catering - County Hall,Supplies and Services,324117,Provisions E324,09-Aug-2019,000008680909983,HOPWELLS LTD,5811,Catering costs - provisions,258.80,0.00,258.80
Regeneration and Local Services,Culture Sport and Tourism,054235,Bishop Auckland Town Hall Cafe,Supplies and Services,324117,Provisions E324,09-Aug-2019,000008680909999,HERON FOODS LTD,5499,Catering costs - provisions,9.08,0.00,9.08
Regeneration and Local Services,Culture Sport and Tourism,054812,Gala Theatre - Catering etc,Supplies and Services,324117,Provisions E324,09-Aug-2019,000008680910019,HOPWELLS LTD,5811,Catering costs - provisions,110.65,0.00,110.65
Regeneration and Local Services,Culture Sport and Tourism,054812,Gala Theatre - Catering etc,Supplies and Services,324117,Provisions E324,09-Aug-2019,000008680910023,HOPWELLS LTD,5811,Catering costs - provisions,66.77,0.00,66.77
Regeneration and Local Services,Culture Sport and Tourism,054812,Gala Theatre - Catering etc,Premises,145009,Cleaning and Domestic Supplies,09-Aug-2019,000008680910029,ALLIANCE DISPOSABLES L,2842,Other cleaning and domestic costs,358.69,59.78,298.91
Regeneration and Local Services,Culture Sport and Tourism,011217,Commercial Management 011217,Supplies and Services,332047,Printing Stationery and Gen Off Exps,09-Aug-2019,000008680910091,WWW.OFFICENEEDSDIRECT.,5943,Stationery,494.32,82.39,411.93
Regeneration and Local Services,Culture Sport and Tourism,011217,Commercial Management 011217,Vehicles Equipment Furniture and Fittings,912521,Purchase-furniture and fittings,09-Aug-2019,000008680910095,DISPLAYSENSE.CO.UK,5046,Purchase-furniture and fittings,162.00,27.00,135.00
Children and Young Peoples Services,Head of Childrens Social Care,085334,West Rainton Satelite Home,Supplies and Services,324117,Provisions E324,09-Aug-2019,000008680910141,TESCO STORES 2371,5411,Catering costs - provisions,10.75,0.00,10.75
Children and Young Peoples Services,Head of Childrens Social Care,085334,West Rainton Satelite Home,Supplies and Services,312011,Newspapers books and periodicals E312,09-Aug-2019,000008680910143,HOME BARGAINS,5251,Books-school library,5.98,0.00,5.98
Children and Young Peoples Services,Head of Childrens Social Care,085334,West Rainton Satelite Home,Supplies and Services,324117,Provisions E324,09-Aug-2019,000008680910149,ALDI 12 774,5411,Catering costs - provisions,14.07,0.00,14.07
Regeneration and Local Services,Culture Sport and Tourism,010664,Freemans Quay Leisure Centre,Supplies and Services,324117,Provisions E324,09-Aug-2019,000008680910171,TESCO STORES 4358,5411,Catering costs - provisions,9.00,1.50,7.50
Children and Young Peoples Services,Head of Childrens Social Care,085334,West Rainton Satelite Home,Supplies and Services,304259,Equipment and Materials,09-Aug-2019,000008680910233,CURRYS,5732,Equipment-purchase and rental,199.00,0.00,199.00
Children and Young Peoples Services,Head of Childrens Social Care,085334,West Rainton Satelite Home,Supplies and Services,332047,Printing Stationery and Gen Off Exps,09-Aug-2019,000008680910237,RYMAN,5943,Stationery,40.02,6.67,33.35
Children and Young Peoples Services,Head of Childrens Social Care,085334,West Rainton Satelite Home,Supplies and Services,332047,Printing Stationery and Gen Off Exps,09-Aug-2019,000008680910243,ODEON,7832,Stationery,25.59,4.27,21.32
Regeneration and Local Services,Development and Housing,031500,Housing Solutions - Core Team,Employees,040149,Recruitment Instruction and Training,09-Aug-2019,000008680910341,PREMIER INN,3811,Training-all costs,310.50,0.00,310.50
Regeneration and Local Services,Development and Housing,030771,Durham Advance Flexible Fund,Supplies and Services,328041,Clothing uniforms and laundry E328,09-Aug-2019,000008680910357,TK MAXX,5331,Clothing uniforms and laundry,67.06,0.00,67.06
Regeneration and Local Services,Culture Sport and Tourism,010991,County-wide FISCH,Supplies and Services,324117,Provisions E324,09-Aug-2019,000008680910363,WM MORRISONS STORE,5411,Catering costs - provisions,4.50,0.00,4.50
Regeneration and Local Services,Development and Housing,030771,Durham Advance Flexible Fund,Supplies and Services,348037,Subsistence E348,09-Aug-2019,000008680910387,Seventeen,5812,Subsistence,10.15,0.00,10.15
Regeneration and Local Services,Development and Housing,030771,Durham Advance Flexible Fund,Supplies and Services,348037,Subsistence E348,09-Aug-2019,000008680910393,COSTA COFFEE 43038640,5814,Subsistence,5.45,0.91,4.54
Children and Young Peoples Services,Head of Early Help Inclusion & Vulnerable Children.,085957,Secure Management,Employees,040029,Recruitment Instruction and Training,09-Aug-2019,000008680910433,TESCO STORES 6329,5411,Interview expenses,141.47,0.00,141.47
Regeneration and Local Services,Culture Sport and Tourism,054813,Gala Theatre - Technical,Supplies and Services,304403,Equipment and Materials,09-Aug-2019,000008680910457,AMZNMktplace,5999,Other consumables,9.95,0.00,9.95
Transformation and Partnerships,Business Support,052986,CYPS - Locality and Operational Support,Supplies and Services,324117,Provisions E324,09-Aug-2019,000008680910495,THORNTONS LTD,5441,Catering costs - provisions,62.00,10.33,51.67
Regeneration and Local Services,Environmental Services,010301,C&G - North Grounds Maintenance,Supplies and Services,304999,Equipment and Materials,09-Aug-2019,000008680910507,GUSTHARTS CHAINSAW CTR,7699,Misc equipment tools and materials,238.14,0.00,238.14
Regeneration and Local Services,Environmental Services,011060,C&G - Hardwick Park Catering,Supplies and Services,324117,Provisions E324,09-Aug-2019,000008680910551,HOPWELLS LTD,5811,Catering costs - provisions,391.44,65.24,326.20
Regeneration and Local Services,Environmental Services,011060,C&G - Hardwick Park Catering,Supplies and Services,324117,Provisions E324,09-Aug-2019,000008680910551 - 1,HOPWELLS LTD,5811,Catering costs - provisions,44.69,,44.69
Regeneration and Local Services,Environmental Services,011060,C&G - Hardwick Park Catering,Supplies and Services,324117,Provisions E324,09-Aug-2019,000008680910557,HOPWELLS LTD,5811,Catering costs - provisions,118.08,19.68,98.40
Regeneration and Local Services,Environmental Services,011060,C&G - Hardwick Park Catering,Supplies and Services,324117,Provisions E324,09-Aug-2019,000008680910557 - 1,HOPWELLS LTD,5811,Catering costs - provisions,34.49,,34.49
Regeneration and Local Services,Environmental Services,011060,C&G - Hardwick Park Catering,Supplies and Services,324117,Provisions E324,09-Aug-2019,000008680910565,HOPWELLS LTD,5811,Catering costs - provisions,584.34,97.39,486.95
Regeneration and Local Services,Environmental Services,011060,C&G - Hardwick Park Catering,Supplies and Services,324117,Provisions E324,09-Aug-2019,000008680910565 - 1,HOPWELLS LTD,5811,Catering costs - provisions,113.38,,113.38
Regeneration and Local Services,Environmental Services,011060,C&G - Hardwick Park Catering,Supplies and Services,324117,Provisions E324,09-Aug-2019,000008680910573,HOPWELLS LTD,5811,Catering costs - provisions,51.24,8.54,42.70
Regeneration and Local Services,Environmental Services,011060,C&G - Hardwick Park Catering,Supplies and Services,324117,Provisions E324,09-Aug-2019,000008680910573 - 1,HOPWELLS LTD,5811,Catering costs - provisions,89.47,,89.47
Regeneration and Local Services,Environmental Services,011060,C&G - Hardwick Park Catering,Supplies and Services,324117,Provisions E324,09-Aug-2019,000008680910579,HOPWELLS LTD,5811,Catering costs - provisions,297.42,49.57,247.85
Regeneration and Local Services,Environmental Services,011060,C&G - Hardwick Park Catering,Supplies and Services,324117,Provisions E324,09-Aug-2019,000008680910591,HOPWELLS LTD,5811,Catering costs - provisions,91.14,15.19,75.95
Regeneration and Local Services,Environmental Services,011060,C&G - Hardwick Park Catering,Supplies and Services,324117,Provisions E324,09-Aug-2019,000008680910591 - 1,HOPWELLS LTD,5811,Catering costs - provisions,11.95,,11.95
Regeneration and Local Services,Environmental Services,011060,C&G - Hardwick Park Catering,Supplies and Services,324117,Provisions E324,09-Aug-2019,000008680910595,HOPWELLS LTD,5811,Catering costs - provisions,680.04,113.34,566.70
Regeneration and Local Services,Environmental Services,011060,C&G - Hardwick Park Catering,Supplies and Services,324117,Provisions E324,09-Aug-2019,000008680910595 - 1,HOPWELLS LTD,5811,Catering costs - provisions,37.25,,37.25
Regeneration and Local Services,Environmental Services,011060,C&G - Hardwick Park Catering,Supplies and Services,324117,Provisions E324,09-Aug-2019,000008680910609,HOPWELLS LTD,5811,Catering costs - provisions,-20.74,-3.46,-17.28
Regeneration and Local Services,Culture Sport and Tourism,054815,Gala Theatre Stage School,Supplies and Services,324117,Provisions E324,09-Aug-2019,000008680910651,TESCO STORES 6029,5411,Catering costs - provisions,24.10,0.00,24.10
Regeneration and Local Services,Corporate Property and Land,021234,Catering - Locomotion,Supplies and Services,324117,Provisions E324,09-Aug-2019,000008680910669,HOPWELLS LTD,5811,Catering costs - provisions,211.56,35.26,176.30
Regeneration and Local Services,Corporate Property and Land,021234,Catering - Locomotion,Supplies and Services,324117,Provisions E324,09-Aug-2019,000008680910669 - 1,HOPWELLS LTD,5811,Catering costs - provisions,149.80,,149.80
Regeneration and Local Services,Corporate Property and Land,021234,Catering - Locomotion,Supplies and Services,324117,Provisions E324,09-Aug-2019,000008680910675,HOPWELLS LTD,5811,Catering costs - provisions,136.68,22.78,113.90
Regeneration and Local Services,Corporate Property and Land,021234,Catering - Locomotion,Supplies and Services,324117,Provisions E324,09-Aug-2019,000008680910675 - 1,HOPWELLS LTD,5811,Catering costs - provisions,313.16,,313.16
Regeneration and Local Services,Corporate Property and Land,021234,Catering - Locomotion,Supplies and Services,324117,Provisions E324,09-Aug-2019,000008680910685,HOPWELLS LTD,5811,Catering costs - provisions,73.38,12.23,61.15
Regeneration and Local Services,Corporate Property and Land,021234,Catering - Locomotion,Supplies and Services,324117,Provisions E324,09-Aug-2019,000008680910685 - 1,HOPWELLS LTD,5811,Catering costs - provisions,364.82,,364.82
Regeneration and Local Services,Corporate Property and Land,021234,Catering - Locomotion,Supplies and Services,324117,Provisions E324,09-Aug-2019,000008680910691,HOPWELLS LTD,5811,Catering costs - provisions,123.00,20.50,102.50
Regeneration and Local Services,Corporate Property and Land,021234,Catering - Locomotion,Supplies and Services,324117,Provisions E324,09-Aug-2019,000008680910691 - 1,HOPWELLS LTD,5811,Catering costs - provisions,464.53,,464.53
Regeneration and Local Services,Corporate Property and Land,021234,Catering - Locomotion,Supplies and Services,324117,Provisions E324,09-Aug-2019,000008680910701,HOPWELLS LTD,5811,Catering costs - provisions,115.50,19.25,96.25
Regeneration and Local Services,Corporate Property and Land,021234,Catering - Locomotion,Supplies and Services,324117,Provisions E324,09-Aug-2019,000008680910701 - 1,HOPWELLS LTD,5811,Catering costs - provisions,226.37,,226.37
Regeneration and Local Services,Corporate Property and Land,021234,Catering - Locomotion,Supplies and Services,324117,Provisions E324,09-Aug-2019,000008680910705,HOPWELLS LTD,5811,Catering costs - provisions,102.24,17.04,85.20
Regeneration and Local Services,Corporate Property and Land,021234,Catering - Locomotion,Supplies and Services,324117,Provisions E324,09-Aug-2019,000008680910705 - 1,HOPWELLS LTD,5811,Catering costs - provisions,30.10,,30.10
Regeneration and Local Services,Corporate Property and Land,021234,Catering - Locomotion,Supplies and Services,324117,Provisions E324,09-Aug-2019,000008680910709,HOPWELLS LTD,5811,Catering costs - provisions,-20.74,-3.46,-17.28
Regeneration and Local Services,Corporate Property and Land,021234,Catering - Locomotion,Supplies and Services,324117,Provisions E324,09-Aug-2019,000008680910715,HOPWELLS LTD,5811,Catering costs - provisions,-13.44,-2.24,-11.20
Regeneration and Local Services,Corporate Property and Land,021234,Catering - Locomotion,Supplies and Services,324117,Provisions E324,09-Aug-2019,000008680910719,HOPWELLS LTD,5811,Catering costs - provisions,-22.51,-3.75,-18.76
Regeneration and Local Services,Corporate Property and Land,010525,Catering - Green Lane,Supplies and Services,324117,Provisions E324,09-Aug-2019,000008680910743,HOPWELLS LTD,5811,Catering costs - provisions,275.81,0.00,275.81
Regeneration and Local Services,Corporate Property and Land,010525,Catering - Green Lane,Supplies and Services,324117,Provisions E324,09-Aug-2019,000008680910753,HOPWELLS LTD,5811,Catering costs - provisions,83.18,0.00,83.18
Children and Young Peoples Services,Head of Early Help Inclusion & Vulnerable Children.,088108,Spennymoor & Shildon 0-19 Targeted Family Support,Supplies and Services,384999,Miscellaneous Expenses,09-Aug-2019,000008680910793,ASDA STORES,5411,Other expenses,13.00,0.00,13.00
Children and Young Peoples Services,Head of Childrens Social Care,085611,Families First Stanley,Supplies and Services,338045,Services,09-Aug-2019,000008680910797,Durham County CNCL,9399,Legal expenses 338045,11.00,0.00,11.00
Children and Young Peoples Services,Head of Early Help Inclusion & Vulnerable Children.,071441,Bishop Auckland One Point Hub,Premises,145023,Cleaning and Domestic Supplies,09-Aug-2019,000008680910801,ARGOS RETAIL GROUP,5310,Cleaning and domestic materials,14.99,0.00,14.99
Children and Young Peoples Services,Head of Early Help Inclusion & Vulnerable Children.,071443,Stanley One Point Hub,Supplies and Services,324117,Provisions E324,09-Aug-2019,000008680910811,ASDA GEORGE COM LEEDS,5411,Catering costs - provisions,30.95,0.00,30.95
Children and Young Peoples Services,Head of Childrens Social Care,085333,Coxhoe Satelite Home,Supplies and Services,324117,Provisions E324,09-Aug-2019,000008680910879,TESCO STORES 2371,5411,Catering costs - provisions,141.66,0.00,141.66
Children and Young Peoples Services,Head of Childrens Social Care,085333,Coxhoe Satelite Home,Supplies and Services,324117,Provisions E324,09-Aug-2019,000008680910883,TESCO STORES 2371,5411,Catering costs - provisions,31.50,0.00,31.50
Children and Young Peoples Services,Head of Childrens Social Care,085333,Coxhoe Satelite Home,Supplies and Services,324117,Provisions E324,09-Aug-2019,000008680910889,Coates Butchers,5422,Catering costs - provisions,10.00,0.00,10.00
Children and Young Peoples Services,Head of Childrens Social Care,085333,Coxhoe Satelite Home,Supplies and Services,348037,Subsistence E348,09-Aug-2019,000008680910893,COSTA COFFEE 43039750,5814,Subsistence,13.75,2.29,11.46
Children and Young Peoples Services,Head of Childrens Social Care,085333,Coxhoe Satelite Home,Supplies and Services,308011,Furniture,09-Aug-2019,000008680910901,DUNELM LTD,5714,Furniture repair and replacement,150.00,0.00,150.00
Children and Young Peoples Services,Head of Childrens Social Care,085333,Coxhoe Satelite Home,Supplies and Services,304221,Equipment and Materials,09-Aug-2019,000008680910905,B & Q 1343,5200,Direct materials,34.00,0.00,34.00
Children and Young Peoples Services,Head of Childrens Social Care,085333,Coxhoe Satelite Home,Supplies and Services,328041,Clothing uniforms and laundry E328,09-Aug-2019,000008680910911,THE RANGE,5311,Clothing uniforms and laundry,244.68,0.00,244.68
Regeneration and Local Services,Development and Housing,031500,Housing Solutions - Core Team,Employees,040149,Recruitment Instruction and Training,09-Aug-2019,000008680910935,PREMIER INN,3811,Training-all costs,254.00,42.33,211.67
Children and Young Peoples Services,Head of Childrens Social Care,085342,9 Cedar Drive Aycliffe,Supplies and Services,324117,Provisions E324,09-Aug-2019,000008680910959,TESCO STORES 2916,5411,Catering costs - provisions,85.79,0.00,85.79
Children and Young Peoples Services,Head of Childrens Social Care,085352,Tow Law CU,Supplies and Services,324117,Provisions E324,09-Aug-2019,000008680910989,TESCO STORES 2371,5411,Catering costs - provisions,137.07,0.00,137.07
Children and Young Peoples Services,Head of Childrens Social Care,085352,Tow Law CU,Supplies and Services,328041,Clothing uniforms and laundry E328,09-Aug-2019,000008680910993,WWW.ARGOS.CO.UK,5310,Clothing uniforms and laundry,39.98,0.00,39.98
Children and Young Peoples Services,Head of Childrens Social Care,085352,Tow Law CU,Supplies and Services,328041,Clothing uniforms and laundry E328,09-Aug-2019,000008680910999,WWW.ARGOS.CO.UK,5310,Clothing uniforms and laundry,27.95,0.00,27.95
Regeneration and Local Services,Corporate Property and Land,030691,Catering - Durham Dales Centre,Supplies and Services,324117,Provisions E324,09-Aug-2019,000008680911005,HOPWELLS LTD,5811,Catering costs - provisions,97.32,16.22,81.10
Regeneration and Local Services,Corporate Property and Land,030691,Catering - Durham Dales Centre,Supplies and Services,324117,Provisions E324,09-Aug-2019,000008680911005 - 1,HOPWELLS LTD,5811,Catering costs - provisions,31.53,,31.53
Regeneration and Local Services,Corporate Property and Land,030691,Catering - Durham Dales Centre,Supplies and Services,324117,Provisions E324,09-Aug-2019,000008680911011,HOPWELLS LTD,5811,Catering costs - provisions,319.87,0.00,319.87
Regeneration and Local Services,Corporate Property and Land,030691,Catering - Durham Dales Centre,Supplies and Services,324117,Provisions E324,09-Aug-2019,000008680911017,HOPWELLS LTD,5811,Catering costs - provisions,22.50,3.75,18.75
Regeneration and Local Services,Corporate Property and Land,030691,Catering - Durham Dales Centre,Supplies and Services,324117,Provisions E324,09-Aug-2019,000008680911017 - 1,HOPWELLS LTD,5811,Catering costs - provisions,281.55,,281.55
Regeneration and Local Services,Corporate Property and Land,030691,Catering - Durham Dales Centre,Supplies and Services,324117,Provisions E324,09-Aug-2019,000008680911023,HOPWELLS LTD,5811,Catering costs - provisions,-23.74,0.00,-23.74
Regeneration and Local Services,Corporate Property and Land,030691,Catering - Durham Dales Centre,Supplies and Services,324117,Provisions E324,09-Aug-2019,000008680911029,HOPWELLS LTD,5811,Catering costs - provisions,-22.51,-3.75,-18.76
Regeneration and Local Services,Development and Housing,031576,B& B - Temp Accom,Supplies and Services,364320,Grants to Voluntary Organisations,09-Aug-2019,000008680911067,PREMIER INN,3811,Accommodation assistance,225.50,0.00,225.50
Regeneration and Local Services,Development and Housing,031576,B& B - Temp Accom,Supplies and Services,364320,Grants to Voluntary Organisations,09-Aug-2019,000008680911069,PREMIER INN,3811,Accommodation assistance,311.50,0.00,311.50
Adult and Health Services,Head of Adults,055643,Hawthorn House LD Respite Unit,Supplies and Services,324117,Provisions E324,09-Aug-2019,000008680911077,HOPWELLS LTD,5811,Catering costs - provisions,3.00,0.50,2.50
Adult and Health Services,Head of Adults,055643,Hawthorn House LD Respite Unit,Supplies and Services,324117,Provisions E324,09-Aug-2019,000008680911077 - 1,HOPWELLS LTD,5811,Catering costs - provisions,66.96,,66.96
Regeneration and Local Services,Environmental Services,031233,North Pennines - Pennine Peatlife,Third Party Payments 4THIRD,430100,Rendered by Private Contractors,09-Aug-2019,000008680911087,EB IUCN UK PEATLAND P,7399,Payments to sub-contractors,205.00,0.00,205.00
Regeneration and Local Services,Environmental Services,010301,C&G - North Grounds Maintenance,Supplies and Services,304403,Equipment and Materials,09-Aug-2019,000008680911111,BESCOL,5231,Other consumables,9.66,1.61,8.05
Regeneration and Local Services,Environmental Services,010301,C&G - North Grounds Maintenance,Supplies and Services,304403,Equipment and Materials,09-Aug-2019,000008680911115,BESCOL,5231,Other consumables,82.81,13.80,69.01
Children and Young Peoples Services,Head of Childrens Social Care,085342,9 Cedar Drive Aycliffe,Supplies and Services,304221,Equipment and Materials,09-Aug-2019,000008680911125,SCREWFIX DIRECT,5200,Direct materials,4.84,0.81,4.03
Regeneration and Local Services,Development and Housing,030771,Durham Advance Flexible Fund,Supplies and Services,328041,Clothing uniforms and laundry E328,09-Aug-2019,000008680911153,SHOE ZONE,5661,Clothing uniforms and laundry,25.04,0.00,25.04
Regeneration and Local Services,Development and Housing,030771,Durham Advance Flexible Fund,Supplies and Services,304221,Equipment and Materials,09-Aug-2019,000008680911159,SCREWFIX DIRECT,5200,Direct materials,14.99,2.50,12.49
Children and Young Peoples Services,Head of Early Help Inclusion & Vulnerable Children.,085957,Secure Management,Supplies and Services,304245,Equipment and Materials,09-Aug-2019,000008680911165,YOUR SPRAY PAINTS ORDE,5399,Materials,61.16,0.00,61.16
Children and Young Peoples Services,Head of Early Help Inclusion & Vulnerable Children.,085957,Secure Management,Supplies and Services,304245,Equipment and Materials,09-Aug-2019,000008680911171,WWW.TOOLSTATION.COM,5251,Materials,10.51,1.75,8.76
Children and Young Peoples Services,Head of Early Help Inclusion & Vulnerable Children.,085957,Secure Management,Supplies and Services,304245,Equipment and Materials,09-Aug-2019,000008680911177,SCREWFIX DIRECT,5200,Materials,46.02,7.67,38.35
Children and Young Peoples Services,Head of Early Help Inclusion & Vulnerable Children.,085957,Secure Management,Supplies and Services,304245,Equipment and Materials,09-Aug-2019,000008680911177 - 1,SCREWFIX DIRECT,5200,Materials,0.03,,0.03
Children and Young Peoples Services,Head of Early Help Inclusion & Vulnerable Children.,085956,Lumley,Supplies and Services,384999,Miscellaneous Expenses,09-Aug-2019,000008680911181,ARGOS RETAIL GROUP,5310,Other expenses,69.98,0.00,69.98
Children and Young Peoples Services,Head of Childrens Social Care,085501,Child Care Cases Legal Expenses,Supplies and Services,384199,Miscellaneous Expenses,09-Aug-2019,000008680911187,SUNDERLAND CC,7523,Other hired and contracted services,33.00,0.00,33.00
Regeneration and Local Services,Culture Sport and Tourism,054235,Bishop Auckland Town Hall Cafe,Supplies and Services,324117,Provisions E324,09-Aug-2019,000008680911237,HOPWELLS LTD,5811,Catering costs - provisions,70.24,0.00,70.24
Regeneration and Local Services,Corporate Property and Land,021324,Catering - Meadowfield,Supplies and Services,324117,Provisions E324,09-Aug-2019,000008680911247,HOPWELLS LTD,5811,Catering costs - provisions,33.23,0.00,33.23
Children and Young Peoples Services,Head of Childrens Social Care,085333,Coxhoe Satelite Home,Supplies and Services,324117,Provisions E324,09-Aug-2019,000008680911287,WALKERS BUTCHERS & BAK,5499,Catering costs - provisions,22.59,0.00,22.59
Adult and Health Services,Head of Adults,055807,Newton Aycliffe Pathways,Supplies and Services,324117,Provisions E324,09-Aug-2019,000008680911365,ASDA SUPERSTORE 4987,5411,Catering costs - provisions,23.50,0.00,23.50
Resources BK0010,Legal & Democratic Services,067953,Coroner County Durham & Darlington,Supplies and Services,340001,Postages E340,09-Aug-2019,000008680911379,ROYAL MAIL ONLINE SHOP,9402,Postages,280.00,0.00,280.00
Resources BK0010,Corporate Finance & Commercial Services,065106,Strategic Finance - Commercial Capital & Treasury,Debtors,930177,Debtor - Chapter Homes,09-Aug-2019,000008680911383,COMPANIES HOUSE,9399,Debtor - Chapter Homes,13.00,0.00,13.00
Regeneration and Local Services,Corporate Property and Land,021235,Catering - Wharton Park,Supplies and Services,324117,Provisions E324,09-Aug-2019,000008680911423,HOPWELLS LTD,5811,Catering costs - provisions,180.24,30.04,150.20
Regeneration and Local Services,Corporate Property and Land,021235,Catering - Wharton Park,Supplies and Services,324117,Provisions E324,09-Aug-2019,000008680911423 - 1,HOPWELLS LTD,5811,Catering costs - provisions,20.68,,20.68
Regeneration and Local Services,Corporate Property and Land,021235,Catering - Wharton Park,Supplies and Services,324117,Provisions E324,09-Aug-2019,000008680911431,HOPWELLS LTD,5811,Catering costs - provisions,350.88,58.48,292.40
Regeneration and Local Services,Corporate Property and Land,021235,Catering - Wharton Park,Supplies and Services,324117,Provisions E324,09-Aug-2019,000008680911431 - 1,HOPWELLS LTD,5811,Catering costs - provisions,11.91,,11.91
Regeneration and Local Services,Corporate Property and Land,021235,Catering - Wharton Park,Supplies and Services,324117,Provisions E324,09-Aug-2019,000008680911439,HOPWELLS LTD,5811,Catering costs - provisions,189.60,31.60,158.00
Regeneration and Local Services,Corporate Property and Land,021235,Catering - Wharton Park,Supplies and Services,324117,Provisions E324,09-Aug-2019,000008680911439 - 1,HOPWELLS LTD,5811,Catering costs - provisions,124.59,,124.59
Regeneration and Local Services,Corporate Property and Land,021235,Catering - Wharton Park,Supplies and Services,324117,Provisions E324,09-Aug-2019,000008680911447,HOPWELLS LTD,5811,Catering costs - provisions,144.78,24.13,120.65
Regeneration and Local Services,Corporate Property and Land,021235,Catering - Wharton Park,Supplies and Services,324117,Provisions E324,09-Aug-2019,000008680911447 - 1,HOPWELLS LTD,5811,Catering costs - provisions,34.53,,34.53
Regeneration and Local Services,Corporate Property and Land,021242,Catering - County Hall,Supplies and Services,324117,Provisions E324,09-Aug-2019,000008688421693,BATLEYS PERTH,5300,Catering costs - provisions,-142.34,-23.72,-118.62
Regeneration and Local Services,Environmental Services,011060,C&G - Hardwick Park Catering,Supplies and Services,324117,Provisions E324,09-Aug-2019,000008688421853,BATLEYS PERTH,5300,Catering costs - provisions,262.26,43.71,218.55
Regeneration and Local Services,Environmental Services,011060,C&G - Hardwick Park Catering,Supplies and Services,324117,Provisions E324,09-Aug-2019,000008688421853 - 1,BATLEYS PERTH,5300,Catering costs - provisions,119.68,,119.68
Regeneration and Local Services,Environmental Services,011060,C&G - Hardwick Park Catering,Supplies and Services,324117,Provisions E324,09-Aug-2019,000008688421867,BATLEYS PERTH,5300,Catering costs - provisions,-16.99,0.00,-16.99
Regeneration and Local Services,Corporate Property and Land,021234,Catering - Locomotion,Supplies and Services,324117,Provisions E324,09-Aug-2019,000008688421879,BATLEYS PERTH,5300,Catering costs - provisions,382.26,63.71,318.55
Regeneration and Local Services,Corporate Property and Land,021234,Catering - Locomotion,Supplies and Services,324117,Provisions E324,09-Aug-2019,000008688421879 - 1,BATLEYS PERTH,5300,Catering costs - provisions,38.69,,38.69
Regeneration and Local Services,Corporate Property and Land,010525,Catering - Green Lane,Supplies and Services,324117,Provisions E324,09-Aug-2019,000008688421915,BATLEYS PERTH,5300,Catering costs - provisions,155.34,25.89,129.45
Regeneration and Local Services,Corporate Property and Land,010525,Catering - Green Lane,Supplies and Services,324117,Provisions E324,09-Aug-2019,000008688421915 - 1,BATLEYS PERTH,5300,Catering costs - provisions,73.90,,73.90
Adult and Health Services,Head of Adults,055643,Hawthorn House LD Respite Unit,Supplies and Services,324117,Provisions E324,09-Aug-2019,000008688422083,BATLEYS PERTH,5300,Catering costs - provisions,13.08,2.18,10.90
Adult and Health Services,Head of Adults,055643,Hawthorn House LD Respite Unit,Supplies and Services,324117,Provisions E324,09-Aug-2019,000008688422083 - 1,BATLEYS PERTH,5300,Catering costs - provisions,59.06,,59.06
Children and Young Peoples Services,Head of Childrens Social Care,085342,9 Cedar Drive Aycliffe,Supplies and Services,324117,Provisions E324,10-Aug-2019,000008680909799,TESCO STORES 2916,5411,Catering costs - provisions,30.41,0.00,30.41
Children and Young Peoples Services,Head of Childrens Social Care,085332,Middlestone Moor CU,Supplies and Services,304999,Equipment and Materials,10-Aug-2019,000008680909835,TOWER EYE ZEUS,7991,Misc equipment tools and materials,93.00,0.00,93.00
Children and Young Peoples Services,Head of Childrens Social Care,085511,Emergency Duty Team,Employees,040149,Recruitment Instruction and Training,10-Aug-2019,000008680910047,PREMIER INN,3811,Training-all costs,166.00,0.00,166.00
Children and Young Peoples Services,Head of Early Help Inclusion & Vulnerable Children.,085956,Lumley,Supplies and Services,324117,Provisions E324,10-Aug-2019,000008680910441,TESCO STORES 6329,5411,Catering costs - provisions,56.24,0.00,56.24
Regeneration and Local Services,Culture Sport and Tourism,054813,Gala Theatre - Technical,Supplies and Services,304259,Equipment and Materials,10-Aug-2019,000008680910463,Prime Video MH69M8KE4,5735,Equipment-purchase and rental,1.99,0.00,1.99
Regeneration and Local Services,Culture Sport and Tourism,054813,Gala Theatre - Technical,Supplies and Services,304403,Equipment and Materials,10-Aug-2019,000008680910467,AMZNMktplace,5999,Other consumables,8.99,0.00,8.99
Regeneration and Local Services,Culture Sport and Tourism,054813,Gala Theatre - Technical,Supplies and Services,304403,Equipment and Materials,10-Aug-2019,000008680910473,AMZNMktplace,5999,Other consumables,8.99,0.00,8.99
Regeneration and Local Services,Culture Sport and Tourism,054813,Gala Theatre - Technical,Supplies and Services,304221,Equipment and Materials,10-Aug-2019,000008680910479,B & Q 1006,5200,Direct materials,33.11,0.00,33.11
Resources BK0010,Resources Management CK0450,069000,Resources Management 069000,Supplies and Services,324117,Provisions E324,10-Aug-2019,000008680910921,SAINSBURYS (2303),5411,Catering costs - provisions,10.30,0.00,10.30
Regeneration and Local Services,Development and Housing,031500,Housing Solutions - Core Team,Employees,040149,Recruitment Instruction and Training,10-Aug-2019,000008680910939,PREMIER INN,3811,Training-all costs,164.50,0.00,164.50
Children and Young Peoples Services,Head of Childrens Social Care,085342,9 Cedar Drive Aycliffe,Supplies and Services,328041,Clothing uniforms and laundry E328,10-Aug-2019,000008680910965,POUNDSTRETCHER STOCK,5331,Clothing uniforms and laundry,4.99,0.00,4.99
Children and Young Peoples Services,Head of Childrens Social Care,085342,9 Cedar Drive Aycliffe,Supplies and Services,324117,Provisions E324,10-Aug-2019,000008680910969,WM MORRISONS STORE,5411,Catering costs - provisions,7.96,0.00,7.96
Children and Young Peoples Services,Head of Childrens Social Care,085342,9 Cedar Drive Aycliffe,Supplies and Services,332047,Printing Stationery and Gen Off Exps,10-Aug-2019,000008680910973,RYMAN,5943,Stationery,37.01,0.00,37.01
Children and Young Peoples Services,Head of Childrens Social Care,085342,9 Cedar Drive Aycliffe,Supplies and Services,324117,Provisions E324,10-Aug-2019,000008680911129,TESCO STORES 2916,5411,Catering costs - provisions,9.25,0.00,9.25
Transformation and Partnerships,Strategy,060120,AHS Strategy,Supplies and Services,342033,Computers and Communications,10-Aug-2019,000008680911387,SurveyMonkey,7372,Computer hardware,384.00,0.00,384.00
Dedicated Schools Grant BG0015,DSG High Needs Block,079050,SENSS-Sensory,Supplies and Services,312011,Newspapers books and periodicals E312,11-Aug-2019,000008680909813,Amazon.co.uk MH0C88KB4,5969,Books-school library,39.99,0.00,39.99
Dedicated Schools Grant BG0015,DSG High Needs Block,079050,SENSS-Sensory,Supplies and Services,312011,Newspapers books and periodicals E312,11-Aug-2019,000008680909817,Amazon.co.uk MH8C99K94,5969,Books-school library,12.99,0.00,12.99
Dedicated Schools Grant BG0015,DSG High Needs Block,079050,SENSS-Sensory,Supplies and Services,332047,Printing Stationery and Gen Off Exps,11-Aug-2019,000008680909823,AMZNMktplace,5999,Stationery,18.48,0.00,18.48
Children and Young Peoples Services,Head of Childrens Social Care,085334,West Rainton Satelite Home,Supplies and Services,348037,Subsistence E348,11-Aug-2019,000008680910247,MCDONALDS,5812,Subsistence,10.94,1.82,9.12
Children and Young Peoples Services,Head of Early Help Inclusion & Vulnerable Children.,085954,Walworth,Supplies and Services,324117,Provisions E324,11-Aug-2019,000008680910447,TESCO STORES 6329,5411,Catering costs - provisions,60.61,0.00,60.61
Regeneration and Local Services,Community Protection,011035,Consumer Protection 011035,Supplies and Services,304403,Equipment and Materials,11-Aug-2019,000008680910865,AMZNMKTPLACE AMAZON.CO,5999,Other consumables,21.48,0.00,21.48
Children and Young Peoples Services,Head of Childrens Social Care,085342,9 Cedar Drive Aycliffe,Supplies and Services,324117,Provisions E324,11-Aug-2019,000008680910977,TESCO STORES 2916,5411,Catering costs - provisions,23.50,0.00,23.50
Children and Young Peoples Services,Head of Childrens Social Care,085342,9 Cedar Drive Aycliffe,Supplies and Services,332047,Printing Stationery and Gen Off Exps,11-Aug-2019,000008680911137,Vue Cinemas,7832,Stationery,11.99,0.00,11.99
Children and Young Peoples Services,Head of Childrens Social Care,085342,9 Cedar Drive Aycliffe,Supplies and Services,332047,Printing Stationery and Gen Off Exps,11-Aug-2019,000008680911139,VUE CINEMAS WWW,7832,Stationery,9.98,0.00,9.98
Children and Young Peoples Services,Head of Early Help Inclusion & Vulnerable Children.,079034,SEND LOOKED AFTER AND VULNERABLE CASEWORK TEAM 1,Employees,040149,Recruitment Instruction and Training,11-Aug-2019,000008680911213,BC.BASECAMP 3 3795171,8699,Training-all costs,413.82,0.00,413.82
Children and Young Peoples Services,Head of Childrens Social Care,085332,Middlestone Moor CU,Supplies and Services,304259,Equipment and Materials,11-Aug-2019,000008680911331,WWW.MILLETS.CO.UK,5941,Equipment-purchase and rental,-31.00,0.00,-31.00
Children and Young Peoples Services,Head of Childrens Social Care,085333,Coxhoe Satelite Home,Transport,215995,Running Costs of Vehicles,11-Aug-2019,000008688422025,BP THINFORD NORTH,5541,Vehicle running expenses,4.40,0.00,4.40
Children and Young Peoples Services,Head of Childrens Social Care,085333,Coxhoe Satelite Home,Supplies and Services,308011,Furniture,11-Aug-2019,000008688422029,IKEA LTD 143 GATESHEAD,5712,Furniture repair and replacement,109.50,18.25,91.25
Regeneration and Local Services,Development and Housing,031500,Housing Solutions - Core Team,Employees,040149,Recruitment Instruction and Training,11-Aug-2019,000008688422035,PREMIER INN,3811,Training-all costs,68.00,11.33,56.67
Regeneration and Local Services,Business Durham CL0850,030699,Business Growth and Innovation General,Supplies and Services,304999,Equipment and Materials,12-Aug-2019,000008680909853,MAILCHIMP MONTHLY,5968,Misc equipment tools and materials,1.82,0.00,1.82
Regeneration and Local Services,Business Durham CL0850,030699,Business Growth and Innovation General,Supplies and Services,342033,Computers and Communications,12-Aug-2019,000008680909861,SLICKPLAN.COM,7372,Computer hardware,0.23,0.00,0.23
Children and Young Peoples Services,Head of Early Help Inclusion & Vulnerable Children.,079034,SEND LOOKED AFTER AND VULNERABLE CASEWORK TEAM 1,Employees,040149,Recruitment Instruction and Training,12-Aug-2019,000008680911219,BC.BASECAMP 3 3795171,8699,Training-all costs,11.38,0.00,11.38
Children and Young Peoples Services,Head of Childrens Social Care,085341,High Etherley Satelite Home,Supplies and Services,324117,Provisions E324,12-Aug-2019,000008688421563,TESCO STORES 6329,5411,Catering costs - provisions,25.27,0.00,25.27
Children and Young Peoples Services,Head of Education and Skills,071801,Selby Cottage Childcare Centre,Supplies and Services,324117,Provisions E324,12-Aug-2019,000008688421573,JR HOLLAND FOODSERVICE,5499,Catering costs - provisions,265.45,0.00,265.45
Children and Young Peoples Services,Head of Childrens Social Care,085342,9 Cedar Drive Aycliffe,Supplies and Services,324117,Provisions E324,12-Aug-2019,000008688421619,TESCO STORES 2916,5411,Catering costs - provisions,20.18,0.00,20.18
Dedicated Schools Grant BG0015,DSG High Needs Block,079050,SENSS-Sensory,Supplies and Services,384999,Miscellaneous Expenses,12-Aug-2019,000008688421623,TESCO STORES 2371,5411,Other expenses,3.20,0.00,3.20
Dedicated Schools Grant BG0015,DSG High Needs Block,079050,SENSS-Sensory,Supplies and Services,304403,Equipment and Materials,12-Aug-2019,000008688421627,ELVET FLOWERS,5992,Other consumables,30.00,0.00,30.00
Transformation and Partnerships,Business Support,052986,CYPS - Locality and Operational Support,Supplies and Services,308011,Furniture,12-Aug-2019,000008688421655,BEDWAREHOUSE,5712,Furniture repair and replacement,125.00,0.00,125.00
Regeneration and Local Services,Corporate Property and Land,021242,Catering - County Hall,Supplies and Services,324117,Provisions E324,12-Aug-2019,000008688421675,FREEMAN CATERING BUTCH,5422,Catering costs - provisions,319.31,0.00,319.31
Regeneration and Local Services,Corporate Property and Land,021242,Catering - County Hall,Supplies and Services,324117,Provisions E324,12-Aug-2019,000008688421679,WWW.ADELIEFOODS.CO.UK,5499,Catering costs - provisions,77.28,0.00,77.28
Regeneration and Local Services,Corporate Property and Land,021242,Catering - County Hall,Supplies and Services,324117,Provisions E324,12-Aug-2019,000008688421683,WWW.ADELIEFOODS.CO.UK,5499,Catering costs - provisions,27.68,0.00,27.68
Regeneration and Local Services,Corporate Property and Land,021242,Catering - County Hall,Supplies and Services,324117,Provisions E324,12-Aug-2019,000008688421687,WWW.ADELIEFOODS.CO.UK,5499,Catering costs - provisions,41.52,0.00,41.52
Regeneration and Local Services,Corporate Property and Land,021242,Catering - County Hall,Supplies and Services,324117,Provisions E324,12-Aug-2019,000008688421691,WWW.ADELIEFOODS.CO.UK,5499,Catering costs - provisions,41.52,0.00,41.52
Regeneration and Local Services,Corporate Property and Land,021242,Catering - County Hall,Supplies and Services,324117,Provisions E324,12-Aug-2019,000008688421697,WWW.ADELIEFOODS.CO.UK,5499,Catering costs - provisions,-13.84,0.00,-13.84
Resources BK0010,Digital and Customer Services,070204,School Services - Systems,Supplies and Services,372009,Subscriptions E372,12-Aug-2019,000008688421707,WEB NETWORKSOLUTIONS,5968,Subscriptions 372009,119.80,0.00,119.80
Regeneration and Local Services,Culture Sport and Tourism,054812,Gala Theatre - Catering etc,Supplies and Services,324117,Provisions E324,12-Aug-2019,000008688421715,FREEMAN CATERING BUTCH,5422,Catering costs - provisions,93.66,0.00,93.66
Regeneration and Local Services,Development and Housing,030773,CLLD North,Transport,215995,Running Costs of Vehicles,12-Aug-2019,000008688421727,W M MORRISON PETROL,5542,Vehicle running expenses,36.00,6.00,30.00
Regeneration and Local Services,Environmental Services,010900,Fleet - Meadowfield Fleet,Transport,215013,Running Costs of Vehicles,12-Aug-2019,000008688421745,DVLA VEHICLE TAX,9399,Vehicle Excise Duty (VED),162.50,0.00,162.50
Regeneration and Local Services,Environmental Services,010900,Fleet - Meadowfield Fleet,Transport,215013,Running Costs of Vehicles,12-Aug-2019,000008688421749,DVLA VEHICLE TAX,9399,Vehicle Excise Duty (VED),147.50,0.00,147.50
Children and Young Peoples Services,Head of Childrens Social Care,085334,West Rainton Satelite Home,Supplies and Services,304403,Equipment and Materials,12-Aug-2019,000008688421781,AMZNMktplace,5999,Other consumables,9.91,0.00,9.91
Children and Young Peoples Services,Head of Childrens Social Care,085334,West Rainton Satelite Home,Supplies and Services,304403,Equipment and Materials,12-Aug-2019,000008688421785,AMZNMktplace,5999,Other consumables,4.52,0.00,4.52
Regeneration and Local Services,Culture Sport and Tourism,010991,County-wide FISCH,Supplies and Services,324117,Provisions E324,12-Aug-2019,000008688421811,WM MORRISONS STORE,5411,Catering costs - provisions,4.40,0.00,4.40
Regeneration and Local Services,Environmental Services,010301,C&G - North Grounds Maintenance,Third Party Payments 4THIRD,430100,Rendered by Private Contractors,12-Aug-2019,000008688421815,JOHN WARREN (ANIMAL BY,7399,Payments to sub-contractors,36.00,0.00,36.00
Regeneration and Local Services,Development and Housing,030771,Durham Advance Flexible Fund,Transport,235057,Public Transport,12-Aug-2019,000008688421821,GO NORTH EAST LIMITED,4131,Staff travelling,20.00,0.00,20.00
Regeneration and Local Services,Business Durham CL0850,030674,Business Services General,Supplies and Services,312011,Newspapers books and periodicals E312,12-Aug-2019,000008688421827,123-REG.CO.UK,4816,Books-school library,38.38,6.40,31.98
Regeneration and Local Services,Business Durham CL0850,030674,Business Services General,Third Party Payments 4THIRD,430100,Rendered by Private Contractors,12-Aug-2019,000008688421831,BLS monday.com,7399,Payments to sub-contractors,74.40,12.40,62.00
Regeneration and Local Services,Culture Sport and Tourism,054813,Gala Theatre - Technical,Supplies and Services,324117,Provisions E324,12-Aug-2019,000008688421837,WM MORRISONS STORE,5411,Catering costs - provisions,39.74,0.00,39.74
Regeneration and Local Services,Environmental Services,031201,Earthworks,Transport,235057,Public Transport,12-Aug-2019,000008688421845,EASYJET,3245,Staff travelling,115.28,0.00,115.28
Regeneration and Local Services,Environmental Services,011060,C&G - Hardwick Park Catering,Supplies and Services,324117,Provisions E324,12-Aug-2019,000008688421861,FREEMAN CATERING BUTCH,5422,Catering costs - provisions,43.34,0.00,43.34
Regeneration and Local Services,Environmental Services,011060,C&G - Hardwick Park Catering,Supplies and Services,324117,Provisions E324,12-Aug-2019,000008688421863,FREEMAN CATERING BUTCH,5422,Catering costs - provisions,40.44,0.00,40.44
Regeneration and Local Services,Culture Sport and Tourism,054815,Gala Theatre Stage School,Supplies and Services,324117,Provisions E324,12-Aug-2019,000008688421871,TESCO STORES 6029,5411,Catering costs - provisions,19.69,0.00,19.69
Regeneration and Local Services,Culture Sport and Tourism,054815,Gala Theatre Stage School,Supplies and Services,328041,Clothing uniforms and laundry E328,12-Aug-2019,000008688421873,H & M,5691,Clothing uniforms and laundry,31.02,0.00,31.02
Regeneration and Local Services,Corporate Property and Land,021234,Catering - Locomotion,Supplies and Services,324117,Provisions E324,12-Aug-2019,000008688421883,FREEMAN CATERING BUTCH,5422,Catering costs - provisions,108.42,0.00,108.42
Regeneration and Local Services,Corporate Property and Land,021234,Catering - Locomotion,Supplies and Services,324117,Provisions E324,12-Aug-2019,000008688421887,WWW.ADELIEFOODS.CO.UK,5499,Catering costs - provisions,72.72,0.00,72.72
Regeneration and Local Services,Corporate Property and Land,021234,Catering - Locomotion,Supplies and Services,324117,Provisions E324,12-Aug-2019,000008688421891,WWW.ADELIEFOODS.CO.UK,5499,Catering costs - provisions,113.25,0.00,113.25
Regeneration and Local Services,Corporate Property and Land,021234,Catering - Locomotion,Supplies and Services,324117,Provisions E324,12-Aug-2019,000008688421893,WWW.ADELIEFOODS.CO.UK,5499,Catering costs - provisions,17.92,0.00,17.92
Regeneration and Local Services,Corporate Property and Land,021234,Catering - Locomotion,Supplies and Services,324117,Provisions E324,12-Aug-2019,000008688421897,WWW.ADELIEFOODS.CO.UK,5499,Catering costs - provisions,396.44,0.00,396.44
Regeneration and Local Services,Corporate Property and Land,021234,Catering - Locomotion,Supplies and Services,324117,Provisions E324,12-Aug-2019,000008688421899,WWW.ADELIEFOODS.CO.UK,5499,Catering costs - provisions,145.33,0.00,145.33
Regeneration and Local Services,Corporate Property and Land,021234,Catering - Locomotion,Supplies and Services,324117,Provisions E324,12-Aug-2019,000008688421901,WWW.ADELIEFOODS.CO.UK,5499,Catering costs - provisions,130.24,0.00,130.24
Regeneration and Local Services,Corporate Property and Land,021234,Catering - Locomotion,Supplies and Services,324117,Provisions E324,12-Aug-2019,000008688421903,WWW.ADELIEFOODS.CO.UK,5499,Catering costs - provisions,-17.92,0.00,-17.92
Regeneration and Local Services,Corporate Property and Land,010525,Catering - Green Lane,Supplies and Services,324117,Provisions E324,12-Aug-2019,000008688421923,FREEMAN CATERING BUTCH,5422,Catering costs - provisions,37.49,0.00,37.49
Regeneration and Local Services,Corporate Property and Land,010525,Catering - Green Lane,Supplies and Services,324117,Provisions E324,12-Aug-2019,000008688421927,WWW.ADELIEFOODS.CO.UK,5499,Catering costs - provisions,40.16,0.00,40.16
Regeneration and Local Services,Corporate Property and Land,010525,Catering - Green Lane,Supplies and Services,324117,Provisions E324,12-Aug-2019,000008688421931,WWW.ADELIEFOODS.CO.UK,5499,Catering costs - provisions,46.36,0.00,46.36
Children and Young Peoples Services,Head of Childrens Social Care,085551,Short Break Services-Park Hse Sher,Supplies and Services,324117,Provisions E324,12-Aug-2019,000008688421943,ALDI 59 774,5411,Catering costs - provisions,27.24,4.54,22.70
Children and Young Peoples Services,Head of Childrens Social Care,085551,Short Break Services-Park Hse Sher,Supplies and Services,324117,Provisions E324,12-Aug-2019,000008688421943 - 1,ALDI 59 774,5411,Catering costs - provisions,1.55,,1.55
Children and Young Peoples Services,Head of Childrens Social Care,085611,Families First Stanley,Supplies and Services,338045,Services,12-Aug-2019,000008688421949,GATESHEAD COUNCIL MOTO,9399,Legal expenses 338045,11.00,0.00,11.00
Children and Young Peoples Services,Head of Childrens Social Care,085611,Families First Stanley,Supplies and Services,304259,Equipment and Materials,12-Aug-2019,000008688421953,GATESHEAD COUNCIL MOTO,9399,Equipment-purchase and rental,11.00,0.00,11.00
Children and Young Peoples Services,Head of Childrens Social Care,085611,Families First Stanley,Supplies and Services,338045,Services,12-Aug-2019,000008688421955,SUNDERLAND CC,9399,Legal expenses 338045,11.00,0.00,11.00
Children and Young Peoples Services,Head of Childrens Social Care,085611,Families First Stanley,Supplies and Services,338045,Services,12-Aug-2019,000008688421959,Durham County CNCL,9399,Legal expenses 338045,11.00,0.00,11.00
Children and Young Peoples Services,Head of Childrens Social Care,085611,Families First Stanley,Supplies and Services,338045,Services,12-Aug-2019,000008688421963,GATESHEAD COUNCIL MOTO,9399,Legal expenses 338045,-11.00,0.00,-11.00
Regeneration and Local Services,Development and Housing,031500,Housing Solutions - Core Team,Supplies and Services,348037,Subsistence E348,12-Aug-2019,000008688422037,HOLIDAY INN DARL,5812,Subsistence,268.00,0.00,268.00
Adult and Health Services,Head of Adults,055301,Stanley Pathways,Supplies and Services,324117,Provisions E324,12-Aug-2019,000008688422045,ASDA SUPERSTORE,5411,Catering costs - provisions,44.85,0.00,44.85
Regeneration and Local Services,Corporate Property and Land,030691,Catering - Durham Dales Centre,Supplies and Services,324117,Provisions E324,12-Aug-2019,000008688422061,FREEMAN CATERING BUTCH,5422,Catering costs - provisions,105.05,0.00,105.05
Regeneration and Local Services,Corporate Property and Land,030691,Catering - Durham Dales Centre,Supplies and Services,324117,Provisions E324,12-Aug-2019,000008688422063,FREEMAN CATERING BUTCH,5422,Catering costs - provisions,6.86,0.00,6.86
Regeneration and Local Services,Corporate Property and Land,030691,Catering - Durham Dales Centre,Supplies and Services,324117,Provisions E324,12-Aug-2019,000008688422065,FREEMAN CATERING BUTCH,5422,Catering costs - provisions,65.85,0.00,65.85
Regeneration and Local Services,Corporate Property and Land,030691,Catering - Durham Dales Centre,Supplies and Services,324117,Provisions E324,12-Aug-2019,000008688422069,FREEMAN CATERING BUTCH,5422,Catering costs - provisions,8.50,0.00,8.50
Adult and Health Services,Head of Adults,055643,Hawthorn House LD Respite Unit,Supplies and Services,324117,Provisions E324,12-Aug-2019,000008688422091,FREEMAN CATERING BUTCH,5422,Catering costs - provisions,27.37,0.00,27.37
Children and Young Peoples Services,Head of Early Help Inclusion & Vulnerable Children.,088100,Durham West & CLS 0-19 Targeted Family Support,Supplies and Services,324117,Provisions E324,12-Aug-2019,000008688422115,ASDA GROCERIES ONLINE,5411,Catering costs - provisions,283.53,0.00,283.53
Children and Young Peoples Services,Head of Early Help Inclusion & Vulnerable Children.,088101,CLS 0-19 Community Family Hub,Supplies and Services,384999,Miscellaneous Expenses,12-Aug-2019,000008688422117,WILKO DURHAM 426,5722,Other expenses,64.00,0.00,64.00
Children and Young Peoples Services,Head of Early Help Inclusion & Vulnerable Children.,088100,Durham West & CLS 0-19 Targeted Family Support,Supplies and Services,324117,Provisions E324,12-Aug-2019,000008688422119,ASDA GROCERIES ONLINE,5411,Catering costs - provisions,-7.60,0.00,-7.60
Children and Young Peoples Services,Head of Early Help Inclusion & Vulnerable Children.,088100,Durham West & CLS 0-19 Targeted Family Support,Supplies and Services,328041,Clothing uniforms and laundry E328,12-Aug-2019,000008688422123,ARGOS RETAIL GROUP,5310,Clothing uniforms and laundry,70.98,0.00,70.98
Children and Young Peoples Services,Head of Early Help Inclusion & Vulnerable Children.,088100,Durham West & CLS 0-19 Targeted Family Support,Supplies and Services,384999,Miscellaneous Expenses,12-Aug-2019,000008688422127,WWW.BEAMISH.ORG.UK,7922,Other expenses,85.50,0.00,85.50
Children and Young Peoples Services,Head of Early Help Inclusion & Vulnerable Children.,088100,Durham West & CLS 0-19 Targeted Family Support,Supplies and Services,384999,Miscellaneous Expenses,12-Aug-2019,000008688422131,WWW.BEAMISH.ORG.UK,7922,Other expenses,54.00,0.00,54.00
Resources BK0010,Digital and Customer Services,065335,School Services - Implementations,Supplies and Services,304303,Equipment and Materials,12-Aug-2019,000008688422141,WWW.TOOLSTATION.COM,5251,Network for resale,4.44,0.74,3.70
Regeneration and Local Services,Development and Housing,030771,Durham Advance Flexible Fund,Supplies and Services,348037,Subsistence E348,12-Aug-2019,000008688422155,COSTA COFFEE,5814,Subsistence,5.45,0.91,4.54
Regeneration and Local Services,Development and Housing,031500,Housing Solutions - Core Team,Supplies and Services,352001,Conference Expenses,12-Aug-2019,000008688422165,HAYAT HOTEL,7011,Conferencesseminars fees etc,500.00,83.33,416.67
Regeneration and Local Services,Development and Housing,031500,Housing Solutions - Core Team,Supplies and Services,352001,Conference Expenses,12-Aug-2019,000008688422171,HAYAT HOTEL,7011,Conferencesseminars fees etc,445.00,74.17,370.83
Children and Young Peoples Services,Head of Education and Skills,071903,EYDCP-Sustainability EDS,Third Party Payments 4THIRD,430100,Rendered by Private Contractors,12-Aug-2019,000008688422175,EB LEARNING CURVE-SYL,7399,Payments to sub-contractors,21.79,0.00,21.79
Regeneration and Local Services,Corporate Property and Land,021324,Catering - Meadowfield,Supplies and Services,324117,Provisions E324,12-Aug-2019,000008688422183,FREEMAN CATERING BUTCH,5422,Catering costs - provisions,92.28,0.00,92.28
Regeneration and Local Services,Corporate Property and Land,021324,Catering - Meadowfield,Supplies and Services,324117,Provisions E324,12-Aug-2019,000008688422187,WWW.ADELIEFOODS.CO.UK,5499,Catering costs - provisions,41.67,0.00,41.67
Children and Young Peoples Services,Head of Education and Skills,071802,Louisa Cent Nursery,Supplies and Services,324117,Provisions E324,12-Aug-2019,000008688422209,ALDI STORES,5411,Catering costs - provisions,29.52,4.92,24.60
Children and Young Peoples Services,Head of Education and Skills,071802,Louisa Cent Nursery,Supplies and Services,324117,Provisions E324,12-Aug-2019,000008688422209 - 1,ALDI STORES,5411,Catering costs - provisions,59.24,,59.24
Children and Young Peoples Services,Head of Childrens Social Care,085380,Operations Manager LAC Resources,Supplies and Services,324117,Provisions E324,12-Aug-2019,000008688422243,TESCO STORES 2371,5411,Catering costs - provisions,1.09,0.00,1.09
Resources BK0010,Finance & Transactional Services,065153,AHS Finance,Third Party Payments 4THIRD,430100,Rendered by Private Contractors,12-Aug-2019,000008688422271,EB HEALTH AND CARE EX,7399,Payments to sub-contractors,120.00,0.00,120.00
Adult and Health Services,Head of Adults,055310,Positive Journeys (Tudhoe),Supplies and Services,324117,Provisions E324,12-Aug-2019,000008688422285,ASDA SUPERSTORE 4987,5411,Catering costs - provisions,7.13,0.00,7.13
Regeneration and Local Services,Corporate Property and Land,021235,Catering - Wharton Park,Supplies and Services,324117,Provisions E324,12-Aug-2019,000008688422297,WWW.ADELIEFOODS.CO.UK,5499,Catering costs - provisions,19.46,0.00,19.46
Regeneration and Local Services,Corporate Property and Land,021235,Catering - Wharton Park,Supplies and Services,324117,Provisions E324,12-Aug-2019,000008688422301,WWW.ADELIEFOODS.CO.UK,5499,Catering costs - provisions,50.31,0.00,50.31
Regeneration and Local Services,Corporate Property and Land,021235,Catering - Wharton Park,Supplies and Services,324117,Provisions E324,12-Aug-2019,000008688422305,WWW.ADELIEFOODS.CO.UK,5499,Catering costs - provisions,42.47,0.00,42.47
Regeneration and Local Services,Corporate Property and Land,021235,Catering - Wharton Park,Supplies and Services,324117,Provisions E324,12-Aug-2019,000008688422309,WWW.ADELIEFOODS.CO.UK,5499,Catering costs - provisions,-50.31,0.00,-50.31
Adult and Health Services,Head of Adults,055309,Peterlee Pathways,Supplies and Services,324117,Provisions E324,12-Aug-2019,000008688422317,LIDL GB PETERLEE,5411,Catering costs - provisions,3.00,0.00,3.00
Children and Young Peoples Services,Head of Childrens Social Care,085613,Families First Durham Central,Supplies and Services,304259,Equipment and Materials,12-Aug-2019,000008688422323,Durham County CNCL,9399,Equipment-purchase and rental,70.00,0.00,70.00
Regeneration and Local Services,Culture Sport and Tourism,030705,Visit County Durham 030705,Supplies and Services,332047,Printing Stationery and Gen Off Exps,12-Aug-2019,000008692196285,AMZNMKTPLACE AMAZON.CO,5999,Stationery,59.52,0.00,59.52
Regeneration and Local Services,Culture Sport and Tourism,054812,Gala Theatre - Catering etc,Supplies and Services,324117,Provisions E324,12-Aug-2019,000008692196329,BATLEYS PERTH,5300,Catering costs - provisions,9.66,1.61,8.05
Regeneration and Local Services,Culture Sport and Tourism,054812,Gala Theatre - Catering etc,Supplies and Services,324117,Provisions E324,12-Aug-2019,000008692196329 - 1,BATLEYS PERTH,5300,Catering costs - provisions,128.61,,128.61
Children and Young Peoples Services,Head of Childrens Social Care,085511,Emergency Duty Team,Employees,040149,Recruitment Instruction and Training,12-Aug-2019,000008692196341,PREMIER INN,3811,Training-all costs,98.00,0.00,98.00
Regeneration and Local Services,Environmental Services,031201,Earthworks,Transport,235057,Public Transport,12-Aug-2019,000008692196571,RYANAIR,3246,Staff travelling,90.57,0.00,90.57
Regeneration and Local Services,Environmental Services,011060,C&G - Hardwick Park Catering,Supplies and Services,324117,Provisions E324,12-Aug-2019,000008692196591,BATLEYS PERTH,5300,Catering costs - provisions,-11.79,0.00,-11.79
Children and Young Peoples Services,Head of Childrens Social Care,085342,9 Cedar Drive Aycliffe,Transport,235057,Public Transport,12-Aug-2019,000008692196703,RYANAIR,3246,Staff travelling,126.70,0.00,126.70
Children and Young Peoples Services,Head of Childrens Social Care,085342,9 Cedar Drive Aycliffe,Supplies and Services,352001,Conference Expenses,12-Aug-2019,000008692196707,HOTEL ON BOOKING.COM T,7011,Conferencesseminars fees etc,267.22,0.00,267.22
Regeneration and Local Services,Corporate Property and Land,030691,Catering - Durham Dales Centre,Supplies and Services,324117,Provisions E324,12-Aug-2019,000008692196725,BATLEYS PERTH,5300,Catering costs - provisions,33.18,5.53,27.65
Regeneration and Local Services,Corporate Property and Land,030691,Catering - Durham Dales Centre,Supplies and Services,324117,Provisions E324,12-Aug-2019,000008692196725 - 1,BATLEYS PERTH,5300,Catering costs - provisions,205.83,,205.83
Transformation and Partnerships,Business Support,052986,CYPS - Locality and Operational Support,Supplies and Services,352001,Conference Expenses,12-Aug-2019,000008692196791,TVLICENSING.CO.UK,7392,Conferencesseminars fees etc,154.50,0.00,154.50
Transformation and Partnerships,Business Support,052986,CYPS - Locality and Operational Support,Supplies and Services,352001,Conference Expenses,12-Aug-2019,000008692196795,TVLICENSING.CO.UK,7392,Conferencesseminars fees etc,154.50,0.00,154.50
Regeneration and Local Services,Development and Housing,031500,Housing Solutions - Core Team,Employees,040149,Recruitment Instruction and Training,12-Aug-2019,000008692196843,PREMIER INN,3811,Training-all costs,95.50,0.00,95.50
Resources BK0010,Digital and Customer Services,070204,School Services - Systems,Supplies and Services,372009,Subscriptions E372,13-Aug-2019,000008688421711,WEB NETWORKSOLUTIONS,5968,Subscriptions 372009,3.29,0.00,3.29
Children and Young Peoples Services,Head of Childrens Social Care,085334,West Rainton Satelite Home,Supplies and Services,304403,Equipment and Materials,13-Aug-2019,000008688421789,AMZNMktplace,5999,Other consumables,12.75,0.00,12.75
Children and Young Peoples Services,Head of Education and Skills,071801,Selby Cottage Childcare Centre,Supplies and Services,324117,Provisions E324,13-Aug-2019,000008692196229,TESCO STORES 2278,5411,Catering costs - provisions,38.53,0.00,38.53
Children and Young Peoples Services,Head of Education and Skills,071801,Selby Cottage Childcare Centre,Supplies and Services,312011,Newspapers books and periodicals E312,13-Aug-2019,000008692196235,HOME BARGAINS,5251,Books-school library,45.34,0.00,45.34
Children and Young Peoples Services,Head of Education and Skills,054640,Durham Learning Resources 054640,Supplies and Services,304245,Equipment and Materials,13-Aug-2019,000008692196241,AMZNMktplace,5999,Materials,22.20,3.70,18.50
Regeneration and Local Services,Transport and Contracted Services,032170,Integrated Passenger Transport,Supplies and Services,304259,Equipment and Materials,13-Aug-2019,000008692196247,Amazon.co.uk MH06Y89F4,5969,Equipment-purchase and rental,23.94,3.99,19.95
Children and Young Peoples Services,Head of Education and Skills,078411,16-19 Education & Training,Supplies and Services,304259,Equipment and Materials,13-Aug-2019,000008692196257,DARLINGTON BC INTERNET,9399,Equipment-purchase and rental,11.00,0.00,11.00
Adult and Health Services,Head of Adults,055302,Durham Pathways,Supplies and Services,324117,Provisions E324,13-Aug-2019,000008692196277,ALDI 32 774,5411,Catering costs - provisions,11.74,0.00,11.74
Adult and Health Services,Head of Adults,055302,Durham Pathways,Supplies and Services,304259,Equipment and Materials,13-Aug-2019,000008692196281,WILKO DURHAM 426,5722,Equipment-purchase and rental,5.00,0.00,5.00
Regeneration and Local Services,Business Durham CL0850,030699,Business Growth and Innovation General,Supplies and Services,304999,Equipment and Materials,13-Aug-2019,000008692196291,MOZ INC,5817,Misc equipment tools and materials,148.62,0.00,148.62
Children and Young Peoples Services,Head of Childrens Social Care,085333,Coxhoe Satelite Home,Supplies and Services,328041,Clothing uniforms and laundry E328,13-Aug-2019,000008692196307,Nike Store 00802,5655,Clothing uniforms and laundry,55.00,0.00,55.00
Regeneration and Local Services,Corporate Property and Land,021242,Catering - County Hall,Premises,145009,Cleaning and Domestic Supplies,13-Aug-2019,000008692196321,ALLIANCE DISPOSABLES L,2842,Other cleaning and domestic costs,3.70,0.62,3.08
Regeneration and Local Services,Corporate Property and Land,021242,Catering - County Hall,Premises,145009,Cleaning and Domestic Supplies,13-Aug-2019,000008692196323,ALLIANCE DISPOSABLES L,2842,Other cleaning and domestic costs,57.42,9.57,47.85
Children and Young Peoples Services,Head of Childrens Social Care,085362,LAC & Permanence Team 2,Supplies and Services,384871,Miscellaneous Expenses,13-Aug-2019,000008692196345,PAYPAL BATTLEZONEP,5661,Training-other activities,75.00,0.00,75.00
Regeneration and Local Services,Development and Housing,031576,B& B - Temp Accom,Supplies and Services,352001,Conference Expenses,13-Aug-2019,000008692196359,HOTEL 52,7011,Conferencesseminars fees etc,73.98,0.00,73.98
Regeneration and Local Services,Environmental Services,010900,Fleet - Meadowfield Fleet,Transport,215013,Running Costs of Vehicles,13-Aug-2019,000008692196371,DVLA VEHICLE TAX,9399,Vehicle Excise Duty (VED),262.50,0.00,262.50
Regeneration and Local Services,Environmental Services,010551,Fleet - Chilton Fleet,Transport,215013,Running Costs of Vehicles,13-Aug-2019,000008692196373,DVLA VEHICLE TAX,9399,Vehicle Excise Duty (VED),262.50,0.00,262.50
Regeneration and Local Services,Environmental Services,010551,Fleet - Chilton Fleet,Transport,215013,Running Costs of Vehicles,13-Aug-2019,000008692196375,DVLA VEHICLE TAX,9399,Vehicle Excise Duty (VED),262.50,0.00,262.50
Regeneration and Local Services,Environmental Services,010561,Fleet - Morrison Busty Fleet,Transport,215013,Running Costs of Vehicles,13-Aug-2019,000008692196381,DVLA VEHICLE TAX,9399,Vehicle Excise Duty (VED),262.50,0.00,262.50
Regeneration and Local Services,Environmental Services,010900,Fleet - Meadowfield Fleet,Transport,215013,Running Costs of Vehicles,13-Aug-2019,000008692196385,DVLA VEHICLE TAX,9399,Vehicle Excise Duty (VED),262.50,0.00,262.50
Regeneration and Local Services,Environmental Services,010900,Fleet - Meadowfield Fleet,Transport,215013,Running Costs of Vehicles,13-Aug-2019,000008692196389,DVLA VEHICLE TAX,9399,Vehicle Excise Duty (VED),262.50,0.00,262.50
Regeneration and Local Services,Environmental Services,010900,Fleet - Meadowfield Fleet,Transport,215013,Running Costs of Vehicles,13-Aug-2019,000008692196393,DVLA VEHICLE TAX,9399,Vehicle Excise Duty (VED),262.50,0.00,262.50
Regeneration and Local Services,Environmental Services,010900,Fleet - Meadowfield Fleet,Transport,215013,Running Costs of Vehicles,13-Aug-2019,000008692196399,DVLA VEHICLE TAX,9399,Vehicle Excise Duty (VED),262.50,0.00,262.50
Regeneration and Local Services,Environmental Services,010864,Fleet - Hackworth Road Fleet,Transport,215013,Running Costs of Vehicles,13-Aug-2019,000008692196403,DVLA VEHICLE TAX,9399,Vehicle Excise Duty (VED),617.50,0.00,617.50
Regeneration and Local Services,Environmental Services,010900,Fleet - Meadowfield Fleet,Transport,215013,Running Costs of Vehicles,13-Aug-2019,000008692196411,DVLA VEHICLE TAX,9399,Vehicle Excise Duty (VED),262.50,0.00,262.50
Regeneration and Local Services,Environmental Services,010900,Fleet - Meadowfield Fleet,Transport,215013,Running Costs of Vehicles,13-Aug-2019,000008692196415,DVLA VEHICLE TAX,9399,Vehicle Excise Duty (VED),262.50,0.00,262.50
Regeneration and Local Services,Environmental Services,010900,Fleet - Meadowfield Fleet,Transport,215013,Running Costs of Vehicles,13-Aug-2019,000008692196417,DVLA VEHICLE TAX,9399,Vehicle Excise Duty (VED),262.50,0.00,262.50
Regeneration and Local Services,Environmental Services,010900,Fleet - Meadowfield Fleet,Transport,215013,Running Costs of Vehicles,13-Aug-2019,000008692196421,DVLA VEHICLE TAX,9399,Vehicle Excise Duty (VED),262.50,0.00,262.50
Regeneration and Local Services,Environmental Services,010864,Fleet - Hackworth Road Fleet,Transport,215013,Running Costs of Vehicles,13-Aug-2019,000008692196423,DVLA VEHICLE TAX,9399,Vehicle Excise Duty (VED),262.50,0.00,262.50
Regeneration and Local Services,Environmental Services,010551,Fleet - Chilton Fleet,Transport,215013,Running Costs of Vehicles,13-Aug-2019,000008692196425,DVLA VEHICLE TAX,9399,Vehicle Excise Duty (VED),617.50,0.00,617.50
Regeneration and Local Services,Environmental Services,010900,Fleet - Meadowfield Fleet,Transport,215013,Running Costs of Vehicles,13-Aug-2019,000008692196429,DVLA VEHICLE TAX,9399,Vehicle Excise Duty (VED),222.50,0.00,222.50
Regeneration and Local Services,Environmental Services,010551,Fleet - Chilton Fleet,Transport,215013,Running Costs of Vehicles,13-Aug-2019,000008692196433,DVLA VEHICLE TAX,9399,Vehicle Excise Duty (VED),617.50,0.00,617.50
Regeneration and Local Services,Environmental Services,010864,Fleet - Hackworth Road Fleet,Transport,215013,Running Costs of Vehicles,13-Aug-2019,000008692196435,DVLA VEHICLE TAX,9399,Vehicle Excise Duty (VED),262.50,0.00,262.50
Regeneration and Local Services,Environmental Services,010864,Fleet - Hackworth Road Fleet,Transport,215013,Running Costs of Vehicles,13-Aug-2019,000008692196439,DVLA VEHICLE TAX,9399,Vehicle Excise Duty (VED),617.50,0.00,617.50
Regeneration and Local Services,Environmental Services,010551,Fleet - Chilton Fleet,Transport,215013,Running Costs of Vehicles,13-Aug-2019,000008692196441,DVLA VEHICLE TAX,9399,Vehicle Excise Duty (VED),262.50,0.00,262.50
Regeneration and Local Services,Environmental Services,010551,Fleet - Chilton Fleet,Transport,215013,Running Costs of Vehicles,13-Aug-2019,000008692196445,DVLA VEHICLE TAX,9399,Vehicle Excise Duty (VED),202.50,0.00,202.50
Regeneration and Local Services,Environmental Services,010900,Fleet - Meadowfield Fleet,Transport,215013,Running Costs of Vehicles,13-Aug-2019,000008692196449,DVLA VEHICLE TAX,9399,Vehicle Excise Duty (VED),262.50,0.00,262.50
Regeneration and Local Services,Environmental Services,010561,Fleet - Morrison Busty Fleet,Transport,215013,Running Costs of Vehicles,13-Aug-2019,000008692196451,DVLA VEHICLE TAX,9399,Vehicle Excise Duty (VED),262.50,0.00,262.50
Regeneration and Local Services,Environmental Services,010900,Fleet - Meadowfield Fleet,Transport,215013,Running Costs of Vehicles,13-Aug-2019,000008692196457,DVLA VEHICLE TAX,9399,Vehicle Excise Duty (VED),262.50,0.00,262.50
Regeneration and Local Services,Environmental Services,010900,Fleet - Meadowfield Fleet,Transport,215013,Running Costs of Vehicles,13-Aug-2019,000008692196461,DVLA VEHICLE TAX,9399,Vehicle Excise Duty (VED),262.50,0.00,262.50
Regeneration and Local Services,Environmental Services,010900,Fleet - Meadowfield Fleet,Transport,215013,Running Costs of Vehicles,13-Aug-2019,000008692196467,DVLA VEHICLE TAX,9399,Vehicle Excise Duty (VED),262.50,0.00,262.50
Regeneration and Local Services,Environmental Services,010900,Fleet - Meadowfield Fleet,Transport,215013,Running Costs of Vehicles,13-Aug-2019,000008692196473,DVLA VEHICLE TAX,9399,Vehicle Excise Duty (VED),262.50,0.00,262.50
Regeneration and Local Services,Environmental Services,010900,Fleet - Meadowfield Fleet,Transport,215013,Running Costs of Vehicles,13-Aug-2019,000008692196477,DVLA VEHICLE TAX,9399,Vehicle Excise Duty (VED),262.50,0.00,262.50
Regeneration and Local Services,Environmental Services,010900,Fleet - Meadowfield Fleet,Transport,215013,Running Costs of Vehicles,13-Aug-2019,000008692196481,DVLA VEHICLE TAX,9399,Vehicle Excise Duty (VED),262.50,0.00,262.50
Children and Young Peoples Services,Head of Childrens Social Care,085342,9 Cedar Drive Aycliffe,Supplies and Services,304999,Equipment and Materials,13-Aug-2019,000008692196487,TOWER EYE ZEUS,7991,Misc equipment tools and materials,65.00,10.83,54.17
Children and Young Peoples Services,Head of Early Help Inclusion & Vulnerable Children.,088113,Seaham  0-19 Community Family Hub,Supplies and Services,324117,Provisions E324,13-Aug-2019,000008692196491,TESCO STORES 2371,5411,Catering costs - provisions,84.12,0.00,84.12
Children and Young Peoples Services,Head of Early Help Inclusion & Vulnerable Children.,088113,Seaham  0-19 Community Family Hub,Supplies and Services,312011,Newspapers books and periodicals E312,13-Aug-2019,000008692196493,HOME BARGAINS,5251,Books-school library,16.74,0.00,16.74
Children and Young Peoples Services,Head of Early Help Inclusion & Vulnerable Children.,088113,Seaham  0-19 Community Family Hub,Supplies and Services,324117,Provisions E324,13-Aug-2019,000008692196497,ALDI 12 774,5411,Catering costs - provisions,32.89,0.00,32.89
Regeneration and Local Services,Environmental Services,031221,North Pennines - Bowlees,Supplies and Services,312011,Newspapers books and periodicals E312,13-Aug-2019,000008692196511,Amazon.co.uk MH7UJ7994,5969,Books-school library,20.86,3.48,17.38
Children and Young Peoples Services,Head of Childrens Social Care,085334,West Rainton Satelite Home,Supplies and Services,304403,Equipment and Materials,13-Aug-2019,000008692196517,AMZNMktplace,5999,Other consumables,19.48,0.00,19.48
Children and Young Peoples Services,Head of Education and Skills,071903,EYDCP-Sustainability EDS,Third Party Payments 4THIRD,430100,Rendered by Private Contractors,13-Aug-2019,000008692196533,EB LEARNING CURVE-SYL,7399,Payments to sub-contractors,21.79,0.00,21.79
Regeneration and Local Services,Development and Housing,031500,Housing Solutions - Core Team,Supplies and Services,304259,Equipment and Materials,13-Aug-2019,000008692196543,DURHAM CITY HOMES,9399,Equipment-purchase and rental,185.40,0.00,185.40
Regeneration and Local Services,Environmental Services,010301,C&G - North Grounds Maintenance,Third Party Payments 4THIRD,430100,Rendered by Private Contractors,13-Aug-2019,000008692196549,JOHN WARREN (ANIMAL BY,7399,Payments to sub-contractors,12.00,0.00,12.00
Regeneration and Local Services,Development and Housing,030771,Durham Advance Flexible Fund,Transport,235057,Public Transport,13-Aug-2019,000008692196555,GO NORTH EAST LIMITED,4131,Staff travelling,21.80,0.00,21.80
Children and Young Peoples Services,Head of Early Help Inclusion & Vulnerable Children.,085955,Auckland,Supplies and Services,304649,Equipment and Materials,13-Aug-2019,000008692196559,Amazon.co.uk MH8777964,5969,Toys,299.99,50.00,249.99
Regeneration and Local Services,Culture Sport and Tourism,054813,Gala Theatre - Technical,Supplies and Services,324117,Provisions E324,13-Aug-2019,000008692196565,TESCO STORES 2971,5411,Catering costs - provisions,101.01,0.00,101.01
Regeneration and Local Services,Culture Sport and Tourism,054813,Gala Theatre - Technical,Supplies and Services,324117,Provisions E324,13-Aug-2019,000008692196567,WM MORRISONS STORE,5411,Catering costs - provisions,13.31,0.00,13.31
Regeneration and Local Services,Environmental Services,011060,C&G - Hardwick Park Catering,Premises,145009,Cleaning and Domestic Supplies,13-Aug-2019,000008692196581,ALLIANCE DISPOSABLES L,2842,Other cleaning and domestic costs,29.16,4.86,24.30
Regeneration and Local Services,Environmental Services,011060,C&G - Hardwick Park Catering,Premises,145009,Cleaning and Domestic Supplies,13-Aug-2019,000008692196587,ALLIANCE DISPOSABLES L,2842,Other cleaning and domestic costs,146.72,24.45,122.27
Regeneration and Local Services,Development and Housing,030755,Durham Employment & Skills - Other Training,Employees,040149,Recruitment Instruction and Training,13-Aug-2019,000008692196599,WWW.CSKILLS.ORG,8249,Training-all costs,36.00,6.00,30.00
